Workbook

Sheet Sheet1
A1: 委托方 | B1: 侨益物流股份有限公司
A2: 月份 | B2: 7月
B4: 值
A5: 送货地 | B5: 求和项:柜量 | C5: 求和项:毛利
A6: 茅岗仓 | B6: 301 | C6: 5240
A7: 信华仓 | B7: 179 | C7: 3100
A8: 明珠仓 | B8: 83 | C8: 1680
A9: 南洲仓 | B9: 56 | C9: 1650
A10: 鱼珠仓 | B10: 55 | C10: 980
A11: 广东南风王科技有限公司 | B11: 14 | C11: 700
A12: 珠海海龙生物科技有限公司 | B12: 11 | C12: 1650
A13: 广东金禾面粉有限公司 | B13: 10 | C13: 1000
A14: 佛山百洋饲料有限公司 | B14: 9 | C14: 450
A15: 11广东汇善实业有限公司 | B15: 8 | C15: 800
A16: 肇庆湘大骆驼饲料有限公司 | B16: 8 | C16: 850
A17: 黄埔区南翔一路88号 | B17: 8 | C17: 160
A18: 南沙龙穴岛仓 | B18: 8 | C18: 400
A19: 佛山海大航标饲料有限公司 | B19: 7 | C19: 500
A20: 广州浚捷仓 | B20: 7 | C20: 350
A21: 广州南沙区珠江新街新广一路39号 | B21: 6 | C21: 300
A22: 中山市东升镇创新塑料制品厂 | B22: 6 | C22: 300
A23: 中山市廖氏塑胶原料有限公司 | B23: 5 | C23: 200
A24: 广州市海维饲料有限公司 | B24: 5 | C24: 250
A25: 广州市大川饲料有限公司 | B25: 5 | C25: 500
A26: 番禺大石仓 | B26: 4 | C26: 200
A27: 广东汇善实业有限公司2 | B27: 3 | C27: 0
A28: 东莞市晨海塑胶制品有限公司 | B28: 3 | C28: 250
A29: 东莞市盈尔电器有限公司1 | B29: 3 | C29: 150
A30: 深圳市利航电子有限公司 | B30: 2 | C30: 100
A31: 11塑米科技（广东）有限公司 | B31: 2 | C31: 200
A32: 深圳万达杰环保新材料股份有限公司 | B32: 2 | C32: 100
A33: 佛山市雁元绿田塑料管有限公司 | B33: 2 | C33: 100
A34: 黄埔区石化路新围村1774号富锦仓 | B34: 2 | C34: 100
A35: 广东汇善实业有限公司1 | B35: 2 | C35: 100
A36: 中粮饲料（佛山）有限公司 | B36: 2 | C36: 200
A37: 广东源信饲料实业有限公司 | B37: 2 | C37: 200
A38: 东莞嘉吉粮油有限公司 | B38: 2 | C38: 1000
A39: 佛山市南海区杰大饲料有限公司 | B39: 2 | C39: 100
A40: 广州快塑电子商务有限公司7 | B40: 2 | C40: 100
A41: 广州兰典威贸易有限公司（清远清城） | B41: 2 | C41: 100
A42: 1苏州鑫洪宝商贸有限公司 | B42: 1 | C42: 50
A43: 东莞市品方电子有限公司 | B43: 1 | C43: 50
A44: 广州快塑电子商务有限公司（东莞黄江2） | B44: 1 | C44: 50
A45: 佛山汇香园 | B45: 1 | C45: 50
A46: 深圳市富长亿科技有限公司 | B46: 1 | C46: 50
A47: 广州兰典威贸易有限公司 | B47: 1 | C47: 50
A48: 东莞市晨海塑胶制品有限公司1 | B48: 1 | C48: 50
A49: 广州兰典威贸易有限公司（花都） | B49: 1 | C49: 50
A50: 中山市小榄镇致华塑料五金电器厂 | B50: 1 | C50: 50
A51: 珠海南安塑胶制品有限公司 | B51: 1 | C51: 50
A52: 深圳市宝长丰胶粘制品有限公司 | B52: 1 | C52: 50
A53: 佛山市导通管业有限公司 | B53: 1 | C53: 50
A54: 深圳市深捷通管业发展有限公司 | B54: 1 | C54: 50
A55: 广州赛聚新材料有限公司 | B55: 1 | C55: 50
A56: 塑米科技（广东）有限公司（佛山顺德） | B56: 1 | C56: 50
A57: 11东莞市江和贸易有限公司 | B57: 1 | C57: 50
A58: 东莞市顶新塑胶有限公司（白云） | B58: 1 | C58: 50
A59: 东莞市宏群包装材料有限公司 | B59: 1 | C59: 50
A60: 广州快塑电子商务有限公司（东莞长安） | B60: 1 | C60: 50
A61: 佛山市南海威景塑料制品有限公司 | B61: 1 | C61: 50
A62: 广州快塑电子商务有限公司（花都新华） | B62: 1 | C62: 50
A63: 广州五味行 | B63: 1 | C63: 50
A64: 1广东大鑫塑胶有限公司 | B64: 1 | C64: 50
A65: 广州挚腾物流仓库 | B65: 1 | C65: 50
A66: 深圳市诚耀贸易有限公司 | B66: 1 | C66: 50
A67: 东莞市江和贸易有限公司 | B67: 1 | C67: 50
A68: 东莞市友昌电子科技有限公司（乐从） | B68: 1 | C68: 50
A69: 佛山市银浪厨卫设备（花都） | B69: 1 | C69: 50
A70: 深圳市卓迅辉塑胶制品有限公司 | B70: 1 | C70: 50
A71: 惠州万合包装制品有限公司1 | B71: 1 | C71: 50
A72: 苏州鑫洪宝商贸有限公司 | B72: 1 | C72: 0
A73: 开平市嘉龙塑料制品有限公司（）送园大道 | B73: 1 | C73: 50
A74: 新嘉源 | B74: 1 | C74: 50
A75: 开平市嘉龙塑料制品有限公司（冈联） | B75: 1 | C75: 50
A76: 广州白云区太和镇大源南路1号（金盘岭隧道旁） | B76: 1 | C76: 100
A77: 开平市嘉龙塑料制品有限公司（蓬江）） | B77: 1 | C77: 50
A78: 浙江三凌能源有限公司1 | B78: 1 | C78: 0
A79: 开平市嘉龙塑料制品有限公司1 | B79: 1 | C79: 50
A80: 广州快塑电子商务有限公司（东莞企石） | B80: 1 | C80: 50
A81: 开平市嘉龙塑料制品有限公司11 | B81: 1 | C81: 50
A82: 中山市小榄镇志华塑料制品厂 | B82: 1 | C82: 50
A83: 开平市水口镇新骏辉五金厂 | B83: 1 | C83: 0
A84: 广州快塑电子商务有限公司（佛山南海） | B84: 1 | C84: 50
A85: 佛山市银浪厨卫设备（顺德） | B85: 1 | C85: 50
A86: 佛山市兆展贸易有限公司 | B86: 1 | C86: 50
A87: 广州赛聚新材料有限公司（江门） | B87: 1 | C87: 50
A88: 金冠塑胶制品(深圳)有限公司 | C88: 50
A89: 宁波酷尔塑料科技 | C89: 100
A90: 东莞雄亚塑料有限公司 | C90: 100
A91: 宁波市北仑森睿 | C91: 50
A92: 天河区员村三横路员村小学对面 | C92: 50
A93: 宁波市静和滚塑料科技有限公(清远) | C93: 20
A94: 佛山金汇盈/汇香园 | C94: 50
A95: 深圳龙岗 | C95: 50
A96: 海宏仓 | C96: 0
A97: 佛山市三水世通管材有限公司 | C97: 50
A98: 宁波荣玛 | C98: 100
A99: 广浚仓 | C99: 4778.12
A100: 广州五丰行 | C100: 50
A101: 总计 | B101: 874 | C101: 31708.12

Sheet 数据1.1-7.31
A1: 状态 | B1: 接单时间 | C1: 提货日期 | D1: 月份 | E1: 送货日期 | F1: 客户 | G1: 委托方 | H1: 业务单号 | I1: 运输公司 | J1: 车辆类型 | K1: 柜量 | L1: 货名 | M1: 货类 | N1: 应收费用 | O1: 应付费用 | P1: 毛利 | Q1: 单柜/吨毛利 | R1: 其他费用 | S1: 资金利息 | T1: 实际毛利 | U1: 实际单柜/吨毛利 | V1: 提货地 | W1: 送货地 | X1: 送货重量 | Y1: 箱单重 | Z1: 短溢吨 | AA1: 短溢率 | AB1: 业务完结时间 | AC1: 业务完结月份 | AD1: 车牌号 | AE1: 柜号 | AF1: 还柜日期 | AG1: 还柜地 | AH1: 建单人 | AI1: 区域
A2: 业务完结 | B2: 2019-06-20 | C2: 2019-07-12 | D2: 7月 | E2: 2019-07-12 00:00 | F2: 鞍钢联众（广州）不锈钢有限公司 | G2: 鞍钢联众（广州）不锈钢有限公司 | H2: QYD19060045T01 | I2: 广州军诚物流有限公司 | J2: 集装箱 | K2: 1 | L2: 铬铁 | M2: 矿产品 | N2: 411.2 | O2: 460 | P2: -48.8 | Q2: =P2 -> -48.8 | S2: =N2*(8%/12)*3 -> 8.224 | T2: =P2-R2-S2 -> -57.024 | U2: =T2 -> -57.024 | V2: 集司码头 | W2: 鞍钢联众（广州）不锈钢有限公司 | AB2: 2019-07-12 14:53 | AC2: 7月 | AE2: PCIU2811711 | AF2: 2019-07-12 | AG2: 集司码头 | AH2: 梁永康 | AI2: 广州
A3: 业务完结 | B3: 2019-06-20 | C3: 2019-07-12 | D3: 7月 | E3: 2019-07-12 00:00 | F3: 鞍钢联众（广州）不锈钢有限公司 | G3: 鞍钢联众（广州）不锈钢有限公司 | H3: QYD19060045T01 | I3: 广州军诚物流有限公司 | J3: 集装箱 | K3: 1 | L3: 铬铁 | M3: 矿产品 | N3: 411.2 | O3: 460 | P3: -48.8 | Q3: -48.8 | S3: 8.224 | T3: -57.024 | U3: -57.024 | V3: 集司码头 | W3: 鞍钢联众（广州）不锈钢有限公司 | AB3: 2019-07-12 14:53 | AC3: 7月 | AE3: PCIU2907217 | AF3: 2019-07-12 | AG3: 集司码头 | AH3: 梁永康 | AI3: 广州
A4: 业务完结 | B4: 2019-06-20 | C4: 2019-07-12 | D4: 7月 | E4: 2019-07-12 00:00 | F4: 鞍钢联众（广州）不锈钢有限公司 | G4: 鞍钢联众（广州）不锈钢有限公司 | H4: QYD19060045T01 | I4: 广州军诚物流有限公司 | J4: 集装箱 | K4: 1 | L4: 铬铁 | M4: 矿产品 | N4: 411.2 | O4: 460 | P4: -48.8 | Q4: -48.8 | S4: 8.224 | T4: -57.024 | U4: -57.024 | V4: 集司码头 | W4: 鞍钢联众（广州）不锈钢有限公司 | AB4: 2019-07-12 14:53 | AC4: 7月 | AE4: PCIU2987465 | AF4: 2019-07-12 | AG4: 集司码头 | AH4: 梁永康 | AI4: 广州
A5: 业务完结 | B5: 2019-06-20 | C5: 2019-07-12 | D5: 7月 | E5: 2019-07-12 00:00 | F5: 鞍钢联众（广州）不锈钢有限公司 | G5: 鞍钢联众（广州）不锈钢有限公司 | H5: QYD19060045T01 | I5: 广州军诚物流有限公司 | J5: 集装箱 | K5: 1 | L5: 铬铁 | M5: 矿产品 | N5: 411.2 | O5: 460 | P5: -48.8 | Q5: -48.8 | S5: 8.224 | T5: -57.024 | U5: -57.024 | V5: 集司码头 | W5: 鞍钢联众（广州）不锈钢有限公司 | AB5: 2019-07-12 14:53 | AC5: 7月 | AE5: RFCU2243474 | AF5: 2019-07-12 | AG5: 集司码头 | AH5: 梁永康 | AI5: 广州
A6: 业务完结 | B6: 2019-06-20 | C6: 2019-07-12 | D6: 7月 | E6: 2019-07-12 00:00 | F6: 鞍钢联众（广州）不锈钢有限公司 | G6: 鞍钢联众（广州）不锈钢有限公司 | H6: QYD19060045T01 | I6: 广州军诚物流有限公司 | J6: 集装箱 | K6: 1 | L6: 铬铁 | M6: 矿产品 | N6: 411.2 | O6: 460 | P6: -48.8 | Q6: -48.8 | S6: 8.224 | T6: -57.024 | U6: -57.024 | V6: 集司码头 | W6: 鞍钢联众（广州）不锈钢有限公司 | AB6: 2019-07-12 14:53 | AC6: 7月 | AE6: BMOU2238793 | AF6: 2019-07-12 | AG6: 集司码头 | AH6: 梁永康 | AI6: 广州
A7: 业务完结 | B7: 2019-06-20 | C7: 2019-07-12 | D7: 7月 | E7: 2019-07-12 00:00 | F7: 鞍钢联众（广州）不锈钢有限公司 | G7: 鞍钢联众（广州）不锈钢有限公司 | H7: QYD19060045T01 | I7: 广州军诚物流有限公司 | J7: 集装箱 | K7: 1 | L7: 铬铁 | M7: 矿产品 | N7: 411.2 | O7: 460 | P7: -48.8 | Q7: -48.8 | S7: 8.224 | T7: -57.024 | U7: -57.024 | V7: 集司码头 | W7: 鞍钢联众（广州）不锈钢有限公司 | AB7: 2019-07-12 14:53 | AC7: 7月 | AE7: PCIU1265196 | AF7: 2019-07-12 | AG7: 集司码头 | AH7: 梁永康 | AI7: 广州
A8: 业务完结 | B8: 2019-06-20 | C8: 2019-07-12 | D8: 7月 | E8: 2019-07-12 00:00 | F8: 鞍钢联众（广州）不锈钢有限公司 | G8: 鞍钢联众（广州）不锈钢有限公司 | H8: QYD19060045T01 | I8: 广州军诚物流有限公司 | J8: 集装箱 | K8: 1 | L8: 铬铁 | M8: 矿产品 | N8: 411.2 | O8: 460 | P8: -48.8 | Q8: -48.8 | S8: 8.224 | T8: -57.024 | U8: -57.024 | V8: 集司码头 | W8: 鞍钢联众（广州）不锈钢有限公司 | AB8: 2019-07-12 14:53 | AC8: 7月 | AE8: PCIU1377236 | AF8: 2019-07-12 | AG8: 集司码头 | AH8: 梁永康 | AI8: 广州
A9: 业务完结 | B9: 2019-06-20 | C9: 2019-07-12 | D9: 7月 | E9: 2019-07-12 00:00 | F9: 鞍钢联众（广州）不锈钢有限公司 | G9: 鞍钢联众（广州）不锈钢有限公司 | H9: QYD19060045T01 | I9: 广州军诚物流有限公司 | J9: 集装箱 | K9: 1 | L9: 铬铁 | M9: 矿产品 | N9: 411.2 | O9: 460 | P9: -48.8 | Q9: -48.8 | S9: 8.224 | T9: -57.024 | U9: -57.024 | V9: 集司码头 | W9: 鞍钢联众（广州）不锈钢有限公司 | AB9: 2019-07-12 14:53 | AC9: 7月 | AE9: PCIU1515171 | AF9: 2019-07-12 | AG9: 集司码头 | AH9: 梁永康 | AI9: 广州
A10: 业务完结 | B10: 2019-06-20 | C10: 2019-07-12 | D10: 7月 | E10: 2019-07-12 00:00 | F10: 鞍钢联众（广州）不锈钢有限公司 | G10: 鞍钢联众（广州）不锈钢有限公司 | H10: QYD19060045T01 | I10: 广州军诚物流有限公司 | J10: 集装箱 | K10: 1 | L10: 铬铁 | M10: 矿产品 | N10: 411.2 | O10: 460 | P10: -48.8 | Q10: -48.8 | S10: 8.224 | T10: -57.024 | U10: -57.024 | V10: 集司码头 | W10: 鞍钢联众（广州）不锈钢有限公司 | AB10: 2019-07-12 14:53 | AC10: 7月 | AE10: PCIU2201220 | AF10: 2019-07-12 | AG10: 集司码头 | AH10: 梁永康 | AI10: 广州
A11: 业务完结 | B11: 2019-06-20 | C11: 2019-07-12 | D11: 7月 | E11: 2019-07-12 00:00 | F11: 鞍钢联众（广州）不锈钢有限公司 | G11: 鞍钢联众（广州）不锈钢有限公司 | H11: QYD19060045T01 | I11: 广州军诚物流有限公司 | J11: 集装箱 | K11: 1 | L11: 铬铁 | M11: 矿产品 | N11: 411.2 | O11: 460 | P11: -48.8 | Q11: -48.8 | S11: 8.224 | T11: -57.024 | U11: -57.024 | V11: 集司码头 | W11: 鞍钢联众（广州）不锈钢有限公司 | AB11: 2019-07-12 14:53 | AC11: 7月 | AE11: PCIU1186707 | AF11: 2019-07-12 | AG11: 集司码头 | AH11: 梁永康 | AI11: 广州
A12: 业务完结 | B12: 2019-06-20 | C12: 2019-07-12 | D12: 7月 | E12: 2019-07-12 00:00 | F12: 鞍钢联众（广州）不锈钢有限公司 | G12: 鞍钢联众（广州）不锈钢有限公司 | H12: QYD19060045T01 | I12: 广州军诚物流有限公司 | J12: 集装箱 | K12: 1 | L12: 铬铁 | M12: 矿产品 | N12: 411.2 | O12: 460 | P12: -48.8 | Q12: -48.8 | S12: 8.224 | T12: -57.024 | U12: -57.024 | V12: 集司码头 | W12: 鞍钢联众（广州）不锈钢有限公司 | AB12: 2019-07-12 14:53 | AC12: 7月 | AE12: PCIU1700950 | AF12: 2019-07-12 | AG12: 集司码头 | AH12: 梁永康 | AI12: 广州
A13: 业务完结 | B13: 2019-06-20 | C13: 2019-07-12 | D13: 7月 | E13: 2019-07-12 00:00 | F13: 鞍钢联众（广州）不锈钢有限公司 | G13: 鞍钢联众（广州）不锈钢有限公司 | H13: QYD19060045T01 | I13: 广州军诚物流有限公司 | J13: 集装箱 | K13: 1 | L13: 铬铁 | M13: 矿产品 | N13: 3071.2 | O13: 3120 | P13: -48.8 | Q13: -48.8 | S13: 61.424 | T13: -110.224 | U13: -110.224 | V13: 集司码头 | W13: 鞍钢联众（广州）不锈钢有限公司 | AB13: 2019-07-12 14:53 | AC13: 7月 | AE13: BEAU2025052 | AF13: 2019-07-12 | AG13: 集司码头 | AH13: 梁永康 | AI13: 广州
A14: 业务完结 | B14: 2019-06-20 | C14: 2019-07-12 | D14: 7月 | E14: 2019-07-12 00:00 | F14: 鞍钢联众（广州）不锈钢有限公司 | G14: 鞍钢联众（广州）不锈钢有限公司 | H14: QYD19060045T01 | I14: 广州军诚物流有限公司 | J14: 集装箱 | K14: 1 | L14: 铬铁 | M14: 矿产品 | N14: 411.2 | O14: 460 | P14: -48.8 | Q14: -48.8 | S14: 8.224 | T14: -57.024 | U14: -57.024 | V14: 集司码头 | W14: 鞍钢联众（广州）不锈钢有限公司 | AB14: 2019-07-12 14:53 | AC14: 7月 | AE14: SEGU1697964 | AF14: 2019-07-12 | AG14: 集司码头 | AH14: 梁永康 | AI14: 广州
A15: 业务完结 | B15: 2019-06-20 | C15: 2019-07-12 | D15: 7月 | E15: 2019-07-12 00:00 | F15: 鞍钢联众（广州）不锈钢有限公司 | G15: 鞍钢联众（广州）不锈钢有限公司 | H15: QYD19060045T01 | I15: 广州军诚物流有限公司 | J15: 集装箱 | K15: 1 | L15: 铬铁 | M15: 矿产品 | N15: 411.2 | O15: 460 | P15: -48.8 | Q15: -48.8 | S15: 8.224 | T15: -57.024 | U15: -57.024 | V15: 集司码头 | W15: 鞍钢联众（广州）不锈钢有限公司 | AB15: 2019-07-12 14:53 | AC15: 7月 | AE15: BMOU2585724 | AF15: 2019-07-12 | AG15: 集司码头 | AH15: 梁永康 | AI15: 广州
A16: 业务完结 | B16: 2019-06-20 | C16: 2019-07-12 | D16: 7月 | E16: 2019-07-12 00:00 | F16: 鞍钢联众（广州）不锈钢有限公司 | G16: 鞍钢联众（广州）不锈钢有限公司 | H16: QYD19060045T01 | I16: 广州军诚物流有限公司 | J16: 集装箱 | K16: 1 | L16: 铬铁 | M16: 矿产品 | N16: 411.2 | O16: 460 | P16: -48.8 | Q16: -48.8 | S16: 8.224 | T16: -57.024 | U16: -57.024 | V16: 集司码头 | W16: 鞍钢联众（广州）不锈钢有限公司 | AB16: 2019-07-12 14:53 | AC16: 7月 | AE16: CAIU2115150 | AF16: 2019-07-12 | AG16: 集司码头 | AH16: 梁永康 | AI16: 广州
A17: 业务完结 | B17: 2019-06-20 | C17: 2019-07-12 | D17: 7月 | E17: 2019-07-12 00:00 | F17: 鞍钢联众（广州）不锈钢有限公司 | G17: 鞍钢联众（广州）不锈钢有限公司 | H17: QYD19060045T01 | I17: 广州军诚物流有限公司 | J17: 集装箱 | K17: 1 | L17: 铬铁 | M17: 矿产品 | N17: 411.2 | O17: 460 | P17: -48.8 | Q17: -48.8 | S17: 8.224 | T17: -57.024 | U17: -57.024 | V17: 集司码头 | W17: 鞍钢联众（广州）不锈钢有限公司 | AB17: 2019-07-12 14:53 | AC17: 7月 | AE17: CAIU2496099 | AF17: 2019-07-12 | AG17: 集司码头 | AH17: 梁永康 | AI17: 广州
A18: 业务完结 | B18: 2019-06-20 | C18: 2019-07-12 | D18: 7月 | E18: 2019-07-12 00:00 | F18: 鞍钢联众（广州）不锈钢有限公司 | G18: 鞍钢联众（广州）不锈钢有限公司 | H18: QYD19060045T01 | I18: 广州军诚物流有限公司 | J18: 集装箱 | K18: 1 | L18: 铬铁 | M18: 矿产品 | N18: 411.2 | O18: 460 | P18: -48.8 | Q18: -48.8 | S18: 8.224 | T18: -57.024 | U18: -57.024 | V18: 集司码头 | W18: 鞍钢联众（广州）不锈钢有限公司 | AB18: 2019-07-12 14:53 | AC18: 7月 | AE18: CAIU3358936 | AF18: 2019-07-12 | AG18: 集司码头 | AH18: 梁永康 | AI18: 广州
A19: 业务完结 | B19: 2019-06-20 | C19: 2019-07-12 | D19: 7月 | E19: 2019-07-12 00:00 | F19: 鞍钢联众（广州）不锈钢有限公司 | G19: 鞍钢联众（广州）不锈钢有限公司 | H19: QYD19060045T01 | I19: 广州军诚物流有限公司 | J19: 集装箱 | K19: 1 | L19: 铬铁 | M19: 矿产品 | N19: 411.2 | O19: 460 | P19: -48.8 | Q19: -48.8 | S19: 8.224 | T19: -57.024 | U19: -57.024 | V19: 集司码头 | W19: 鞍钢联众（广州）不锈钢有限公司 | AB19: 2019-07-12 14:53 | AC19: 7月 | AE19: GLDU9783567 | AF19: 2019-07-12 | AG19: 集司码头 | AH19: 梁永康 | AI19: 广州
A20: 业务完结 | B20: 2019-06-20 | C20: 2019-07-12 | D20: 7月 | E20: 2019-07-12 00:00 | F20: 鞍钢联众（广州）不锈钢有限公司 | G20: 鞍钢联众（广州）不锈钢有限公司 | H20: QYD19060045T01 | I20: 广州军诚物流有限公司 | J20: 集装箱 | K20: 1 | L20: 铬铁 | M20: 矿产品 | N20: 411.2 | O20: 460 | P20: -48.8 | Q20: -48.8 | S20: 8.224 | T20: -57.024 | U20: -57.024 | V20: 集司码头 | W20: 鞍钢联众（广州）不锈钢有限公司 | AB20: 2019-07-12 14:53 | AC20: 7月 | AE20: PCIU0081471 | AF20: 2019-07-12 | AG20: 集司码头 | AH20: 梁永康 | AI20: 广州
A21: 业务完结 | B21: 2019-06-20 | C21: 2019-07-12 | D21: 7月 | E21: 2019-07-12 00:00 | F21: 鞍钢联众（广州）不锈钢有限公司 | G21: 鞍钢联众（广州）不锈钢有限公司 | H21: QYD19060045T01 | I21: 广州军诚物流有限公司 | J21: 集装箱 | K21: 1 | L21: 铬铁 | M21: 矿产品 | N21: 411.2 | O21: 460 | P21: -48.8 | Q21: -48.8 | S21: 8.224 | T21: -57.024 | U21: -57.024 | V21: 集司码头 | W21: 鞍钢联众（广州）不锈钢有限公司 | AB21: 2019-07-12 14:53 | AC21: 7月 | AE21: PCIU0110800 | AF21: 2019-07-12 | AG21: 集司码头 | AH21: 梁永康 | AI21: 广州
A22: 业务完结 | B22: 2019-06-20 | C22: 2019-07-12 | D22: 7月 | E22: 2019-07-12 00:00 | F22: 鞍钢联众（广州）不锈钢有限公司 | G22: 鞍钢联众（广州）不锈钢有限公司 | H22: QYD19060045T01 | I22: 广州军诚物流有限公司 | J22: 集装箱 | K22: 1 | L22: 铬铁 | M22: 矿产品 | N22: 411.2 | O22: 460 | P22: -48.8 | Q22: -48.8 | S22: 8.224 | T22: -57.024 | U22: -57.024 | V22: 集司码头 | W22: 鞍钢联众（广州）不锈钢有限公司 | AB22: 2019-07-12 14:53 | AC22: 7月 | AE22: PCIU1015160 | AF22: 2019-07-12 | AG22: 集司码头 | AH22: 梁永康 | AI22: 广州
A23: 业务完结 | B23: 2019-06-20 | C23: 2019-07-12 | D23: 7月 | E23: 2019-07-12 00:00 | F23: 鞍钢联众（广州）不锈钢有限公司 | G23: 鞍钢联众（广州）不锈钢有限公司 | H23: QYD19060045T01 | I23: 广州军诚物流有限公司 | J23: 集装箱 | K23: 1 | L23: 铬铁 | M23: 矿产品 | N23: 411.2 | O23: 460 | P23: -48.8 | Q23: -48.8 | S23: 8.224 | T23: -57.024 | U23: -57.024 | V23: 集司码头 | W23: 鞍钢联众（广州）不锈钢有限公司 | AB23: 2019-07-12 14:53 | AC23: 7月 | AE23: PCIU1024434 | AF23: 2019-07-12 | AG23: 集司码头 | AH23: 梁永康 | AI23: 广州
A24: 业务完结 | B24: 2019-06-20 | C24: 2019-07-12 | D24: 7月 | E24: 2019-07-12 00:00 | F24: 鞍钢联众（广州）不锈钢有限公司 | G24: 鞍钢联众（广州）不锈钢有限公司 | H24: QYD19060045T01 | I24: 广州军诚物流有限公司 | J24: 集装箱 | K24: 1 | L24: 铬铁 | M24: 矿产品 | N24: 411.2 | O24: 460 | P24: -48.8 | Q24: -48.8 | S24: 8.224 | T24: -57.024 | U24: -57.024 | V24: 集司码头 | W24: 鞍钢联众（广州）不锈钢有限公司 | AB24: 2019-07-12 14:53 | AC24: 7月 | AE24: PCIU1053303 | AF24: 2019-07-12 | AG24: 集司码头 | AH24: 梁永康 | AI24: 广州
A25: 业务完结 | B25: 2019-06-20 | C25: 2019-07-12 | D25: 7月 | E25: 2019-07-12 00:00 | F25: 鞍钢联众（广州）不锈钢有限公司 | G25: 鞍钢联众（广州）不锈钢有限公司 | H25: QYD19060045T01 | I25: 广州军诚物流有限公司 | J25: 集装箱 | K25: 1 | L25: 铬铁 | M25: 矿产品 | N25: 411.2 | O25: 460 | P25: -48.8 | Q25: -48.8 | S25: 8.224 | T25: -57.024 | U25: -57.024 | V25: 集司码头 | W25: 鞍钢联众（广州）不锈钢有限公司 | AB25: 2019-07-12 14:53 | AC25: 7月 | AE25: PCIU1076910 | AF25: 2019-07-12 | AG25: 集司码头 | AH25: 梁永康 | AI25: 广州
A26: 业务完结 | B26: 2019-06-20 | C26: 2019-07-12 | D26: 7月 | E26: 2019-07-12 00:00 | F26: 鞍钢联众（广州）不锈钢有限公司 | G26: 鞍钢联众（广州）不锈钢有限公司 | H26: QYD19060045T01 | I26: 广州军诚物流有限公司 | J26: 集装箱 | K26: 1 | L26: 铬铁 | M26: 矿产品 | N26: 411.2 | O26: 460 | P26: -48.8 | Q26: -48.8 | S26: 8.224 | T26: -57.024 | U26: -57.024 | V26: 集司码头 | W26: 鞍钢联众（广州）不锈钢有限公司 | AB26: 2019-07-12 14:53 | AC26: 7月 | AE26: PCIU1088697 | AF26: 2019-07-12 | AG26: 集司码头 | AH26: 梁永康 | AI26: 广州
A27: 业务完结 | B27: 2019-06-20 | C27: 2019-07-12 | D27: 7月 | E27: 2019-07-12 00:00 | F27: 鞍钢联众（广州）不锈钢有限公司 | G27: 鞍钢联众（广州）不锈钢有限公司 | H27: QYD19060045T01 | I27: 广州军诚物流有限公司 | J27: 集装箱 | K27: 1 | L27: 铬铁 | M27: 矿产品 | N27: 411.2 | O27: 460 | P27: -48.8 | Q27: -48.8 | S27: 8.224 | T27: -57.024 | U27: -57.024 | V27: 集司码头 | W27: 鞍钢联众（广州）不锈钢有限公司 | AB27: 2019-07-12 14:53 | AC27: 7月 | AE27: PCIU1093348 | AF27: 2019-07-12 | AG27: 集司码头 | AH27: 梁永康 | AI27: 广州
A28: 业务完结 | B28: 2019-06-20 | C28: 2019-07-12 | D28: 7月 | E28: 2019-07-12 00:00 | F28: 鞍钢联众（广州）不锈钢有限公司 | G28: 鞍钢联众（广州）不锈钢有限公司 | H28: QYD19060045T01 | I28: 广州军诚物流有限公司 | J28: 集装箱 | K28: 1 | L28: 铬铁 | M28: 矿产品 | N28: 411.2 | O28: 460 | P28: -48.8 | Q28: -48.8 | S28: 8.224 | T28: -57.024 | U28: -57.024 | V28: 集司码头 | W28: 鞍钢联众（广州）不锈钢有限公司 | AB28: 2019-07-12 14:53 | AC28: 7月 | AE28: PCIU1134787 | AF28: 2019-07-12 | AG28: 集司码头 | AH28: 梁永康 | AI28: 广州
A29: 业务完结 | B29: 2019-06-20 | C29: 2019-07-12 | D29: 7月 | E29: 2019-07-12 00:00 | F29: 鞍钢联众（广州）不锈钢有限公司 | G29: 鞍钢联众（广州）不锈钢有限公司 | H29: QYD19060045T01 | I29: 广州军诚物流有限公司 | J29: 集装箱 | K29: 1 | L29: 铬铁 | M29: 矿产品 | N29: 411.2 | O29: 460 | P29: -48.8 | Q29: -48.8 | S29: 8.224 | T29: -57.024 | U29: -57.024 | V29: 集司码头 | W29: 鞍钢联众（广州）不锈钢有限公司 | AB29: 2019-07-12 14:53 | AC29: 7月 | AE29: PCIU1135628 | AF29: 2019-07-12 | AG29: 集司码头 | AH29: 梁永康 | AI29: 广州
A30: 业务完结 | B30: 2019-06-20 | C30: 2019-07-12 | D30: 7月 | E30: 2019-07-12 00:00 | F30: 鞍钢联众（广州）不锈钢有限公司 | G30: 鞍钢联众（广州）不锈钢有限公司 | H30: QYD19060045T01 | I30: 广州军诚物流有限公司 | J30: 集装箱 | K30: 1 | L30: 铬铁 | M30: 矿产品 | N30: 411.2 | O30: 460 | P30: -48.8 | Q30: -48.8 | S30: 8.224 | T30: -57.024 | U30: -57.024 | V30: 集司码头 | W30: 鞍钢联众（广州）不锈钢有限公司 | AB30: 2019-07-12 14:53 | AC30: 7月 | AE30: PCIU1170803 | AF30: 2019-07-12 | AG30: 集司码头 | AH30: 梁永康 | AI30: 广州
A31: 业务完结 | B31: 2019-06-20 | C31: 2019-07-12 | D31: 7月 | E31: 2019-07-12 00:00 | F31: 鞍钢联众（广州）不锈钢有限公司 | G31: 鞍钢联众（广州）不锈钢有限公司 | H31: QYD19060045T01 | I31: 广州军诚物流有限公司 | J31: 集装箱 | K31: 1 | L31: 铬铁 | M31: 矿产品 | N31: 411.2 | O31: 460 | P31: -48.8 | Q31: -48.8 | S31: 8.224 | T31: -57.024 | U31: -57.024 | V31: 集司码头 | W31: 鞍钢联众（广州）不锈钢有限公司 | AB31: 2019-07-12 14:53 | AC31: 7月 | AE31: PCIU1286861 | AF31: 2019-07-12 | AG31: 集司码头 | AH31: 梁永康 | AI31: 广州
A32: 业务完结 | B32: 2019-06-20 | C32: 2019-07-12 | D32: 7月 | E32: 2019-07-12 00:00 | F32: 鞍钢联众（广州）不锈钢有限公司 | G32: 鞍钢联众（广州）不锈钢有限公司 | H32: QYD19060045T01 | I32: 广州军诚物流有限公司 | J32: 集装箱 | K32: 1 | L32: 铬铁 | M32: 矿产品 | N32: 411.2 | O32: 460 | P32: -48.8 | Q32: -48.8 | S32: 8.224 | T32: -57.024 | U32: -57.024 | V32: 集司码头 | W32: 鞍钢联众（广州）不锈钢有限公司 | AB32: 2019-07-12 14:53 | AC32: 7月 | AE32: PCIU1323219 | AF32: 2019-07-12 | AG32: 集司码头 | AH32: 梁永康 | AI32: 广州
A33: 业务完结 | B33: 2019-06-20 | C33: 2019-07-12 | D33: 7月 | E33: 2019-07-12 00:00 | F33: 鞍钢联众（广州）不锈钢有限公司 | G33: 鞍钢联众（广州）不锈钢有限公司 | H33: QYD19060045T01 | I33: 广州军诚物流有限公司 | J33: 集装箱 | K33: 1 | L33: 铬铁 | M33: 矿产品 | N33: 411.2 | O33: 460 | P33: -48.8 | Q33: -48.8 | S33: 8.224 | T33: -57.024 | U33: -57.024 | V33: 集司码头 | W33: 鞍钢联众（广州）不锈钢有限公司 | AB33: 2019-07-12 14:53 | AC33: 7月 | AE33: PCIU1359058 | AF33: 2019-07-12 | AG33: 集司码头 | AH33: 梁永康 | AI33: 广州
A34: 业务完结 | B34: 2019-06-20 | C34: 2019-07-12 | D34: 7月 | E34: 2019-07-12 00:00 | F34: 鞍钢联众（广州）不锈钢有限公司 | G34: 鞍钢联众（广州）不锈钢有限公司 | H34: QYD19060045T01 | I34: 广州军诚物流有限公司 | J34: 集装箱 | K34: 1 | L34: 铬铁 | M34: 矿产品 | N34: 411.2 | O34: 460 | P34: -48.8 | Q34: -48.8 | S34: 8.224 | T34: -57.024 | U34: -57.024 | V34: 集司码头 | W34: 鞍钢联众（广州）不锈钢有限公司 | AB34: 2019-07-12 14:53 | AC34: 7月 | AE34: PCIU1428307 | AF34: 2019-07-12 | AG34: 集司码头 | AH34: 梁永康 | AI34: 广州
A35: 业务完结 | B35: 2019-06-20 | C35: 2019-07-12 | D35: 7月 | E35: 2019-07-12 00:00 | F35: 鞍钢联众（广州）不锈钢有限公司 | G35: 鞍钢联众（广州）不锈钢有限公司 | H35: QYD19060045T01 | I35: 广州军诚物流有限公司 | J35: 集装箱 | K35: 1 | L35: 铬铁 | M35: 矿产品 | N35: 411.2 | O35: 460 | P35: -48.8 | Q35: -48.8 | S35: 8.224 | T35: -57.024 | U35: -57.024 | V35: 集司码头 | W35: 鞍钢联众（广州）不锈钢有限公司 | AB35: 2019-07-12 14:53 | AC35: 7月 | AE35: PCIU1435651 | AF35: 2019-07-12 | AG35: 集司码头 | AH35: 梁永康 | AI35: 广州
A36: 业务完结 | B36: 2019-06-20 | C36: 2019-07-12 | D36: 7月 | E36: 2019-07-12 00:00 | F36: 鞍钢联众（广州）不锈钢有限公司 | G36: 鞍钢联众（广州）不锈钢有限公司 | H36: QYD19060045T01 | I36: 广州军诚物流有限公司 | J36: 集装箱 | K36: 1 | L36: 铬铁 | M36: 矿产品 | N36: 411.2 | O36: 460 | P36: -48.8 | Q36: -48.8 | S36: 8.224 | T36: -57.024 | U36: -57.024 | V36: 集司码头 | W36: 鞍钢联众（广州）不锈钢有限公司 | AB36: 2019-07-12 14:53 | AC36: 7月 | AE36: PCIU1576006 | AF36: 2019-07-12 | AG36: 集司码头 | AH36: 梁永康 | AI36: 广州
A37: 业务完结 | B37: 2019-06-20 | C37: 2019-07-12 | D37: 7月 | E37: 2019-07-12 00:00 | F37: 鞍钢联众（广州）不锈钢有限公司 | G37: 鞍钢联众（广州）不锈钢有限公司 | H37: QYD19060045T01 | I37: 广州军诚物流有限公司 | J37: 集装箱 | K37: 1 | L37: 铬铁 | M37: 矿产品 | N37: 411.2 | O37: 460 | P37: -48.8 | Q37: -48.8 | S37: 8.224 | T37: -57.024 | U37: -57.024 | V37: 集司码头 | W37: 鞍钢联众（广州）不锈钢有限公司 | AB37: 2019-07-12 14:53 | AC37: 7月 | AE37: PCIU1621790 | AF37: 2019-07-12 | AG37: 集司码头 | AH37: 梁永康 | AI37: 广州
A38: 业务完结 | B38: 2019-06-20 | C38: 2019-07-12 | D38: 7月 | E38: 2019-07-12 00:00 | F38: 鞍钢联众（广州）不锈钢有限公司 | G38: 鞍钢联众（广州）不锈钢有限公司 | H38: QYD19060045T01 | I38: 广州军诚物流有限公司 | J38: 集装箱 | K38: 1 | L38: 铬铁 | M38: 矿产品 | N38: 411.2 | O38: 460 | P38: -48.8 | Q38: -48.8 | S38: 8.224 | T38: -57.024 | U38: -57.024 | V38: 集司码头 | W38: 鞍钢联众（广州）不锈钢有限公司 | AB38: 2019-07-12 14:53 | AC38: 7月 | AE38: PCIU2662270 | AF38: 2019-07-12 | AG38: 集司码头 | AH38: 梁永康 | AI38: 广州
A39: 业务完结 | B39: 2019-06-20 | C39: 2019-07-12 | D39: 7月 | E39: 2019-07-12 00:00 | F39: 鞍钢联众（广州）不锈钢有限公司 | G39: 鞍钢联众（广州）不锈钢有限公司 | H39: QYD19060045T01 | I39: 广州军诚物流有限公司 | J39: 集装箱 | K39: 1 | L39: 铬铁 | M39: 矿产品 | N39: 411.2 | O39: 460 | P39: -48.8 | Q39: -48.8 | S39: 8.224 | T39: -57.024 | U39: -57.024 | V39: 集司码头 | W39: 鞍钢联众（广州）不锈钢有限公司 | AB39: 2019-07-12 14:53 | AC39: 7月 | AE39: PCIU2714769 | AF39: 2019-07-12 | AG39: 集司码头 | AH39: 梁永康 | AI39: 广州
A40: 业务完结 | B40: 2019-06-20 | C40: 2019-07-12 | D40: 7月 | E40: 2019-07-12 00:00 | F40: 鞍钢联众（广州）不锈钢有限公司 | G40: 鞍钢联众（广州）不锈钢有限公司 | H40: QYD19060045T01 | I40: 广州军诚物流有限公司 | J40: 集装箱 | K40: 1 | L40: 铬铁 | M40: 矿产品 | N40: 411.2 | O40: 460 | P40: -48.8 | Q40: -48.8 | S40: 8.224 | T40: -57.024 | U40: -57.024 | V40: 集司码头 | W40: 鞍钢联众（广州）不锈钢有限公司 | AB40: 2019-07-12 14:53 | AC40: 7月 | AE40: PCIU2787410 | AF40: 2019-07-12 | AG40: 集司码头 | AH40: 梁永康 | AI40: 广州
A41: 业务完结 | B41: 2019-06-20 | C41: 2019-07-12 | D41: 7月 | E41: 2019-07-12 00:00 | F41: 鞍钢联众（广州）不锈钢有限公司 | G41: 鞍钢联众（广州）不锈钢有限公司 | H41: QYD19060045T01 | I41: 广州军诚物流有限公司 | J41: 集装箱 | K41: 1 | L41: 铬铁 | M41: 矿产品 | N41: 411.2 | O41: 460 | P41: -48.8 | Q41: -48.8 | S41: 8.224 | T41: -57.024 | U41: -57.024 | V41: 集司码头 | W41: 鞍钢联众（广州）不锈钢有限公司 | AB41: 2019-07-12 14:53 | AC41: 7月 | AE41: PCIU2803850 | AF41: 2019-07-12 | AG41: 集司码头 | AH41: 梁永康 | AI41: 广州
A42: 业务完结 | B42: 2019-05-30 | C42: 2019-06-02 | D42: 6月 | E42: 2019-06-02 00:00 | F42: 鞍钢联众（广州）不锈钢有限公司 | G42: 鞍钢联众（广州）不锈钢有限公司 | H42: QYD19050077T01 | I42: 广州军诚物流有限公司 | J42: 散货 | L42: 电解铜板 | M42: 钢材 | N42: 8947.51 | O42: 8344.92 | P42: 602.59 | Q42: =P42/X42 -> 2.014542658 | S42: 178.9502 | T42: 423.6398 | U42: =T42/X42 -> 1.416287109 | V42: 东江仓码头 | W42: 鞍钢联众（广州）不锈钢有限公司 | X42: 299.12 | AB42: 2019-06-03 09:11 | AC42: 6月 | AF42: 2019-06-02 | AH42: 梁永康 | AI42: 广州
A43: 业务完结 | B43: 2019-07-02 | C43: 2019-07-05 | D43: 7月 | E43: 2019-07-05 00:00 | F43: 鞍钢联众（广州）不锈钢有限公司 | G43: 鞍钢联众（广州）不锈钢有限公司 | H43: QYD19070006T01 | I43: 广州军诚物流有限公司 | J43: 散货 | L43: 镍铁 | M43: 矿产品 | N43: 629.7 | O43: 820 | P43: -190.3 | Q43: =P43/X43 -> -7.89626556 | S43: 12.594 | T43: -202.894 | U43: =T43/X43 -> -8.418838174 | V43: 广州市巨汇仓储有限公司（保税仓） | W43: 鞍钢联众（广州）不锈钢有限公司 | X43: 24.1 | Y43: 24.1 | Z43: 0 | AA43: 0 | AB43: 2019-07-08 09:30 | AC43: 7月 | AF43: 2019-07-05 | AH43: 梁永康 | AI43: 广州
A44: 业务完结 | B44: 2019-07-02 | C44: 2019-07-05 | D44: 7月 | E44: 2019-07-05 00:00 | F44: 鞍钢联众（广州）不锈钢有限公司 | G44: 鞍钢联众（广州）不锈钢有限公司 | H44: QYD19070006T01 | I44: 广州军诚物流有限公司 | J44: 散货 | L44: 镍铁 | M44: 矿产品 | N44: 429.7 | O44: 600 | P44: -170.3 | Q44: =P44/X44 -> -7.066390041 | S44: 8.594 | T44: -178.894 | U44: =T44/X44 -> -7.422987552 | V44: 广州市巨汇仓储有限公司（保税仓） | W44: 鞍钢联众（广州）不锈钢有限公司 | X44: 24.1 | Y44: 24.1 | Z44: 0 | AA44: 0 | AB44: 2019-07-08 09:30 | AC44: 7月 | AF44: 2019-07-05 | AH44: 梁永康 | AI44: 广州
A45: 业务完结 | B45: 2019-07-29 | C45: 2019-07-27 | D45: 7月 | E45: 2019-07-27 00:00 | F45: 厦门建发物产有限公司 | G45: 厦门鑫侨益国际货运代理有限公司 | H45: XMDJ19070002F01T0004 | I45: 恩平市华誉货运物流有限公司 | J45: 集装箱 | K45: 1 | L45: 面粉 | M45: 粮食 | N45: 1120 | O45: 1100 | P45: 20 | Q45: =P45 -> 20 | T45: 20 | U45: =T45 -> 20 | V45: 新会新港 | W45: 开平市顺昌饲料实业有限公司 | X45: 28.1 | Y45: 28.1 | Z45: 0 | AA45: 0 | AB45: 2019-07-31 19:29 | AC45: 7月 | AE45: TCNU2777340 | AF45: 2019-07-27 | AG45: 新会新港 | AH45: 赖梅娟 | AI45: 江门
A46: 业务完结 | B46: 2019-07-12 | C46: 2019-07-15 | D46: 7月 | E46: 2019-07-15 00:00 | F46: 鞍钢联众（广州）不锈钢有限公司 | G46: 鞍钢联众（广州）不锈钢有限公司 | H46: QYD19070027T01 | I46: 广州军诚物流有限公司 | J46: 散货 | L46: 设备 | M46: 其他 | N46: 396.36 | O46: 350 | P46: 46.36 | Q46: =P46/X46 -> 46.36 | S46: =N46*(8%/12)*3 -> 7.9272 | T46: 38.4328 | U46: =T46/X46 -> 38.4328 | V46: 广保通码头 | W46: 鞍钢联众（广州）不锈钢有限公司 | X46: 1 | AB46: 2019-07-29 19:39 | AC46: 7月 | AG46: 广保通码头 | AH46: 梁永康 | AI46: 广州
A47: 业务完结 | B47: 2019-01-02 | C47: 2019-01-03 | D47: 1月 | E47: 2019-01-03 00:00 | F47: 鞍钢联众（广州）不锈钢有限公司 | G47: 鞍钢联众（广州）不锈钢有限公司 | H47: QYD19010002T01 | I47: 广州市永盈物流有限公司 | J47: 集装箱 | K47: 1 | L47: 电解铜板 | M47: 钢材 | N47: 415 | O47: 360 | P47: 55 | Q47: =P47 -> 55 | S47: 8.3 | T47: 46.7 | U47: =T47 -> 46.7 | V47: 全通秀丽码头 | W47: 鞍钢联众（广州）不锈钢有限公司 | X47: 25.65 | AB47: 2019-02-13 10:08 | AC47: 2月 | AD47: 豫P1D220 | AE47: PONU0886403 | AF47: 2019-01-03 | AG47: 南岗中集 | AH47: 李锦坚 | AI47: 广州
A48: 业务完结 | B48: 2019-01-02 | C48: 2019-01-03 | D48: 1月 | E48: 2019-01-03 00:00 | F48: 鞍钢联众（广州）不锈钢有限公司 | G48: 鞍钢联众（广州）不锈钢有限公司 | H48: QYD19010002T01 | I48: 广州市永盈物流有限公司 | J48: 集装箱 | K48: 1 | L48: 电解铜板 | M48: 钢材 | N48: 415 | O48: 360 | P48: 55 | Q48: 55 | S48: 8.3 | T48: 46.7 | U48: 46.7 | V48: 全通秀丽码头 | W48: 鞍钢联众（广州）不锈钢有限公司 | X48: 25.65 | AB48: 2019-02-13 10:08 | AC48: 2月 | AD48: 豫P1D220 | AE48: MRKU6600140 | AF48: 2019-01-03 | AG48: 南岗中集 | AH48: 李锦坚 | AI48: 广州
A49: 业务完结 | B49: 2019-01-02 | C49: 2019-01-03 | D49: 1月 | E49: 2019-01-03 00:00 | F49: 鞍钢联众（广州）不锈钢有限公司 | G49: 鞍钢联众（广州）不锈钢有限公司 | H49: QYD19010002T01 | I49: 广州市永盈物流有限公司 | J49: 集装箱 | K49: 1 | L49: 电解铜板 | M49: 钢材 | N49: 415 | O49: 360 | P49: 55 | Q49: 55 | S49: 8.3 | T49: 46.7 | U49: 46.7 | V49: 全通秀丽码头 | W49: 鞍钢联众（广州）不锈钢有限公司 | X49: 24.37 | AB49: 2019-02-13 10:08 | AC49: 2月 | AD49: 粤AD7803 | AE49: MRKU7148950 | AF49: 2019-01-03 | AG49: 南岗中集 | AH49: 李锦坚 | AI49: 广州
A50: 业务完结 | B50: 2019-01-02 | C50: 2019-01-03 | D50: 1月 | E50: 2019-01-03 00:00 | F50: 鞍钢联众（广州）不锈钢有限公司 | G50: 鞍钢联众（广州）不锈钢有限公司 | H50: QYD19010002T01 | I50: 广州市永盈物流有限公司 | J50: 集装箱 | K50: 1 | L50: 电解铜板 | M50: 钢材 | N50: 415 | O50: 360 | P50: 55 | Q50: 55 | S50: 8.3 | T50: 46.7 | U50: 46.7 | V50: 全通秀丽码头 | W50: 鞍钢联众（广州）不锈钢有限公司 | X50: 24.69 | AB50: 2019-02-13 10:08 | AC50: 2月 | AD50: 豫P48279 | AE50: MSKU3226126 | AF50: 2019-01-03 | AG50: 南岗中集 | AH50: 李锦坚 | AI50: 广州
A51: 业务完结 | B51: 2019-01-02 | C51: 2019-01-03 | D51: 1月 | E51: 2019-01-03 00:00 | F51: 鞍钢联众（广州）不锈钢有限公司 | G51: 鞍钢联众（广州）不锈钢有限公司 | H51: QYD19010002T01 | I51: 广州市永盈物流有限公司 | J51: 集装箱 | K51: 1 | L51: 电解铜板 | M51: 钢材 | N51: 415 | O51: 360 | P51: 55 | Q51: 55 | S51: 8.3 | T51: 46.7 | U51: 46.7 | V51: 全通秀丽码头 | W51: 鞍钢联众（广州）不锈钢有限公司 | X51: 24.37 | AB51: 2019-02-13 10:08 | AC51: 2月 | AD51: 粤AD7803 | AE51: MRSU0323817 | AF51: 2019-01-03 | AG51: 南岗中集 | AH51: 李锦坚 | AI51: 广州
A52: 业务完结 | B52: 2019-01-02 | C52: 2019-01-03 | D52: 1月 | E52: 2019-01-03 00:00 | F52: 鞍钢联众（广州）不锈钢有限公司 | G52: 鞍钢联众（广州）不锈钢有限公司 | H52: QYD19010002T01 | I52: 广州市永盈物流有限公司 | J52: 集装箱 | K52: 1 | L52: 电解铜板 | M52: 钢材 | N52: 4017.2 | O52: 3907 | P52: 110.2 | Q52: 110.2 | S52: 80.344 | T52: 29.856 | U52: 29.856 | V52: 全通秀丽码头 | W52: 鞍钢联众（广州）不锈钢有限公司 | X52: 24.69 | AB52: 2019-02-13 10:08 | AC52: 2月 | AD52: 豫P48279 | AE52: PONU0559798 | AF52: 2019-01-03 | AG52: 南岗中集 | AH52: 李锦坚 | AI52: 广州
A53: 业务完结 | B53: 2019-01-02 | C53: 2019-01-03 | D53: 1月 | E53: 2019-01-03 00:00 | F53: 鞍钢联众（广州）不锈钢有限公司 | G53: 鞍钢联众（广州）不锈钢有限公司 | H53: QYD19010003T01 | I53: 广州市永盈物流有限公司 | J53: 集装箱 | K53: 1 | L53: 铬铁 | M53: 矿产品 | N53: 410 | O53: 360 | P53: 50 | Q53: 50 | S53: 8.2 | T53: 41.8 | U53: 41.8 | V53: 全通秀丽码头 | W53: 鞍钢联众（广州）不锈钢有限公司 | X53: 24.04 | AB53: 2019-02-13 10:05 | AC53: 2月 | AD53: 粤ABJ160 | AE53: TCKU2145745 | AF53: 2019-01-03 | AG53: 珉丰二场 | AH53: 李锦坚 | AI53: 广州
A54: 业务完结 | B54: 2019-01-02 | C54: 2019-01-03 | D54: 1月 | E54: 2019-01-03 00:00 | F54: 鞍钢联众（广州）不锈钢有限公司 | G54: 鞍钢联众（广州）不锈钢有限公司 | H54: QYD19010003T01 | I54: 广州市永盈物流有限公司 | J54: 集装箱 | K54: 1 | L54: 铬铁 | M54: 矿产品 | N54: 410 | O54: 360 | P54: 50 | Q54: 50 | S54: 8.2 | T54: 41.8 | U54: 41.8 | V54: 全通秀丽码头 | W54: 鞍钢联众（广州）不锈钢有限公司 | X54: 24.04 | AB54: 2019-02-13 10:05 | AC54: 2月 | AD54: 粤ABJ160 | AE54: TTNU1080668 | AF54: 2019-01-03 | AG54: 珉丰二场 | AH54: 李锦坚 | AI54: 广州
A55: 业务完结 | B55: 2019-01-02 | C55: 2019-01-03 | D55: 1月 | E55: 2019-01-03 00:00 | F55: 鞍钢联众（广州）不锈钢有限公司 | G55: 鞍钢联众（广州）不锈钢有限公司 | H55: QYD19010003T01 | I55: 广州市永盈物流有限公司 | J55: 集装箱 | K55: 1 | L55: 铬铁 | M55: 矿产品 | N55: 410 | O55: 360 | P55: 50 | Q55: 50 | S55: 8.2 | T55: 41.8 | U55: 41.8 | V55: 全通秀丽码头 | W55: 鞍钢联众（广州）不锈钢有限公司 | X55: 23.66 | AB55: 2019-02-13 10:05 | AC55: 2月 | AD55: 豫PJ6110 | AE55: MRKU8225537 | AF55: 2019-01-03 | AG55: 珉丰二场 | AH55: 李锦坚 | AI55: 广州
A56: 业务完结 | B56: 2019-01-02 | C56: 2019-01-03 | D56: 1月 | E56: 2019-01-03 00:00 | F56: 鞍钢联众（广州）不锈钢有限公司 | G56: 鞍钢联众（广州）不锈钢有限公司 | H56: QYD19010003T01 | I56: 广州市永盈物流有限公司 | J56: 集装箱 | K56: 1 | L56: 铬铁 | M56: 矿产品 | N56: 410 | O56: 360 | P56: 50 | Q56: 50 | S56: 8.2 | T56: 41.8 | U56: 41.8 | V56: 全通秀丽码头 | W56: 鞍钢联众（广州）不锈钢有限公司 | X56: 23.66 | AB56: 2019-02-13 10:05 | AC56: 2月 | AD56: 豫PJ6110 | AE56: TGHU1429738 | AF56: 2019-01-03 | AG56: 珉丰二场 | AH56: 李锦坚 | AI56: 广州
A57: 业务完结 | B57: 2019-01-02 | C57: 2019-01-03 | D57: 1月 | E57: 2019-01-03 00:00 | F57: 鞍钢联众（广州）不锈钢有限公司 | G57: 鞍钢联众（广州）不锈钢有限公司 | H57: QYD19010003T01 | I57: 广州市永盈物流有限公司 | J57: 集装箱 | K57: 1 | L57: 铬铁 | M57: 矿产品 | N57: 410 | O57: 360 | P57: 50 | Q57: 50 | S57: 8.2 | T57: 41.8 | U57: 41.8 | V57: 全通秀丽码头 | W57: 鞍钢联众（广州）不锈钢有限公司 | X57: 23.72 | AB57: 2019-02-13 10:05 | AC57: 2月 | AD57: 豫PJ6110 | AE57: MRKU6837934 | AF57: 2019-01-03 | AG57: 珉丰二场 | AH57: 李锦坚 | AI57: 广州
A58: 业务完结 | B58: 2019-01-02 | C58: 2019-01-03 | D58: 1月 | E58: 2019-01-03 00:00 | F58: 鞍钢联众（广州）不锈钢有限公司 | G58: 鞍钢联众（广州）不锈钢有限公司 | H58: QYD19010003T01 | I58: 广州市永盈物流有限公司 | J58: 集装箱 | K58: 1 | L58: 铬铁 | M58: 矿产品 | N58: 410 | O58: 360 | P58: 50 | Q58: 50 | S58: 8.2 | T58: 41.8 | U58: 41.8 | V58: 全通秀丽码头 | W58: 鞍钢联众（广州）不锈钢有限公司 | X58: 23.72 | AB58: 2019-02-13 10:05 | AC58: 2月 | AD58: 豫PJ6110 | AE58: TEMU2095145 | AF58: 2019-01-03 | AG58: 珉丰二场 | AH58: 李锦坚 | AI58: 广州
A59: 业务完结 | B59: 2019-01-02 | C59: 2019-01-03 | D59: 1月 | E59: 2019-01-03 00:00 | F59: 鞍钢联众（广州）不锈钢有限公司 | G59: 鞍钢联众（广州）不锈钢有限公司 | H59: QYD19010003T01 | I59: 广州市永盈物流有限公司 | J59: 集装箱 | K59: 1 | L59: 铬铁 | M59: 矿产品 | N59: 410 | O59: 360 | P59: 50 | Q59: 50 | S59: 8.2 | T59: 41.8 | U59: 41.8 | V59: 全通秀丽码头 | W59: 鞍钢联众（广州）不锈钢有限公司 | X59: 24.01 | AB59: 2019-02-13 10:05 | AC59: 2月 | AD59: 粤AN2255 | AE59: MRKU6975759 | AF59: 2019-01-03 | AG59: 珉丰二场 | AH59: 李锦坚 | AI59: 广州
A60: 业务完结 | B60: 2019-01-02 | C60: 2019-01-03 | D60: 1月 | E60: 2019-01-03 00:00 | F60: 鞍钢联众（广州）不锈钢有限公司 | G60: 鞍钢联众（广州）不锈钢有限公司 | H60: QYD19010003T01 | I60: 广州市永盈物流有限公司 | J60: 集装箱 | K60: 1 | L60: 铬铁 | M60: 矿产品 | N60: 410 | O60: 360 | P60: 50 | Q60: 50 | S60: 8.2 | T60: 41.8 | U60: 41.8 | V60: 全通秀丽码头 | W60: 鞍钢联众（广州）不锈钢有限公司 | X60: 24.01 | AB60: 2019-02-13 10:05 | AC60: 2月 | AD60: 粤AN2255 | AE60: MSKU3415480 | AF60: 2019-01-03 | AG60: 珉丰二场 | AH60: 李锦坚 | AI60: 广州
A61: 业务完结 | B61: 2019-01-02 | C61: 2019-01-03 | D61: 1月 | E61: 2019-01-03 00:00 | F61: 鞍钢联众（广州）不锈钢有限公司 | G61: 鞍钢联众（广州）不锈钢有限公司 | H61: QYD19010003T01 | I61: 广州市永盈物流有限公司 | J61: 集装箱 | K61: 1 | L61: 铬铁 | M61: 矿产品 | N61: 410 | O61: 360 | P61: 50 | Q61: 50 | S61: 8.2 | T61: 41.8 | U61: 41.8 | V61: 全通秀丽码头 | W61: 鞍钢联众（广州）不锈钢有限公司 | X61: 23.65 | AB61: 2019-02-13 10:05 | AC61: 2月 | AD61: 粤AN2255 | AE61: FCIU4197963 | AF61: 2019-01-03 | AG61: 珉丰二场 | AH61: 李锦坚 | AI61: 广州
A62: 业务完结 | B62: 2019-01-02 | C62: 2019-01-03 | D62: 1月 | E62: 2019-01-03 00:00 | F62: 鞍钢联众（广州）不锈钢有限公司 | G62: 鞍钢联众（广州）不锈钢有限公司 | H62: QYD19010003T01 | I62: 广州市永盈物流有限公司 | J62: 集装箱 | K62: 1 | L62: 铬铁 | M62: 矿产品 | N62: 410 | O62: 360 | P62: 50 | Q62: 50 | S62: 8.2 | T62: 41.8 | U62: 41.8 | V62: 全通秀丽码头 | W62: 鞍钢联众（广州）不锈钢有限公司 | X62: 23.65 | AB62: 2019-02-13 10:05 | AC62: 2月 | AD62: 粤AN2255 | AE62: GLDU5407279 | AF62: 2019-01-03 | AG62: 珉丰二场 | AH62: 李锦坚 | AI62: 广州
A63: 业务完结 | B63: 2019-01-02 | C63: 2019-01-03 | D63: 1月 | E63: 2019-01-03 00:00 | F63: 鞍钢联众（广州）不锈钢有限公司 | G63: 鞍钢联众（广州）不锈钢有限公司 | H63: QYD19010003T01 | I63: 广州市永盈物流有限公司 | J63: 集装箱 | K63: 1 | L63: 铬铁 | M63: 矿产品 | N63: 410 | O63: 360 | P63: 50 | Q63: 50 | S63: 8.2 | T63: 41.8 | U63: 41.8 | V63: 全通秀丽码头 | W63: 鞍钢联众（广州）不锈钢有限公司 | X63: 23.64 | AB63: 2019-02-13 10:05 | AC63: 2月 | AD63: 粤AN6926 | AE63: MSKU5088900 | AF63: 2019-01-03 | AG63: 珉丰二场 | AH63: 李锦坚 | AI63: 广州
A64: 业务完结 | B64: 2019-01-02 | C64: 2019-01-03 | D64: 1月 | E64: 2019-01-03 00:00 | F64: 鞍钢联众（广州）不锈钢有限公司 | G64: 鞍钢联众（广州）不锈钢有限公司 | H64: QYD19010003T01 | I64: 广州市永盈物流有限公司 | J64: 集装箱 | K64: 1 | L64: 铬铁 | M64: 矿产品 | N64: 410 | O64: 360 | P64: 50 | Q64: 50 | S64: 8.2 | T64: 41.8 | U64: 41.8 | V64: 全通秀丽码头 | W64: 鞍钢联众（广州）不锈钢有限公司 | X64: 23.64 | AB64: 2019-02-13 10:05 | AC64: 2月 | AD64: 粤AN6926 | AE64: MSKU2308467 | AF64: 2019-01-03 | AG64: 珉丰二场 | AH64: 李锦坚 | AI64: 广州
A65: 业务完结 | B65: 2019-01-02 | C65: 2019-01-03 | D65: 1月 | E65: 2019-01-03 00:00 | F65: 鞍钢联众（广州）不锈钢有限公司 | G65: 鞍钢联众（广州）不锈钢有限公司 | H65: QYD19010003T01 | I65: 广州市永盈物流有限公司 | J65: 集装箱 | K65: 1 | L65: 铬铁 | M65: 矿产品 | N65: 410 | O65: 360 | P65: 50 | Q65: 50 | S65: 8.2 | T65: 41.8 | U65: 41.8 | V65: 全通秀丽码头 | W65: 鞍钢联众（广州）不锈钢有限公司 | X65: 24.04 | AB65: 2019-02-13 10:05 | AC65: 2月 | AD65: 粤AN6926 | AE65: TGHU1768789 | AF65: 2019-01-03 | AG65: 珉丰二场 | AH65: 李锦坚 | AI65: 广州
A66: 业务完结 | B66: 2019-01-02 | C66: 2019-01-03 | D66: 1月 | E66: 2019-01-03 00:00 | F66: 鞍钢联众（广州）不锈钢有限公司 | G66: 鞍钢联众（广州）不锈钢有限公司 | H66: QYD19010003T01 | I66: 广州市永盈物流有限公司 | J66: 集装箱 | K66: 1 | L66: 铬铁 | M66: 矿产品 | N66: 27692.08 | O66: 27642.08 | P66: 50 | Q66: 50 | S66: 553.8416 | T66: =P66-R66-S66 -> -503.8416 | U66: -503.8416 | V66: 全通秀丽码头 | W66: 鞍钢联众（广州）不锈钢有限公司 | X66: 23.88 | AB66: 2019-02-13 10:05 | AC66: 2月 | AD66: 粤AD7803 | AE66: GLDU5439888 | AF66: 2019-01-03 | AG66: 珉丰二场 | AH66: 李锦坚 | AI66: 广州
A67: 业务完结 | B67: 2019-01-02 | C67: 2019-01-03 | D67: 1月 | E67: 2019-01-03 00:00 | F67: 鞍钢联众（广州）不锈钢有限公司 | G67: 鞍钢联众（广州）不锈钢有限公司 | H67: QYD19010003T01 | I67: 广州市永盈物流有限公司 | J67: 集装箱 | K67: 1 | L67: 铬铁 | M67: 矿产品 | N67: 410 | O67: 360 | P67: 50 | Q67: 50 | S67: 8.2 | T67: 41.8 | U67: 41.8 | V67: 全通秀丽码头 | W67: 鞍钢联众（广州）不锈钢有限公司 | X67: 23.88 | AB67: 2019-02-13 10:05 | AC67: 2月 | AD67: 粤AD7803 | AE67: TCKU1069147 | AF67: 2019-01-03 | AG67: 珉丰二场 | AH67: 李锦坚 | AI67: 广州
A68: 业务完结 | B68: 2019-01-02 | C68: 2019-01-03 | D68: 1月 | E68: 2019-01-03 00:00 | F68: 鞍钢联众（广州）不锈钢有限公司 | G68: 鞍钢联众（广州）不锈钢有限公司 | H68: QYD19010003T01 | I68: 广州市永盈物流有限公司 | J68: 集装箱 | K68: 1 | L68: 铬铁 | M68: 矿产品 | N68: 410 | O68: 360 | P68: 50 | Q68: 50 | S68: 8.2 | T68: 41.8 | U68: 41.8 | V68: 全通秀丽码头 | W68: 鞍钢联众（广州）不锈钢有限公司 | X68: 24.09 | AB68: 2019-02-13 10:05 | AC68: 2月 | AD68: 粤AF9366 | AE68: PONU0157470 | AF68: 2019-01-03 | AG68: 珉丰二场 | AH68: 李锦坚 | AI68: 广州
A69: 业务完结 | B69: 2019-01-02 | C69: 2019-01-03 | D69: 1月 | E69: 2019-01-03 00:00 | F69: 鞍钢联众（广州）不锈钢有限公司 | G69: 鞍钢联众（广州）不锈钢有限公司 | H69: QYD19010003T01 | I69: 广州市永盈物流有限公司 | J69: 集装箱 | K69: 1 | L69: 铬铁 | M69: 矿产品 | N69: 410 | O69: 360 | P69: 50 | Q69: 50 | S69: 8.2 | T69: 41.8 | U69: 41.8 | V69: 全通秀丽码头 | W69: 鞍钢联众（广州）不锈钢有限公司 | X69: 24.09 | AB69: 2019-02-13 10:05 | AC69: 2月 | AD69: 粤AF9366 | AE69: MSKU4383691 | AF69: 2019-01-03 | AG69: 珉丰二场 | AH69: 李锦坚 | AI69: 广州
A70: 业务完结 | B70: 2019-01-02 | C70: 2019-01-03 | D70: 1月 | E70: 2019-01-03 00:00 | F70: 鞍钢联众（广州）不锈钢有限公司 | G70: 鞍钢联众（广州）不锈钢有限公司 | H70: QYD19010003T01 | I70: 广州市永盈物流有限公司 | J70: 集装箱 | K70: 1 | L70: 铬铁 | M70: 矿产品 | N70: 410 | O70: 360 | P70: 50 | Q70: 50 | S70: 8.2 | T70: 41.8 | U70: 41.8 | V70: 全通秀丽码头 | W70: 鞍钢联众（广州）不锈钢有限公司 | X70: 23.88 | AB70: 2019-02-13 10:05 | AC70: 2月 | AD70: 粤AF9366 | AE70: MRKU8116650 | AF70: 2019-01-03 | AG70: 珉丰二场 | AH70: 李锦坚 | AI70: 广州
A71: 业务完结 | B71: 2019-01-02 | C71: 2019-01-03 | D71: 1月 | E71: 2019-01-03 00:00 | F71: 鞍钢联众（广州）不锈钢有限公司 | G71: 鞍钢联众（广州）不锈钢有限公司 | H71: QYD19010003T01 | I71: 广州市永盈物流有限公司 | J71: 集装箱 | K71: 1 | L71: 铬铁 | M71: 矿产品 | N71: 410 | O71: 360 | P71: 50 | Q71: 50 | S71: 8.2 | T71: 41.8 | U71: 41.8 | V71: 全通秀丽码头 | W71: 鞍钢联众（广州）不锈钢有限公司 | X71: 23.88 | AB71: 2019-02-13 10:05 | AC71: 2月 | AD71: 粤AF9366 | AE71: MSKU2348829 | AF71: 2019-01-03 | AG71: 珉丰二场 | AH71: 李锦坚 | AI71: 广州
A72: 业务完结 | B72: 2019-01-02 | C72: 2019-01-03 | D72: 1月 | E72: 2019-01-03 00:00 | F72: 鞍钢联众（广州）不锈钢有限公司 | G72: 鞍钢联众（广州）不锈钢有限公司 | H72: QYD19010003T01 | I72: 广州市永盈物流有限公司 | J72: 集装箱 | K72: 1 | L72: 铬铁 | M72: 矿产品 | N72: 410 | O72: 360 | P72: 50 | Q72: 50 | S72: 8.2 | T72: 41.8 | U72: 41.8 | V72: 全通秀丽码头 | W72: 鞍钢联众（广州）不锈钢有限公司 | X72: 23.99 | AB72: 2019-02-13 10:05 | AC72: 2月 | AD72: 豫P48279 | AE72: MSKU7520294 | AF72: 2019-01-03 | AG72: 珉丰二场 | AH72: 李锦坚 | AI72: 广州
A73: 业务完结 | B73: 2019-01-02 | C73: 2019-01-03 | D73: 1月 | E73: 2019-01-03 00:00 | F73: 鞍钢联众（广州）不锈钢有限公司 | G73: 鞍钢联众（广州）不锈钢有限公司 | H73: QYD19010003T01 | I73: 广州市永盈物流有限公司 | J73: 集装箱 | K73: 1 | L73: 铬铁 | M73: 矿产品 | N73: 410 | O73: 360 | P73: 50 | Q73: 50 | S73: 8.2 | T73: 41.8 | U73: 41.8 | V73: 全通秀丽码头 | W73: 鞍钢联众（广州）不锈钢有限公司 | X73: 23.99 | AB73: 2019-02-13 10:05 | AC73: 2月 | AD73: 豫P48279 | AE73: GESU3416589 | AF73: 2019-01-03 | AG73: 珉丰二场 | AH73: 李锦坚 | AI73: 广州
A74: 业务完结 | B74: 2019-01-02 | C74: 2019-01-03 | D74: 1月 | E74: 2019-01-03 00:00 | F74: 鞍钢联众（广州）不锈钢有限公司 | G74: 鞍钢联众（广州）不锈钢有限公司 | H74: QYD19010003T01 | I74: 广州市永盈物流有限公司 | J74: 集装箱 | K74: 1 | L74: 铬铁 | M74: 矿产品 | N74: 410 | O74: 360 | P74: 50 | Q74: 50 | S74: 8.2 | T74: 41.8 | U74: 41.8 | V74: 全通秀丽码头 | W74: 鞍钢联众（广州）不锈钢有限公司 | X74: 23.9 | AB74: 2019-02-13 10:05 | AC74: 2月 | AD74: 粤ABJ160 | AE74: MSKU3567159 | AF74: 2019-01-03 | AG74: 珉丰二场 | AH74: 李锦坚 | AI74: 广州
A75: 业务完结 | B75: 2019-01-02 | C75: 2019-01-03 | D75: 1月 | E75: 2019-01-03 00:00 | F75: 鞍钢联众（广州）不锈钢有限公司 | G75: 鞍钢联众（广州）不锈钢有限公司 | H75: QYD19010003T01 | I75: 广州市永盈物流有限公司 | J75: 集装箱 | K75: 1 | L75: 铬铁 | M75: 矿产品 | N75: 410 | O75: 360 | P75: 50 | Q75: 50 | S75: 8.2 | T75: 41.8 | U75: 41.8 | V75: 全通秀丽码头 | W75: 鞍钢联众（广州）不锈钢有限公司 | X75: 23.9 | AB75: 2019-02-13 10:05 | AC75: 2月 | AD75: 粤ABJ160 | AE75: MRKU7021647 | AF75: 2019-01-03 | AG75: 珉丰二场 | AH75: 李锦坚 | AI75: 广州
A76: 业务完结 | B76: 2019-01-02 | C76: 2019-01-04 | D76: 1月 | E76: 2019-01-04 00:00 | F76: 鞍钢联众（广州）不锈钢有限公司 | G76: 鞍钢联众（广州）不锈钢有限公司 | H76: QYD19010002T01 | I76: 广州市永盈物流有限公司 | J76: 集装箱 | K76: 1 | L76: 电解铜板 | M76: 钢材 | N76: 415 | O76: 360 | P76: 55 | Q76: 55 | S76: 8.3 | T76: 46.7 | U76: 46.7 | V76: 全通秀丽码头 | W76: 鞍钢联众（广州）不锈钢有限公司 | X76: 25.93 | AB76: 2019-02-13 10:08 | AC76: 2月 | AD76: 粤ABJ160 | AE76: TRLU3846073 | AF76: 2019-01-04 | AG76: 南岗中集 | AH76: 李锦坚 | AI76: 广州
A77: 业务完结 | B77: 2019-01-02 | C77: 2019-01-04 | D77: 1月 | E77: 2019-01-04 00:00 | F77: 鞍钢联众（广州）不锈钢有限公司 | G77: 鞍钢联众（广州）不锈钢有限公司 | H77: QYD19010002T01 | I77: 广州市永盈物流有限公司 | J77: 集装箱 | K77: 1 | L77: 电解铜板 | M77: 钢材 | N77: 415 | O77: 360 | P77: 55 | Q77: 55 | S77: 8.3 | T77: 46.7 | U77: 46.7 | V77: 全通秀丽码头 | W77: 鞍钢联众（广州）不锈钢有限公司 | X77: 25.93 | AB77: 2019-02-13 10:08 | AC77: 2月 | AD77: 粤ABJ160 | AE77: MSKU2338796 | AF77: 2019-01-04 | AG77: 南岗中集 | AH77: 李锦坚 | AI77: 广州
A78: 业务完结 | B78: 2019-01-02 | C78: 2019-01-04 | D78: 1月 | E78: 2019-01-04 00:00 | F78: 鞍钢联众（广州）不锈钢有限公司 | G78: 鞍钢联众（广州）不锈钢有限公司 | H78: QYD19010002T01 | I78: 广州市永盈物流有限公司 | J78: 集装箱 | K78: 1 | L78: 电解铜板 | M78: 钢材 | N78: 415 | O78: 360 | P78: 55 | Q78: 55 | S78: 8.3 | T78: 46.7 | U78: 46.7 | V78: 全通秀丽码头 | W78: 鞍钢联众（广州）不锈钢有限公司 | X78: 24.45 | AB78: 2019-02-13 10:08 | AC78: 2月 | AD78: 豫P48279 | AE78: MSKU3299890 | AF78: 2019-01-04 | AG78: 南岗中集 | AH78: 李锦坚 | AI78: 广州
A79: 业务完结 | B79: 2019-01-02 | C79: 2019-01-04 | D79: 1月 | E79: 2019-01-04 00:00 | F79: 鞍钢联众（广州）不锈钢有限公司 | G79: 鞍钢联众（广州）不锈钢有限公司 | H79: QYD19010002T01 | I79: 广州市永盈物流有限公司 | J79: 集装箱 | K79: 1 | L79: 电解铜板 | M79: 钢材 | N79: 415 | O79: 360 | P79: 55 | Q79: 55 | S79: 8.3 | T79: 46.7 | U79: 46.7 | V79: 全通秀丽码头 | W79: 鞍钢联众（广州）不锈钢有限公司 | X79: 25.52 | AB79: 2019-02-13 10:08 | AC79: 2月 | AD79: 粤AD7803 | AE79: SUDU1336956 | AF79: 2019-01-04 | AG79: 南岗中集 | AH79: 李锦坚 | AI79: 广州
A80: 业务完结 | B80: 2019-01-02 | C80: 2019-01-04 | D80: 1月 | E80: 2019-01-04 00:00 | F80: 鞍钢联众（广州）不锈钢有限公司 | G80: 鞍钢联众（广州）不锈钢有限公司 | H80: QYD19010002T01 | I80: 广州市永盈物流有限公司 | J80: 集装箱 | K80: 1 | L80: 电解铜板 | M80: 钢材 | N80: 415 | O80: 360 | P80: 55 | Q80: 55 | S80: 8.3 | T80: 46.7 | U80: 46.7 | V80: 全通秀丽码头 | W80: 鞍钢联众（广州）不锈钢有限公司 | X80: 24.45 | AB80: 2019-02-13 10:08 | AC80: 2月 | AD80: 豫P48279 | AE80: MSKU7614773 | AF80: 2019-01-04 | AG80: 南岗中集 | AH80: 李锦坚 | AI80: 广州
A81: 业务完结 | B81: 2019-01-02 | C81: 2019-01-04 | D81: 1月 | E81: 2019-01-04 00:00 | F81: 鞍钢联众（广州）不锈钢有限公司 | G81: 鞍钢联众（广州）不锈钢有限公司 | H81: QYD19010002T01 | I81: 广州市永盈物流有限公司 | J81: 集装箱 | K81: 1 | L81: 电解铜板 | M81: 钢材 | N81: 415 | O81: 360 | P81: 55 | Q81: 55 | S81: 8.3 | T81: 46.7 | U81: 46.7 | V81: 全通秀丽码头 | W81: 鞍钢联众（广州）不锈钢有限公司 | X81: 25.52 | AB81: 2019-02-13 10:08 | AC81: 2月 | AD81: 粤AD7803 | AE81: MRKU8165865 | AF81: 2019-01-04 | AG81: 南岗中集 | AH81: 李锦坚 | AI81: 广州
A82: 业务完结 | B82: 2019-01-02 | C82: 2019-01-04 | D82: 1月 | E82: 2019-01-04 00:00 | F82: 鞍钢联众（广州）不锈钢有限公司 | G82: 鞍钢联众（广州）不锈钢有限公司 | H82: QYD19010003T01 | I82: 广州市永盈物流有限公司 | J82: 集装箱 | K82: 1 | L82: 铬铁 | M82: 矿产品 | N82: 410 | O82: 360 | P82: 50 | Q82: 50 | S82: 8.2 | T82: 41.8 | U82: 41.8 | V82: 全通秀丽码头 | W82: 鞍钢联众（广州）不锈钢有限公司 | AB82: 2019-02-13 10:05 | AC82: 2月 | AD82: 粤A92417 | AE82: CLHU2747086 | AF82: 2019-01-04 | AG82: 珉丰二场 | AH82: 李锦坚 | AI82: 广州
A83: 业务完结 | B83: 2019-01-02 | C83: 2019-01-04 | D83: 1月 | E83: 2019-01-04 00:00 | F83: 鞍钢联众（广州）不锈钢有限公司 | G83: 鞍钢联众（广州）不锈钢有限公司 | H83: QYD19010003T01 | I83: 广州市永盈物流有限公司 | J83: 集装箱 | K83: 1 | L83: 铬铁 | M83: 矿产品 | N83: 410 | O83: 360 | P83: 50 | Q83: 50 | S83: 8.2 | T83: 41.8 | U83: 41.8 | V83: 全通秀丽码头 | W83: 鞍钢联众（广州）不锈钢有限公司 | AB83: 2019-02-13 10:05 | AC83: 2月 | AD83: 粤A92417 | AE83: CLHU2761470 | AF83: 2019-01-04 | AG83: 珉丰二场 | AH83: 李锦坚 | AI83: 广州
A84: 业务完结 | B84: 2019-01-02 | C84: 2019-01-04 | D84: 1月 | E84: 2019-01-04 00:00 | F84: 鞍钢联众（广州）不锈钢有限公司 | G84: 鞍钢联众（广州）不锈钢有限公司 | H84: QYD19010003T01 | I84: 广州市永盈物流有限公司 | J84: 集装箱 | K84: 1 | L84: 铬铁 | M84: 矿产品 | N84: 410 | O84: 360 | P84: 50 | Q84: 50 | S84: 8.2 | T84: 41.8 | U84: 41.8 | V84: 全通秀丽码头 | W84: 鞍钢联众（广州）不锈钢有限公司 | AB84: 2019-02-13 10:05 | AC84: 2月 | AD84: 粤ABJ160 | AE84: MSKU7913964 | AF84: 2019-01-04 | AG84: 珉丰二场 | AH84: 李锦坚 | AI84: 广州
A85: 业务完结 | B85: 2019-01-02 | C85: 2019-01-04 | D85: 1月 | E85: 2019-01-04 00:00 | F85: 鞍钢联众（广州）不锈钢有限公司 | G85: 鞍钢联众（广州）不锈钢有限公司 | H85: QYD19010003T01 | I85: 广州市永盈物流有限公司 | J85: 集装箱 | K85: 1 | L85: 铬铁 | M85: 矿产品 | N85: 410 | O85: 360 | P85: 50 | Q85: 50 | S85: 8.2 | T85: 41.8 | U85: 41.8 | V85: 全通秀丽码头 | W85: 鞍钢联众（广州）不锈钢有限公司 | X85: 24.04 | AB85: 2019-02-13 10:05 | AC85: 2月 | AD85: 粤AN6926 | AE85: MRKU9537170 | AF85: 2019-01-04 | AG85: 珉丰二场 | AH85: 李锦坚 | AI85: 广州
A86: 业务完结 | B86: 2019-01-02 | C86: 2019-01-04 | D86: 1月 | E86: 2019-01-04 00:00 | F86: 鞍钢联众（广州）不锈钢有限公司 | G86: 鞍钢联众（广州）不锈钢有限公司 | H86: QYD19010003T01 | I86: 广州市永盈物流有限公司 | J86: 集装箱 | K86: 1 | L86: 铬铁 | M86: 矿产品 | N86: 410 | O86: 360 | P86: 50 | Q86: 50 | S86: 8.2 | T86: 41.8 | U86: 41.8 | V86: 全通秀丽码头 | W86: 鞍钢联众（广州）不锈钢有限公司 | X86: 23.72 | AB86: 2019-02-13 10:05 | AC86: 2月 | AD86: 粤A92417 | AE86: MSKU5845351 | AF86: 2019-01-04 | AG86: 珉丰二场 | AH86: 李锦坚 | AI86: 广州
A87: 业务完结 | B87: 2019-01-02 | C87: 2019-01-04 | D87: 1月 | E87: 2019-01-04 00:00 | F87: 鞍钢联众（广州）不锈钢有限公司 | G87: 鞍钢联众（广州）不锈钢有限公司 | H87: QYD19010003T01 | I87: 广州市永盈物流有限公司 | J87: 集装箱 | K87: 1 | L87: 铬铁 | M87: 矿产品 | N87: 410 | O87: 360 | P87: 50 | Q87: 50 | S87: 8.2 | T87: 41.8 | U87: 41.8 | V87: 全通秀丽码头 | W87: 鞍钢联众（广州）不锈钢有限公司 | X87: 23.72 | AB87: 2019-02-13 10:05 | AC87: 2月 | AD87: 粤A92417 | AE87: GESU3313997 | AF87: 2019-01-04 | AG87: 珉丰二场 | AH87: 李锦坚 | AI87: 广州
A88: 业务完结 | B88: 2019-01-02 | C88: 2019-01-04 | D88: 1月 | E88: 2019-01-04 00:00 | F88: 鞍钢联众（广州）不锈钢有限公司 | G88: 鞍钢联众（广州）不锈钢有限公司 | H88: QYD19010003T01 | I88: 广州市永盈物流有限公司 | J88: 集装箱 | K88: 1 | L88: 铬铁 | M88: 矿产品 | N88: 410 | O88: 360 | P88: 50 | Q88: 50 | S88: 8.2 | T88: 41.8 | U88: 41.8 | V88: 全通秀丽码头 | W88: 鞍钢联众（广州）不锈钢有限公司 | X88: 24 | AB88: 2019-02-13 10:05 | AC88: 2月 | AD88: 粤AAR717 | AE88: IPXU3616140 | AF88: 2019-01-04 | AG88: 珉丰二场 | AH88: 李锦坚 | AI88: 广州
A89: 业务完结 | B89: 2019-01-02 | C89: 2019-01-04 | D89: 1月 | E89: 2019-01-04 00:00 | F89: 鞍钢联众（广州）不锈钢有限公司 | G89: 鞍钢联众（广州）不锈钢有限公司 | H89: QYD19010003T01 | I89: 广州市永盈物流有限公司 | J89: 集装箱 | K89: 1 | L89: 铬铁 | M89: 矿产品 | N89: 410 | O89: 360 | P89: 50 | Q89: 50 | S89: 8.2 | T89: 41.8 | U89: 41.8 | V89: 全通秀丽码头 | W89: 鞍钢联众（广州）不锈钢有限公司 | X89: 24 | AB89: 2019-02-13 10:05 | AC89: 2月 | AD89: 粤AAR717 | AE89: MAEU6756538 | AF89: 2019-01-04 | AG89: 珉丰二场 | AH89: 李锦坚 | AI89: 广州
A90: 业务完结 | B90: 2019-01-02 | C90: 2019-01-04 | D90: 1月 | E90: 2019-01-04 00:00 | F90: 鞍钢联众（广州）不锈钢有限公司 | G90: 鞍钢联众（广州）不锈钢有限公司 | H90: QYD19010003T01 | I90: 广州市永盈物流有限公司 | J90: 集装箱 | K90: 1 | L90: 铬铁 | M90: 矿产品 | N90: 410 | O90: 360 | P90: 50 | Q90: 50 | S90: 8.2 | T90: 41.8 | U90: 41.8 | V90: 全通秀丽码头 | W90: 鞍钢联众（广州）不锈钢有限公司 | X90: 23.97 | AB90: 2019-02-13 10:05 | AC90: 2月 | AD90: 粤AAR717 | AE90: MSKU4484953 | AF90: 2019-01-04 | AG90: 珉丰二场 | AH90: 李锦坚 | AI90: 广州
A91: 业务完结 | B91: 2019-01-02 | C91: 2019-01-04 | D91: 1月 | E91: 2019-01-04 00:00 | F91: 鞍钢联众（广州）不锈钢有限公司 | G91: 鞍钢联众（广州）不锈钢有限公司 | H91: QYD19010003T01 | I91: 广州市永盈物流有限公司 | J91: 集装箱 | K91: 1 | L91: 铬铁 | M91: 矿产品 | N91: 410 | O91: 360 | P91: 50 | Q91: 50 | S91: 8.2 | T91: 41.8 | U91: 41.8 | V91: 全通秀丽码头 | W91: 鞍钢联众（广州）不锈钢有限公司 | X91: 23.97 | AB91: 2019-02-13 10:05 | AC91: 2月 | AD91: 粤AAR717 | AE91: CLHU3253093 | AF91: 2019-01-04 | AG91: 珉丰二场 | AH91: 李锦坚 | AI91: 广州
A92: 业务完结 | B92: 2019-01-02 | C92: 2019-01-04 | D92: 1月 | E92: 2019-01-04 00:00 | F92: 鞍钢联众（广州）不锈钢有限公司 | G92: 鞍钢联众（广州）不锈钢有限公司 | H92: QYD19010003T01 | I92: 广州市永盈物流有限公司 | J92: 集装箱 | K92: 1 | L92: 铬铁 | M92: 矿产品 | N92: 410 | O92: 360 | P92: 50 | Q92: 50 | S92: 8.2 | T92: 41.8 | U92: 41.8 | V92: 全通秀丽码头 | W92: 鞍钢联众（广州）不锈钢有限公司 | X92: 23.81 | AB92: 2019-02-13 10:05 | AC92: 2月 | AD92: 粤A92417 | AE92: SCMU2034206 | AF92: 2019-01-04 | AG92: 珉丰二场 | AH92: 李锦坚 | AI92: 广州
A93: 业务完结 | B93: 2019-01-02 | C93: 2019-01-04 | D93: 1月 | E93: 2019-01-04 00:00 | F93: 鞍钢联众（广州）不锈钢有限公司 | G93: 鞍钢联众（广州）不锈钢有限公司 | H93: QYD19010003T01 | I93: 广州市永盈物流有限公司 | J93: 集装箱 | K93: 1 | L93: 铬铁 | M93: 矿产品 | N93: 410 | O93: 360 | P93: 50 | Q93: 50 | S93: 8.2 | T93: 41.8 | U93: 41.8 | V93: 全通秀丽码头 | W93: 鞍钢联众（广州）不锈钢有限公司 | X93: 23.81 | AB93: 2019-02-13 10:05 | AC93: 2月 | AD93: 粤A92417 | AE93: MRKU6944980 | AF93: 2019-01-04 | AG93: 珉丰二场 | AH93: 李锦坚 | AI93: 广州
A94: 业务完结 | B94: 2019-01-02 | C94: 2019-01-04 | D94: 1月 | E94: 2019-01-04 00:00 | F94: 鞍钢联众（广州）不锈钢有限公司 | G94: 鞍钢联众（广州）不锈钢有限公司 | H94: QYD19010003T01 | I94: 广州市永盈物流有限公司 | J94: 集装箱 | K94: 1 | L94: 铬铁 | M94: 矿产品 | N94: 410 | O94: 360 | P94: 50 | Q94: 50 | S94: 8.2 | T94: 41.8 | U94: 41.8 | V94: 全通秀丽码头 | W94: 鞍钢联众（广州）不锈钢有限公司 | X94: 23.71 | AB94: 2019-02-13 10:05 | AC94: 2月 | AD94: 豫P1D220 | AE94: MRKU7273802 | AF94: 2019-01-04 | AG94: 珉丰二场 | AH94: 李锦坚 | AI94: 广州
A95: 业务完结 | B95: 2019-01-02 | C95: 2019-01-04 | D95: 1月 | E95: 2019-01-04 00:00 | F95: 鞍钢联众（广州）不锈钢有限公司 | G95: 鞍钢联众（广州）不锈钢有限公司 | H95: QYD19010003T01 | I95: 广州市永盈物流有限公司 | J95: 集装箱 | K95: 1 | L95: 铬铁 | M95: 矿产品 | N95: 410 | O95: 360 | P95: 50 | Q95: 50 | S95: 8.2 | T95: 41.8 | U95: 41.8 | V95: 全通秀丽码头 | W95: 鞍钢联众（广州）不锈钢有限公司 | X95: 23.71 | AB95: 2019-02-13 10:05 | AC95: 2月 | AD95: 豫P1D220 | AE95: MSKU4494437 | AF95: 2019-01-04 | AG95: 珉丰二场 | AH95: 李锦坚 | AI95: 广州
A96: 业务完结 | B96: 2019-01-02 | C96: 2019-01-04 | D96: 1月 | E96: 2019-01-04 00:00 | F96: 鞍钢联众（广州）不锈钢有限公司 | G96: 鞍钢联众（广州）不锈钢有限公司 | H96: QYD19010003T01 | I96: 广州市永盈物流有限公司 | J96: 集装箱 | K96: 1 | L96: 铬铁 | M96: 矿产品 | N96: 410 | O96: 360 | P96: 50 | Q96: 50 | S96: 8.2 | T96: 41.8 | U96: 41.8 | V96: 全通秀丽码头 | W96: 鞍钢联众（广州）不锈钢有限公司 | X96: 24.04 | AB96: 2019-02-13 10:05 | AC96: 2月 | AD96: 粤A92417 | AE96: MRKU7672417 | AF96: 2019-01-04 | AG96: 珉丰二场 | AH96: 李锦坚 | AI96: 广州
A97: 业务完结 | B97: 2019-01-02 | C97: 2019-01-04 | D97: 1月 | E97: 2019-01-04 00:00 | F97: 鞍钢联众（广州）不锈钢有限公司 | G97: 鞍钢联众（广州）不锈钢有限公司 | H97: QYD19010003T01 | I97: 广州市永盈物流有限公司 | J97: 集装箱 | K97: 1 | L97: 铬铁 | M97: 矿产品 | N97: 410 | O97: 360 | P97: 50 | Q97: 50 | S97: 8.2 | T97: 41.8 | U97: 41.8 | V97: 全通秀丽码头 | W97: 鞍钢联众（广州）不锈钢有限公司 | X97: 24.08 | AB97: 2019-02-13 10:05 | AC97: 2月 | AD97: 粤A92417 | AE97: MRKU8460860 | AF97: 2019-01-04 | AG97: 珉丰二场 | AH97: 李锦坚 | AI97: 广州
A98: 业务完结 | B98: 2019-01-02 | C98: 2019-01-04 | D98: 1月 | E98: 2019-01-04 00:00 | F98: 鞍钢联众（广州）不锈钢有限公司 | G98: 鞍钢联众（广州）不锈钢有限公司 | H98: QYD19010003T01 | I98: 广州市永盈物流有限公司 | J98: 集装箱 | K98: 1 | L98: 铬铁 | M98: 矿产品 | N98: 410 | O98: 360 | P98: 50 | Q98: 50 | S98: 8.2 | T98: 41.8 | U98: 41.8 | V98: 全通秀丽码头 | W98: 鞍钢联众（广州）不锈钢有限公司 | X98: 24.11 | AB98: 2019-02-13 10:05 | AC98: 2月 | AD98: 粤A92417 | AE98: MSKU7688930 | AF98: 2019-01-04 | AG98: 珉丰二场 | AH98: 李锦坚 | AI98: 广州
A99: 业务完结 | B99: 2019-01-02 | C99: 2019-01-04 | D99: 1月 | E99: 2019-01-04 00:00 | F99: 鞍钢联众（广州）不锈钢有限公司 | G99: 鞍钢联众（广州）不锈钢有限公司 | H99: QYD19010003T01 | I99: 广州市永盈物流有限公司 | J99: 集装箱 | K99: 1 | L99: 铬铁 | M99: 矿产品 | N99: 410 | O99: 360 | P99: 50 | Q99: 50 | S99: 8.2 | T99: 41.8 | U99: 41.8 | V99: 全通秀丽码头 | W99: 鞍钢联众（广州）不锈钢有限公司 | X99: 24.11 | AB99: 2019-02-13 10:05 | AC99: 2月 | AD99: 粤A92417 | AE99: TGHU3275499 | AF99: 2019-01-04 | AG99: 珉丰二场 | AH99: 李锦坚 | AI99: 广州
A100: 业务完结 | B100: 2019-01-02 | C100: 2019-01-04 | D100: 1月 | E100: 2019-01-04 00:00 | F100: 鞍钢联众（广州）不锈钢有限公司 | G100: 鞍钢联众（广州）不锈钢有限公司 | H100: QYD19010003T01 | I100: 广州市永盈物流有限公司 | J100: 集装箱 | K100: 1 | L100: 铬铁 | M100: 矿产品 | N100: 410 | O100: 360 | P100: 50 | Q100: 50 | S100: 8.2 | T100: 41.8 | U100: 41.8 | V100: 全通秀丽码头 | W100: 鞍钢联众（广州）不锈钢有限公司 | AB100: 2019-02-13 10:05 | AC100: 2月 | AD100: 粤ABJ160 | AE100: MSKU4109530 | AF100: 2019-01-04 | AG100: 珉丰二场 | AH100: 李锦坚 | AI100: 广州
A101: 业务完结 | B101: 2019-01-02 | C101: 2019-01-04 | D101: 1月 | E101: 2019-01-04 00:00 | F101: 鞍钢联众（广州）不锈钢有限公司 | G101: 鞍钢联众（广州）不锈钢有限公司 | H101: QYD19010003T01 | I101: 广州市永盈物流有限公司 | J101: 集装箱 | K101: 1 | L101: 铬铁 | M101: 矿产品 | N101: 410 | O101: 360 | P101: 50 | Q101: 50 | S101: 8.2 | T101: 41.8 | U101: 41.8 | V101: 全通秀丽码头 | W101: 鞍钢联众（广州）不锈钢有限公司 | AB101: 2019-02-13 10:05 | AC101: 2月 | AD101: 粤AN6926 | AE101: TLLU2155137 | AF101: 2019-01-04 | AG101: 珉丰二场 | AH101: 李锦坚 | AI101: 广州
A102: 业务完结 | B102: 2019-01-02 | C102: 2019-01-04 | D102: 1月 | E102: 2019-01-04 00:00 | F102: 鞍钢联众（广州）不锈钢有限公司 | G102: 鞍钢联众（广州）不锈钢有限公司 | H102: QYD19010003T01 | I102: 广州市永盈物流有限公司 | J102: 集装箱 | K102: 1 | L102: 铬铁 | M102: 矿产品 | N102: 410 | O102: 360 | P102: 50 | Q102: 50 | S102: 8.2 | T102: 41.8 | U102: 41.8 | V102: 全通秀丽码头 | W102: 鞍钢联众（广州）不锈钢有限公司 | X102: 24.08 | AB102: 2019-02-13 10:05 | AC102: 2月 | AD102: 粤AAR717 | AE102: BMOU2068022 | AF102: 2019-01-04 | AG102: 珉丰二场 | AH102: 李锦坚 | AI102: 广州
A103: 业务完结 | B103: 2019-01-02 | C103: 2019-01-04 | D103: 1月 | E103: 2019-01-04 00:00 | F103: 鞍钢联众（广州）不锈钢有限公司 | G103: 鞍钢联众（广州）不锈钢有限公司 | H103: QYD19010003T01 | I103: 广州市永盈物流有限公司 | J103: 集装箱 | K103: 1 | L103: 铬铁 | M103: 矿产品 | N103: 410 | O103: 360 | P103: 50 | Q103: 50 | S103: 8.2 | T103: 41.8 | U103: 41.8 | V103: 全通秀丽码头 | W103: 鞍钢联众（广州）不锈钢有限公司 | X103: 24.08 | AB103: 2019-02-13 10:05 | AC103: 2月 | AD103: 粤AAR717 | AE103: GLDU5567560 | AF103: 2019-01-04 | AG103: 珉丰二场 | AH103: 李锦坚 | AI103: 广州
A104: 业务完结 | B104: 2019-01-02 | C104: 2019-01-04 | D104: 1月 | E104: 2019-01-04 00:00 | F104: 鞍钢联众（广州）不锈钢有限公司 | G104: 鞍钢联众（广州）不锈钢有限公司 | H104: QYD19010003T01 | I104: 广州市永盈物流有限公司 | J104: 集装箱 | K104: 1 | L104: 铬铁 | M104: 矿产品 | N104: 410 | O104: 360 | P104: 50 | Q104: 50 | S104: 8.2 | T104: 41.8 | U104: 41.8 | V104: 全通秀丽码头 | W104: 鞍钢联众（广州）不锈钢有限公司 | X104: 24.09 | AB104: 2019-02-13 10:05 | AC104: 2月 | AD104: 粤AAR717 | AE104: MRKU9982690 | AF104: 2019-01-04 | AG104: 珉丰二场 | AH104: 李锦坚 | AI104: 广州
A105: 业务完结 | B105: 2019-01-02 | C105: 2019-01-04 | D105: 1月 | E105: 2019-01-04 00:00 | F105: 鞍钢联众（广州）不锈钢有限公司 | G105: 鞍钢联众（广州）不锈钢有限公司 | H105: QYD19010003T01 | I105: 广州市永盈物流有限公司 | J105: 集装箱 | K105: 1 | L105: 铬铁 | M105: 矿产品 | N105: 410 | O105: 360 | P105: 50 | Q105: 50 | S105: 8.2 | T105: 41.8 | U105: 41.8 | V105: 全通秀丽码头 | W105: 鞍钢联众（广州）不锈钢有限公司 | X105: 24.09 | AB105: 2019-02-13 10:05 | AC105: 2月 | AD105: 粤AAR717 | AE105: MSKU3006374 | AF105: 2019-01-04 | AG105: 珉丰二场 | AH105: 李锦坚 | AI105: 广州
A106: 业务完结 | B106: 2019-01-02 | C106: 2019-01-04 | D106: 1月 | E106: 2019-01-04 00:00 | F106: 鞍钢联众（广州）不锈钢有限公司 | G106: 鞍钢联众（广州）不锈钢有限公司 | H106: QYD19010003T01 | I106: 广州市永盈物流有限公司 | J106: 集装箱 | K106: 1 | L106: 铬铁 | M106: 矿产品 | N106: 410 | O106: 360 | P106: 50 | Q106: 50 | S106: 8.2 | T106: 41.8 | U106: 41.8 | V106: 全通秀丽码头 | W106: 鞍钢联众（广州）不锈钢有限公司 | X106: 23.75 | AB106: 2019-02-13 10:05 | AC106: 2月 | AD106: 豫P1D220 | AE106: CAIU2431652 | AF106: 2019-01-04 | AG106: 珉丰二场 | AH106: 李锦坚 | AI106: 广州
A107: 业务完结 | B107: 2019-01-02 | C107: 2019-01-04 | D107: 1月 | E107: 2019-01-04 00:00 | F107: 鞍钢联众（广州）不锈钢有限公司 | G107: 鞍钢联众（广州）不锈钢有限公司 | H107: QYD19010003T01 | I107: 广州市永盈物流有限公司 | J107: 集装箱 | K107: 1 | L107: 铬铁 | M107: 矿产品 | N107: 410 | O107: 360 | P107: 50 | Q107: 50 | S107: 8.2 | T107: 41.8 | U107: 41.8 | V107: 全通秀丽码头 | W107: 鞍钢联众（广州）不锈钢有限公司 | X107: 23.75 | AB107: 2019-02-13 10:05 | AC107: 2月 | AD107: 豫P1D220 | AE107: TGHU3681230 | AF107: 2019-01-04 | AG107: 珉丰二场 | AH107: 李锦坚 | AI107: 广州
A108: 业务完结 | B108: 2019-01-02 | C108: 2019-01-04 | D108: 1月 | E108: 2019-01-04 00:00 | F108: 鞍钢联众（广州）不锈钢有限公司 | G108: 鞍钢联众（广州）不锈钢有限公司 | H108: QYD19010003T01 | I108: 广州市永盈物流有限公司 | J108: 集装箱 | K108: 1 | L108: 铬铁 | M108: 矿产品 | N108: 410 | O108: 360 | P108: 50 | Q108: 50 | S108: 8.2 | T108: 41.8 | U108: 41.8 | V108: 全通秀丽码头 | W108: 鞍钢联众（广州）不锈钢有限公司 | X108: 23.71 | AB108: 2019-02-13 10:05 | AC108: 2月 | AD108: 豫P1D220 | AE108: PONU0205705 | AF108: 2019-01-04 | AG108: 珉丰二场 | AH108: 李锦坚 | AI108: 广州
A109: 业务完结 | B109: 2019-01-02 | C109: 2019-01-04 | D109: 1月 | E109: 2019-01-04 00:00 | F109: 鞍钢联众（广州）不锈钢有限公司 | G109: 鞍钢联众（广州）不锈钢有限公司 | H109: QYD19010003T01 | I109: 广州市永盈物流有限公司 | J109: 集装箱 | K109: 1 | L109: 铬铁 | M109: 矿产品 | N109: 410 | O109: 360 | P109: 50 | Q109: 50 | S109: 8.2 | T109: 41.8 | U109: 41.8 | V109: 全通秀丽码头 | W109: 鞍钢联众（广州）不锈钢有限公司 | X109: 23.71 | AB109: 2019-02-13 10:05 | AC109: 2月 | AD109: 豫P1D220 | AE109: CLHU2994379 | AF109: 2019-01-04 | AG109: 珉丰二场 | AH109: 李锦坚 | AI109: 广州
A110: 业务完结 | B110: 2019-01-02 | C110: 2019-01-04 | D110: 1月 | E110: 2019-01-04 00:00 | F110: 鞍钢联众（广州）不锈钢有限公司 | G110: 鞍钢联众（广州）不锈钢有限公司 | H110: QYD19010003T01 | I110: 广州市永盈物流有限公司 | J110: 集装箱 | K110: 1 | L110: 铬铁 | M110: 矿产品 | N110: 410 | O110: 360 | P110: 50 | Q110: 50 | S110: =N110*(8%/12)*3 -> 8.2 | T110: 41.8 | U110: 41.8 | V110: 全通秀丽码头 | W110: 鞍钢联众（广州）不锈钢有限公司 | X110: 24.09 | AB110: 2019-02-13 10:05 | AC110: 2月 | AD110: 粤AN2255 | AE110: BMOU2469283 | AF110: 2019-01-04 | AG110: 珉丰二场 | AH110: 李锦坚 | AI110: 广州
A111: 业务完结 | B111: 2019-01-02 | C111: 2019-01-04 | D111: 1月 | E111: 2019-01-04 00:00 | F111: 鞍钢联众（广州）不锈钢有限公司 | G111: 鞍钢联众（广州）不锈钢有限公司 | H111: QYD19010003T01 | I111: 广州市永盈物流有限公司 | J111: 集装箱 | K111: 1 | L111: 铬铁 | M111: 矿产品 | N111: 410 | O111: 360 | P111: 50 | Q111: =P111 -> 50 | S111: 8.2 | T111: 41.8 | U111: =T111 -> 41.8 | V111: 全通秀丽码头 | W111: 鞍钢联众（广州）不锈钢有限公司 | X111: 24.09 | AB111: 2019-02-13 10:05 | AC111: 2月 | AD111: 粤AN2255 | AE111: MSKU2268106 | AF111: 2019-01-04 | AG111: 珉丰二场 | AH111: 李锦坚 | AI111: 广州
A112: 业务完结 | B112: 2019-01-02 | C112: 2019-01-04 | D112: 1月 | E112: 2019-01-04 00:00 | F112: 鞍钢联众（广州）不锈钢有限公司 | G112: 鞍钢联众（广州）不锈钢有限公司 | H112: QYD19010003T01 | I112: 广州市永盈物流有限公司 | J112: 集装箱 | K112: 1 | L112: 铬铁 | M112: 矿产品 | N112: 410 | O112: 360 | P112: 50 | Q112: 50 | S112: 8.2 | T112: 41.8 | U112: 41.8 | V112: 全通秀丽码头 | W112: 鞍钢联众（广州）不锈钢有限公司 | X112: 23.99 | AB112: 2019-02-13 10:05 | AC112: 2月 | AD112: 粤AN2255 | AE112: MRKU7976847 | AF112: 2019-01-04 | AG112: 珉丰二场 | AH112: 李锦坚 | AI112: 广州
A113: 业务完结 | B113: 2019-01-02 | C113: 2019-01-04 | D113: 1月 | E113: 2019-01-04 00:00 | F113: 鞍钢联众（广州）不锈钢有限公司 | G113: 鞍钢联众（广州）不锈钢有限公司 | H113: QYD19010003T01 | I113: 广州市永盈物流有限公司 | J113: 集装箱 | K113: 1 | L113: 铬铁 | M113: 矿产品 | N113: 410 | O113: 360 | P113: 50 | Q113: 50 | S113: 8.2 | T113: 41.8 | U113: 41.8 | V113: 全通秀丽码头 | W113: 鞍钢联众（广州）不锈钢有限公司 | X113: 23.99 | AB113: 2019-02-13 10:05 | AC113: 2月 | AD113: 粤AN2255 | AE113: TGHU3720608 | AF113: 2019-01-04 | AG113: 珉丰二场 | AH113: 李锦坚 | AI113: 广州
A114: 业务完结 | B114: 2019-01-02 | C114: 2019-01-04 | D114: 1月 | E114: 2019-01-04 00:00 | F114: 鞍钢联众（广州）不锈钢有限公司 | G114: 鞍钢联众（广州）不锈钢有限公司 | H114: QYD19010003T01 | I114: 广州市永盈物流有限公司 | J114: 集装箱 | K114: 1 | L114: 铬铁 | M114: 矿产品 | N114: 410 | O114: 360 | P114: 50 | Q114: 50 | S114: 8.2 | T114: 41.8 | U114: 41.8 | V114: 全通秀丽码头 | W114: 鞍钢联众（广州）不锈钢有限公司 | X114: 23.8 | AB114: 2019-02-13 10:05 | AC114: 2月 | AD114: 豫PJ6110 | AE114: GESU2214140 | AF114: 2019-01-04 | AG114: 珉丰二场 | AH114: 李锦坚 | AI114: 广州
A115: 业务完结 | B115: 2019-01-02 | C115: 2019-01-04 | D115: 1月 | E115: 2019-01-04 00:00 | F115: 鞍钢联众（广州）不锈钢有限公司 | G115: 鞍钢联众（广州）不锈钢有限公司 | H115: QYD19010003T01 | I115: 广州市永盈物流有限公司 | J115: 集装箱 | K115: 1 | L115: 铬铁 | M115: 矿产品 | N115: 410 | O115: 360 | P115: 50 | Q115: 50 | S115: 8.2 | T115: 41.8 | U115: 41.8 | V115: 全通秀丽码头 | W115: 鞍钢联众（广州）不锈钢有限公司 | X115: 23.8 | AB115: 2019-02-13 10:05 | AC115: 2月 | AD115: 豫PJ6110 | AE115: UXXU2423289 | AF115: 2019-01-04 | AG115: 珉丰二场 | AH115: 李锦坚 | AI115: 广州
A116: 业务完结 | B116: 2019-01-02 | C116: 2019-01-04 | D116: 1月 | E116: 2019-01-04 00:00 | F116: 鞍钢联众（广州）不锈钢有限公司 | G116: 鞍钢联众（广州）不锈钢有限公司 | H116: QYD19010003T01 | I116: 广州市永盈物流有限公司 | J116: 集装箱 | K116: 1 | L116: 铬铁 | M116: 矿产品 | N116: 410 | O116: 360 | P116: 50 | Q116: 50 | S116: 8.2 | T116: 41.8 | U116: 41.8 | V116: 全通秀丽码头 | W116: 鞍钢联众（广州）不锈钢有限公司 | X116: 23.64 | AB116: 2019-02-13 10:05 | AC116: 2月 | AD116: 粤AD7849 | AE116: MRKU8540781 | AF116: 2019-01-04 | AG116: 珉丰二场 | AH116: 李锦坚 | AI116: 广州
A117: 业务完结 | B117: 2019-01-02 | C117: 2019-01-04 | D117: 1月 | E117: 2019-01-04 00:00 | F117: 鞍钢联众（广州）不锈钢有限公司 | G117: 鞍钢联众（广州）不锈钢有限公司 | H117: QYD19010003T01 | I117: 广州市永盈物流有限公司 | J117: 集装箱 | K117: 1 | L117: 铬铁 | M117: 矿产品 | N117: 410 | O117: 360 | P117: 50 | Q117: 50 | S117: 8.2 | T117: 41.8 | U117: 41.8 | V117: 全通秀丽码头 | W117: 鞍钢联众（广州）不锈钢有限公司 | X117: 23.64 | AB117: 2019-02-13 10:05 | AC117: 2月 | AD117: 粤AD7849 | AE117: CLHU2758028 | AF117: 2019-01-04 | AG117: 珉丰二场 | AH117: 李锦坚 | AI117: 广州
A118: 业务完结 | B118: 2019-01-02 | C118: 2019-01-04 | D118: 1月 | E118: 2019-01-04 00:00 | F118: 鞍钢联众（广州）不锈钢有限公司 | G118: 鞍钢联众（广州）不锈钢有限公司 | H118: QYD19010003T01 | I118: 广州市永盈物流有限公司 | J118: 集装箱 | K118: 1 | L118: 铬铁 | M118: 矿产品 | N118: 410 | O118: 360 | P118: 50 | Q118: 50 | S118: 8.2 | T118: 41.8 | U118: 41.8 | V118: 全通秀丽码头 | W118: 鞍钢联众（广州）不锈钢有限公司 | X118: 24.14 | AB118: 2019-02-13 10:05 | AC118: 2月 | AD118: 粤AD7849 | AE118: MRKU9719473 | AF118: 2019-01-04 | AG118: 珉丰二场 | AH118: 李锦坚 | AI118: 广州
A119: 业务完结 | B119: 2019-01-02 | C119: 2019-01-04 | D119: 1月 | E119: 2019-01-04 00:00 | F119: 鞍钢联众（广州）不锈钢有限公司 | G119: 鞍钢联众（广州）不锈钢有限公司 | H119: QYD19010003T01 | I119: 广州市永盈物流有限公司 | J119: 集装箱 | K119: 1 | L119: 铬铁 | M119: 矿产品 | N119: 410 | O119: 360 | P119: 50 | Q119: 50 | S119: 8.2 | T119: 41.8 | U119: 41.8 | V119: 全通秀丽码头 | W119: 鞍钢联众（广州）不锈钢有限公司 | X119: 23.94 | AB119: 2019-02-13 10:05 | AC119: 2月 | AD119: 粤ABJ160 | AE119: TGHU1803072 | AF119: 2019-01-04 | AG119: 珉丰二场 | AH119: 李锦坚 | AI119: 广州
A120: 业务完结 | B120: 2019-01-02 | C120: 2019-01-04 | D120: 1月 | E120: 2019-01-04 00:00 | F120: 鞍钢联众（广州）不锈钢有限公司 | G120: 鞍钢联众（广州）不锈钢有限公司 | H120: QYD19010003T01 | I120: 广州市永盈物流有限公司 | J120: 集装箱 | K120: 1 | L120: 铬铁 | M120: 矿产品 | N120: 410 | O120: 360 | P120: 50 | Q120: 50 | S120: 8.2 | T120: 41.8 | U120: 41.8 | V120: 全通秀丽码头 | W120: 鞍钢联众（广州）不锈钢有限公司 | X120: 23.94 | AB120: 2019-02-13 10:05 | AC120: 2月 | AD120: 粤ABJ160 | AE120: TEMU1347129 | AF120: 2019-01-04 | AG120: 珉丰二场 | AH120: 李锦坚 | AI120: 广州
A121: 业务完结 | B121: 2019-01-02 | C121: 2019-01-04 | D121: 1月 | E121: 2019-01-04 00:00 | F121: 鞍钢联众（广州）不锈钢有限公司 | G121: 鞍钢联众（广州）不锈钢有限公司 | H121: QYD19010003T01 | I121: 广州市永盈物流有限公司 | J121: 集装箱 | K121: 1 | L121: 铬铁 | M121: 矿产品 | N121: 410 | O121: 360 | P121: 50 | Q121: 50 | S121: 8.2 | T121: 41.8 | U121: 41.8 | V121: 全通秀丽码头 | W121: 鞍钢联众（广州）不锈钢有限公司 | X121: 23.96 | AB121: 2019-02-13 10:05 | AC121: 2月 | AD121: 粤A82478 | AE121: MSKU7322581 | AF121: 2019-01-04 | AG121: 珉丰二场 | AH121: 李锦坚 | AI121: 广州
A122: 业务完结 | B122: 2019-01-02 | C122: 2019-01-04 | D122: 1月 | E122: 2019-01-04 00:00 | F122: 鞍钢联众（广州）不锈钢有限公司 | G122: 鞍钢联众（广州）不锈钢有限公司 | H122: QYD19010003T01 | I122: 广州市永盈物流有限公司 | J122: 集装箱 | K122: 1 | L122: 铬铁 | M122: 矿产品 | N122: 410 | O122: 360 | P122: 50 | Q122: 50 | S122: 8.2 | T122: 41.8 | U122: 41.8 | V122: 全通秀丽码头 | W122: 鞍钢联众（广州）不锈钢有限公司 | X122: 23.96 | AB122: 2019-02-13 10:05 | AC122: 2月 | AD122: 粤A82478 | AE122: MRKU8589523 | AF122: 2019-01-04 | AG122: 珉丰二场 | AH122: 李锦坚 | AI122: 广州
A123: 业务完结 | B123: 2019-01-02 | C123: 2019-01-04 | D123: 1月 | E123: 2019-01-04 00:00 | F123: 鞍钢联众（广州）不锈钢有限公司 | G123: 鞍钢联众（广州）不锈钢有限公司 | H123: QYD19010003T01 | I123: 广州市永盈物流有限公司 | J123: 集装箱 | K123: 1 | L123: 铬铁 | M123: 矿产品 | N123: 410 | O123: 360 | P123: 50 | Q123: 50 | S123: 8.2 | T123: 41.8 | U123: 41.8 | V123: 全通秀丽码头 | W123: 鞍钢联众（广州）不锈钢有限公司 | X123: 23.7 | AB123: 2019-02-13 10:05 | AC123: 2月 | AD123: 粤AD7803 | AE123: TGHU0069344 | AF123: 2019-01-04 | AG123: 珉丰二场 | AH123: 李锦坚 | AI123: 广州
A124: 业务完结 | B124: 2019-01-02 | C124: 2019-01-04 | D124: 1月 | E124: 2019-01-04 00:00 | F124: 鞍钢联众（广州）不锈钢有限公司 | G124: 鞍钢联众（广州）不锈钢有限公司 | H124: QYD19010003T01 | I124: 广州市永盈物流有限公司 | J124: 集装箱 | K124: 1 | L124: 铬铁 | M124: 矿产品 | N124: 410 | O124: 360 | P124: 50 | Q124: 50 | S124: 8.2 | T124: 41.8 | U124: 41.8 | V124: 全通秀丽码头 | W124: 鞍钢联众（广州）不锈钢有限公司 | X124: 23.7 | AB124: 2019-02-13 10:05 | AC124: 2月 | AD124: 粤AD7803 | AE124: MRKU7108942 | AF124: 2019-01-04 | AG124: 珉丰二场 | AH124: 李锦坚 | AI124: 广州
A125: 业务完结 | B125: 2019-01-02 | C125: 2019-01-04 | D125: 1月 | E125: 2019-01-04 00:00 | F125: 鞍钢联众（广州）不锈钢有限公司 | G125: 鞍钢联众（广州）不锈钢有限公司 | H125: QYD19010003T01 | I125: 广州市永盈物流有限公司 | J125: 集装箱 | K125: 1 | L125: 铬铁 | M125: 矿产品 | N125: 410 | O125: 360 | P125: 50 | Q125: 50 | S125: 8.2 | T125: 41.8 | U125: 41.8 | V125: 全通秀丽码头 | W125: 鞍钢联众（广州）不锈钢有限公司 | X125: 24.06 | AB125: 2019-02-13 10:05 | AC125: 2月 | AD125: 豫P48279 | AE125: PONU0883493 | AF125: 2019-01-04 | AG125: 珉丰二场 | AH125: 李锦坚 | AI125: 广州
A126: 业务完结 | B126: 2019-01-02 | C126: 2019-01-04 | D126: 1月 | E126: 2019-01-04 00:00 | F126: 鞍钢联众（广州）不锈钢有限公司 | G126: 鞍钢联众（广州）不锈钢有限公司 | H126: QYD19010003T01 | I126: 广州市永盈物流有限公司 | J126: 集装箱 | K126: 1 | L126: 铬铁 | M126: 矿产品 | N126: 410 | O126: 360 | P126: 50 | Q126: 50 | S126: 8.2 | T126: 41.8 | U126: 41.8 | V126: 全通秀丽码头 | W126: 鞍钢联众（广州）不锈钢有限公司 | AB126: 2019-02-13 10:05 | AC126: 2月 | AD126: 粤AN6926 | AE126: PONU2071014 | AF126: 2019-01-04 | AG126: 珉丰二场 | AH126: 李锦坚 | AI126: 广州
A127: 业务完结 | B127: 2019-01-02 | C127: 2019-01-04 | D127: 1月 | E127: 2019-01-04 00:00 | F127: 鞍钢联众（广州）不锈钢有限公司 | G127: 鞍钢联众（广州）不锈钢有限公司 | H127: QYD19010003T01 | I127: 广州市永盈物流有限公司 | J127: 集装箱 | K127: 1 | L127: 铬铁 | M127: 矿产品 | N127: 410 | O127: 360 | P127: 50 | Q127: 50 | S127: 8.2 | T127: 41.8 | U127: 41.8 | V127: 全通秀丽码头 | W127: 鞍钢联众（广州）不锈钢有限公司 | X127: 24.03 | AB127: 2019-02-13 10:05 | AC127: 2月 | AD127: 豫PJ6110 | AE127: TCKU1140878 | AF127: 2019-01-04 | AG127: 珉丰二场 | AH127: 李锦坚 | AI127: 广州
A128: 业务完结 | B128: 2019-01-02 | C128: 2019-01-04 | D128: 1月 | E128: 2019-01-04 00:00 | F128: 鞍钢联众（广州）不锈钢有限公司 | G128: 鞍钢联众（广州）不锈钢有限公司 | H128: QYD19010003T01 | I128: 广州市永盈物流有限公司 | J128: 集装箱 | K128: 1 | L128: 铬铁 | M128: 矿产品 | N128: 410 | O128: 360 | P128: 50 | Q128: 50 | S128: 8.2 | T128: 41.8 | U128: 41.8 | V128: 全通秀丽码头 | W128: 鞍钢联众（广州）不锈钢有限公司 | AB128: 2019-02-13 10:05 | AC128: 2月 | AD128: 豫PJ6110 | AE128: MSKU4218151 | AF128: 2019-01-04 | AG128: 珉丰二场 | AH128: 李锦坚 | AI128: 广州
A129: 业务完结 | B129: 2019-01-02 | C129: 2019-01-04 | D129: 1月 | E129: 2019-01-04 00:00 | F129: 鞍钢联众（广州）不锈钢有限公司 | G129: 鞍钢联众（广州）不锈钢有限公司 | H129: QYD19010003T01 | I129: 广州市永盈物流有限公司 | J129: 集装箱 | K129: 1 | L129: 铬铁 | M129: 矿产品 | N129: 410 | O129: 360 | P129: 50 | Q129: 50 | S129: 8.2 | T129: 41.8 | U129: 41.8 | V129: 全通秀丽码头 | W129: 鞍钢联众（广州）不锈钢有限公司 | AB129: 2019-02-13 10:05 | AC129: 2月 | AD129: 豫PJ6110 | AE129: TCLU6996186 | AF129: 2019-01-04 | AG129: 珉丰二场 | AH129: 李锦坚 | AI129: 广州
A130: 业务完结 | B130: 2019-01-02 | C130: 2019-01-04 | D130: 1月 | E130: 2019-01-04 00:00 | F130: 鞍钢联众（广州）不锈钢有限公司 | G130: 鞍钢联众（广州）不锈钢有限公司 | H130: QYD19010003T01 | I130: 广州市永盈物流有限公司 | J130: 集装箱 | K130: 1 | L130: 铬铁 | M130: 矿产品 | N130: 410 | O130: 360 | P130: 50 | Q130: 50 | S130: 8.2 | T130: =P130-R130-S130 -> 41.8 | U130: 41.8 | V130: 全通秀丽码头 | W130: 鞍钢联众（广州）不锈钢有限公司 | AB130: 2019-02-13 10:05 | AC130: 2月 | AD130: 粤AG3483 | AE130: MSKU5233130 | AF130: 2019-01-04 | AG130: 珉丰二场 | AH130: 李锦坚 | AI130: 广州
A131: 业务完结 | B131: 2019-01-02 | C131: 2019-01-04 | D131: 1月 | E131: 2019-01-04 00:00 | F131: 鞍钢联众（广州）不锈钢有限公司 | G131: 鞍钢联众（广州）不锈钢有限公司 | H131: QYD19010003T01 | I131: 广州市永盈物流有限公司 | J131: 集装箱 | K131: 1 | L131: 铬铁 | M131: 矿产品 | N131: 410 | O131: 360 | P131: 50 | Q131: 50 | S131: 8.2 | T131: 41.8 | U131: 41.8 | V131: 全通秀丽码头 | W131: 鞍钢联众（广州）不锈钢有限公司 | AB131: 2019-02-13 10:05 | AC131: 2月 | AD131: 粤AG3483 | AE131: MRKU7832140 | AF131: 2019-01-04 | AG131: 珉丰二场 | AH131: 李锦坚 | AI131: 广州
A132: 业务完结 | B132: 2019-01-02 | C132: 2019-01-04 | D132: 1月 | E132: 2019-01-04 00:00 | F132: 鞍钢联众（广州）不锈钢有限公司 | G132: 鞍钢联众（广州）不锈钢有限公司 | H132: QYD19010003T01 | I132: 广州市永盈物流有限公司 | J132: 集装箱 | K132: 1 | L132: 铬铁 | M132: 矿产品 | N132: 410 | O132: 360 | P132: 50 | Q132: 50 | S132: 8.2 | T132: 41.8 | U132: 41.8 | V132: 全通秀丽码头 | W132: 鞍钢联众（广州）不锈钢有限公司 | X132: 24.03 | AB132: 2019-02-13 10:05 | AC132: 2月 | AD132: 豫PJ6110 | AE132: CPWU2030324 | AF132: 2019-01-04 | AG132: 珉丰二场 | AH132: 李锦坚 | AI132: 广州
A133: 业务完结 | B133: 2019-01-02 | C133: 2019-01-04 | D133: 1月 | E133: 2019-01-04 00:00 | F133: 鞍钢联众（广州）不锈钢有限公司 | G133: 鞍钢联众（广州）不锈钢有限公司 | H133: QYD19010003T01 | I133: 广州市永盈物流有限公司 | J133: 集装箱 | K133: 1 | L133: 铬铁 | M133: 矿产品 | N133: 410 | O133: 360 | P133: 50 | Q133: 50 | S133: 8.2 | T133: 41.8 | U133: 41.8 | V133: 全通秀丽码头 | W133: 鞍钢联众（广州）不锈钢有限公司 | X133: 24.06 | AB133: 2019-02-13 10:05 | AC133: 2月 | AD133: 豫P48279 | AE133: MRKU6815241 | AF133: 2019-01-04 | AG133: 珉丰二场 | AH133: 李锦坚 | AI133: 广州
A134: 业务完结 | B134: 2019-01-04 | C134: 2019-01-06 | D134: 1月 | E134: 2019-01-06 00:00 | F134: 鞍钢联众（广州）不锈钢有限公司 | G134: 鞍钢联众（广州）不锈钢有限公司 | H134: QYD19010007T01 | I134: 广州市永盈物流有限公司 | J134: 集装箱 | K134: 1 | L134: 铬铁 | M134: 矿产品 | N134: 415 | O134: 360 | P134: 55 | Q134: 55 | S134: 8.3 | T134: 46.7 | U134: 46.7 | V134: 全通秀丽码头 | W134: 鞍钢联众（广州）不锈钢有限公司 | X134: 23.62 | AB134: 2019-02-13 10:17 | AC134: 2月 | AD134: 粤AD7803 | AE134: MSKU7095298 | AF134: 2019-01-06 | AG134: 天翔堆场 | AH134: 黄佳利 | AI134: 广州
A135: 业务完结 | B135: 2019-01-04 | C135: 2019-01-06 | D135: 1月 | E135: 2019-01-06 00:00 | F135: 鞍钢联众（广州）不锈钢有限公司 | G135: 鞍钢联众（广州）不锈钢有限公司 | H135: QYD19010007T01 | I135: 广州市永盈物流有限公司 | J135: 集装箱 | K135: 1 | L135: 铬铁 | M135: 矿产品 | N135: 415 | O135: 360 | P135: 55 | Q135: 55 | S135: 8.3 | T135: 46.7 | U135: 46.7 | V135: 全通秀丽码头 | W135: 鞍钢联众（广州）不锈钢有限公司 | X135: 23.62 | AB135: 2019-02-13 10:17 | AC135: 2月 | AD135: 粤AD7803 | AE135: MSKU3212502 | AF135: 2019-01-06 | AG135: 天翔堆场 | AH135: 黄佳利 | AI135: 广州
A136: 业务完结 | B136: 2019-01-04 | C136: 2019-01-06 | D136: 1月 | E136: 2019-01-06 00:00 | F136: 鞍钢联众（广州）不锈钢有限公司 | G136: 鞍钢联众（广州）不锈钢有限公司 | H136: QYD19010007T01 | I136: 广州市永盈物流有限公司 | J136: 集装箱 | K136: 1 | L136: 铬铁 | M136: 矿产品 | N136: 415 | O136: 360 | P136: 55 | Q136: 55 | S136: 8.3 | T136: 46.7 | U136: 46.7 | V136: 全通秀丽码头 | W136: 鞍钢联众（广州）不锈钢有限公司 | X136: 24.03 | AB136: 2019-02-13 10:17 | AC136: 2月 | AD136: 粤AF9366 | AE136: MSKU2838533 | AF136: 2019-01-06 | AG136: 天翔堆场 | AH136: 黄佳利 | AI136: 广州
A137: 业务完结 | B137: 2019-01-04 | C137: 2019-01-06 | D137: 1月 | E137: 2019-01-06 00:00 | F137: 鞍钢联众（广州）不锈钢有限公司 | G137: 鞍钢联众（广州）不锈钢有限公司 | H137: QYD19010007T01 | I137: 广州市永盈物流有限公司 | J137: 集装箱 | K137: 1 | L137: 铬铁 | M137: 矿产品 | N137: 415 | O137: 360 | P137: 55 | Q137: 55 | S137: 8.3 | T137: 46.7 | U137: 46.7 | V137: 全通秀丽码头 | W137: 鞍钢联众（广州）不锈钢有限公司 | X137: 24.35 | AB137: 2019-02-13 10:17 | AC137: 2月 | AD137: 粤AAR717 | AE137: MRKU6958453 | AF137: 2019-01-06 | AG137: 天翔堆场 | AH137: 黄佳利 | AI137: 广州
A138: 业务完结 | B138: 2019-01-04 | C138: 2019-01-06 | D138: 1月 | E138: 2019-01-06 00:00 | F138: 鞍钢联众（广州）不锈钢有限公司 | G138: 鞍钢联众（广州）不锈钢有限公司 | H138: QYD19010007T01 | I138: 广州市永盈物流有限公司 | J138: 集装箱 | K138: 1 | L138: 铬铁 | M138: 矿产品 | N138: 415 | O138: 360 | P138: 55 | Q138: 55 | S138: 8.3 | T138: 46.7 | U138: 46.7 | V138: 全通秀丽码头 | W138: 鞍钢联众（广州）不锈钢有限公司 | X138: 2.35 | AB138: 2019-02-13 10:17 | AC138: 2月 | AD138: 粤AAR717 | AE138: MSKU2242668 | AF138: 2019-01-06 | AG138: 天翔堆场 | AH138: 黄佳利 | AI138: 广州
A139: 业务完结 | B139: 2019-01-04 | C139: 2019-01-06 | D139: 1月 | E139: 2019-01-06 00:00 | F139: 鞍钢联众（广州）不锈钢有限公司 | G139: 鞍钢联众（广州）不锈钢有限公司 | H139: QYD19010007T01 | I139: 广州市永盈物流有限公司 | J139: 集装箱 | K139: 1 | L139: 铬铁 | M139: 矿产品 | N139: 16149.42 | O139: 15919.22 | P139: 230.2 | Q139: 230.2 | S139: 322.9884 | T139: -92.7884 | U139: -92.7884 | V139: 全通秀丽码头 | W139: 鞍钢联众（广州）不锈钢有限公司 | X139: 24.11 | AB139: 2019-02-13 10:17 | AC139: 2月 | AD139: 粤A82478 | AE139: MRSU0066555 | AF139: 2019-01-06 | AG139: 天翔堆场 | AH139: 黄佳利 | AI139: 广州
A140: 业务完结 | B140: 2019-01-04 | C140: 2019-01-06 | D140: 1月 | E140: 2019-01-06 00:00 | F140: 鞍钢联众（广州）不锈钢有限公司 | G140: 鞍钢联众（广州）不锈钢有限公司 | H140: QYD19010007T01 | I140: 广州市永盈物流有限公司 | J140: 集装箱 | K140: 1 | L140: 铬铁 | M140: 矿产品 | N140: 415 | O140: 360 | P140: 55 | Q140: 55 | S140: 8.3 | T140: 46.7 | U140: 46.7 | V140: 全通秀丽码头 | W140: 鞍钢联众（广州）不锈钢有限公司 | X140: 24.11 | AB140: 2019-02-13 10:17 | AC140: 2月 | AD140: 粤A82478 | AE140: MRKU7154110 | AF140: 2019-01-06 | AG140: 天翔堆场 | AH140: 黄佳利 | AI140: 广州
A141: 业务完结 | B141: 2019-01-04 | C141: 2019-01-06 | D141: 1月 | E141: 2019-01-06 00:00 | F141: 鞍钢联众（广州）不锈钢有限公司 | G141: 鞍钢联众（广州）不锈钢有限公司 | H141: QYD19010007T01 | I141: 广州市永盈物流有限公司 | J141: 集装箱 | K141: 1 | L141: 铬铁 | M141: 矿产品 | N141: 415 | O141: 360 | P141: 55 | Q141: 55 | S141: 8.3 | T141: 46.7 | U141: 46.7 | V141: 全通秀丽码头 | W141: 鞍钢联众（广州）不锈钢有限公司 | X141: 23.83 | AB141: 2019-02-13 10:17 | AC141: 2月 | AD141: 粤AD7849 | AE141: PONU0404728 | AF141: 2019-01-06 | AG141: 天翔堆场 | AH141: 黄佳利 | AI141: 广州
A142: 业务完结 | B142: 2019-01-04 | C142: 2019-01-06 | D142: 1月 | E142: 2019-01-06 00:00 | F142: 鞍钢联众（广州）不锈钢有限公司 | G142: 鞍钢联众（广州）不锈钢有限公司 | H142: QYD19010007T01 | I142: 广州市永盈物流有限公司 | J142: 集装箱 | K142: 1 | L142: 铬铁 | M142: 矿产品 | N142: 415 | O142: 360 | P142: 55 | Q142: 55 | S142: 8.3 | T142: 46.7 | U142: 46.7 | V142: 全通秀丽码头 | W142: 鞍钢联众（广州）不锈钢有限公司 | X142: 23.66 | AB142: 2019-02-13 10:17 | AC142: 2月 | AD142: 豫PJ6110 | AE142: MSKU4254143 | AF142: 2019-01-06 | AG142: 天翔堆场 | AH142: 黄佳利 | AI142: 广州
A143: 业务完结 | B143: 2019-01-04 | C143: 2019-01-06 | D143: 1月 | E143: 2019-01-06 00:00 | F143: 鞍钢联众（广州）不锈钢有限公司 | G143: 鞍钢联众（广州）不锈钢有限公司 | H143: QYD19010007T01 | I143: 广州市永盈物流有限公司 | J143: 集装箱 | K143: 1 | L143: 铬铁 | M143: 矿产品 | N143: 415 | O143: 360 | P143: 55 | Q143: 55 | S143: 8.3 | T143: 46.7 | U143: 46.7 | V143: 全通秀丽码头 | W143: 鞍钢联众（广州）不锈钢有限公司 | X143: 23.66 | AB143: 2019-02-13 10:17 | AC143: 2月 | AD143: 豫PJ6110 | AE143: MRKU9789660 | AF143: 2019-01-06 | AG143: 天翔堆场 | AH143: 黄佳利 | AI143: 广州
A144: 业务完结 | B144: 2019-01-04 | C144: 2019-01-06 | D144: 1月 | E144: 2019-01-06 00:00 | F144: 鞍钢联众（广州）不锈钢有限公司 | G144: 鞍钢联众（广州）不锈钢有限公司 | H144: QYD19010007T01 | I144: 广州市永盈物流有限公司 | J144: 集装箱 | K144: 1 | L144: 铬铁 | M144: 矿产品 | N144: 415 | O144: 360 | P144: 55 | Q144: 55 | S144: 8.3 | T144: 46.7 | U144: 46.7 | V144: 全通秀丽码头 | W144: 鞍钢联众（广州）不锈钢有限公司 | X144: 24.06 | AB144: 2019-02-13 10:17 | AC144: 2月 | AD144: 粤AN2255 | AE144: MRKU8732872 | AF144: 2019-01-06 | AG144: 天翔堆场 | AH144: 黄佳利 | AI144: 广州
A145: 业务完结 | B145: 2019-01-04 | C145: 2019-01-06 | D145: 1月 | E145: 2019-01-06 00:00 | F145: 鞍钢联众（广州）不锈钢有限公司 | G145: 鞍钢联众（广州）不锈钢有限公司 | H145: QYD19010007T01 | I145: 广州市永盈物流有限公司 | J145: 集装箱 | K145: 1 | L145: 铬铁 | M145: 矿产品 | N145: 415 | O145: 360 | P145: 55 | Q145: 55 | S145: 8.3 | T145: 46.7 | U145: 46.7 | V145: 全通秀丽码头 | W145: 鞍钢联众（广州）不锈钢有限公司 | X145: 24.06 | AB145: 2019-02-13 10:17 | AC145: 2月 | AD145: 粤AN2255 | AE145: MRKU9153241 | AF145: 2019-01-06 | AG145: 天翔堆场 | AH145: 黄佳利 | AI145: 广州
A146: 业务完结 | B146: 2019-01-04 | C146: 2019-01-06 | D146: 1月 | E146: 2019-01-06 00:00 | F146: 鞍钢联众（广州）不锈钢有限公司 | G146: 鞍钢联众（广州）不锈钢有限公司 | H146: QYD19010007T01 | I146: 广州市永盈物流有限公司 | J146: 集装箱 | K146: 1 | L146: 铬铁 | M146: 矿产品 | N146: 415 | O146: 360 | P146: 55 | Q146: 55 | S146: 8.3 | T146: 46.7 | U146: 46.7 | V146: 全通秀丽码头 | W146: 鞍钢联众（广州）不锈钢有限公司 | X146: 23.83 | AB146: 2019-02-13 10:17 | AC146: 2月 | AD146: 粤AD7849 | AE146: MRSU0302970 | AF146: 2019-01-06 | AG146: 天翔堆场 | AH146: 黄佳利 | AI146: 广州
A147: 业务完结 | B147: 2019-01-04 | C147: 2019-01-06 | D147: 1月 | E147: 2019-01-06 00:00 | F147: 鞍钢联众（广州）不锈钢有限公司 | G147: 鞍钢联众（广州）不锈钢有限公司 | H147: QYD19010007T01 | I147: 广州市永盈物流有限公司 | J147: 集装箱 | K147: 1 | L147: 铬铁 | M147: 矿产品 | N147: 415 | O147: 360 | P147: 55 | Q147: 55 | S147: 8.3 | T147: 46.7 | U147: 46.7 | V147: 全通秀丽码头 | W147: 鞍钢联众（广州）不锈钢有限公司 | X147: 23.92 | AB147: 2019-02-13 10:17 | AC147: 2月 | AD147: 粤AD7849 | AE147: MSKU7018630 | AF147: 2019-01-06 | AG147: 天翔堆场 | AH147: 黄佳利 | AI147: 广州
A148: 业务完结 | B148: 2019-01-04 | C148: 2019-01-06 | D148: 1月 | E148: 2019-01-06 00:00 | F148: 鞍钢联众（广州）不锈钢有限公司 | G148: 鞍钢联众（广州）不锈钢有限公司 | H148: QYD19010007T01 | I148: 广州市永盈物流有限公司 | J148: 集装箱 | K148: 1 | L148: 铬铁 | M148: 矿产品 | N148: 415 | O148: 360 | P148: 55 | Q148: 55 | S148: 8.3 | T148: 46.7 | U148: 46.7 | V148: 全通秀丽码头 | W148: 鞍钢联众（广州）不锈钢有限公司 | X148: 23.92 | AB148: 2019-02-13 10:17 | AC148: 2月 | AD148: 粤AD7849 | AE148: MSKU5856280 | AF148: 2019-01-06 | AG148: 天翔堆场 | AH148: 黄佳利 | AI148: 广州
A149: 业务完结 | B149: 2019-01-04 | C149: 2019-01-06 | D149: 1月 | E149: 2019-01-06 00:00 | F149: 鞍钢联众（广州）不锈钢有限公司 | G149: 鞍钢联众（广州）不锈钢有限公司 | H149: QYD19010007T01 | I149: 广州市永盈物流有限公司 | J149: 集装箱 | K149: 1 | L149: 铬铁 | M149: 矿产品 | N149: 415 | O149: 360 | P149: 55 | Q149: 55 | S149: 8.3 | T149: 46.7 | U149: 46.7 | V149: 全通秀丽码头 | W149: 鞍钢联众（广州）不锈钢有限公司 | X149: 23.93 | AB149: 2019-02-13 10:17 | AC149: 2月 | AD149: 豫P1D220 | AE149: MSKU2121080 | AF149: 2019-01-06 | AG149: 天翔堆场 | AH149: 黄佳利 | AI149: 广州
A150: 业务完结 | B150: 2019-01-04 | C150: 2019-01-06 | D150: 1月 | E150: 2019-01-06 00:00 | F150: 鞍钢联众（广州）不锈钢有限公司 | G150: 鞍钢联众（广州）不锈钢有限公司 | H150: QYD19010007T01 | I150: 广州市永盈物流有限公司 | J150: 集装箱 | K150: 1 | L150: 铬铁 | M150: 矿产品 | N150: 415 | O150: 360 | P150: 55 | Q150: 55 | S150: 8.3 | T150: 46.7 | U150: 46.7 | V150: 全通秀丽码头 | W150: 鞍钢联众（广州）不锈钢有限公司 | X150: 23.93 | AB150: 2019-02-13 10:17 | AC150: 2月 | AD150: 豫P1D220 | AE150: HASU1015300 | AF150: 2019-01-06 | AG150: 天翔堆场 | AH150: 黄佳利 | AI150: 广州
A151: 业务完结 | B151: 2019-01-04 | C151: 2019-01-06 | D151: 1月 | E151: 2019-01-06 00:00 | F151: 鞍钢联众（广州）不锈钢有限公司 | G151: 鞍钢联众（广州）不锈钢有限公司 | H151: QYD19010007T01 | I151: 广州市永盈物流有限公司 | J151: 集装箱 | K151: 1 | L151: 铬铁 | M151: 矿产品 | N151: 415 | O151: 360 | P151: 55 | Q151: 55 | S151: 8.3 | T151: 46.7 | U151: 46.7 | V151: 全通秀丽码头 | W151: 鞍钢联众（广州）不锈钢有限公司 | X151: 24.73 | AB151: 2019-02-13 10:17 | AC151: 2月 | AD151: 粤A92417 | AE151: MSKU3076582 | AF151: 2019-01-06 | AG151: 天翔堆场 | AH151: 黄佳利 | AI151: 广州
A152: 业务完结 | B152: 2019-01-04 | C152: 2019-01-06 | D152: 1月 | E152: 2019-01-06 00:00 | F152: 鞍钢联众（广州）不锈钢有限公司 | G152: 鞍钢联众（广州）不锈钢有限公司 | H152: QYD19010007T01 | I152: 广州市永盈物流有限公司 | J152: 集装箱 | K152: 1 | L152: 铬铁 | M152: 矿产品 | N152: 415 | O152: 360 | P152: 55 | Q152: 55 | S152: 8.3 | T152: 46.7 | U152: 46.7 | V152: 全通秀丽码头 | W152: 鞍钢联众（广州）不锈钢有限公司 | X152: 24.73 | AB152: 2019-02-13 10:17 | AC152: 2月 | AD152: 粤A92417 | AE152: SUDU7934770 | AF152: 2019-01-06 | AG152: 天翔堆场 | AH152: 黄佳利 | AI152: 广州
A153: 业务完结 | B153: 2019-01-04 | C153: 2019-01-06 | D153: 1月 | E153: 2019-01-06 00:00 | F153: 鞍钢联众（广州）不锈钢有限公司 | G153: 鞍钢联众（广州）不锈钢有限公司 | H153: QYD19010007T01 | I153: 广州市永盈物流有限公司 | J153: 集装箱 | K153: 1 | L153: 铬铁 | M153: 矿产品 | N153: 415 | O153: 360 | P153: 55 | Q153: 55 | S153: 8.3 | T153: 46.7 | U153: 46.7 | V153: 全通秀丽码头 | W153: 鞍钢联众（广州）不锈钢有限公司 | X153: 24.04 | AB153: 2019-02-13 10:17 | AC153: 2月 | AD153: 豫P1D220 | AE153: MRKU7190293 | AF153: 2019-01-06 | AG153: 天翔堆场 | AH153: 黄佳利 | AI153: 广州
A154: 业务完结 | B154: 2019-01-04 | C154: 2019-01-06 | D154: 1月 | E154: 2019-01-06 00:00 | F154: 鞍钢联众（广州）不锈钢有限公司 | G154: 鞍钢联众（广州）不锈钢有限公司 | H154: QYD19010007T01 | I154: 广州市永盈物流有限公司 | J154: 集装箱 | K154: 1 | L154: 铬铁 | M154: 矿产品 | N154: 415 | O154: 360 | P154: 55 | Q154: 55 | S154: 8.3 | T154: 46.7 | U154: 46.7 | V154: 全通秀丽码头 | W154: 鞍钢联众（广州）不锈钢有限公司 | X154: 24.04 | AB154: 2019-02-13 10:17 | AC154: 2月 | AD154: 豫P1D220 | AE154: MSKU2884816 | AF154: 2019-01-06 | AG154: 天翔堆场 | AH154: 黄佳利 | AI154: 广州
A155: 业务完结 | B155: 2019-01-04 | C155: 2019-01-06 | D155: 1月 | E155: 2019-01-06 00:00 | F155: 鞍钢联众（广州）不锈钢有限公司 | G155: 鞍钢联众（广州）不锈钢有限公司 | H155: QYD19010007T01 | I155: 广州市永盈物流有限公司 | J155: 集装箱 | K155: 1 | L155: 铬铁 | M155: 矿产品 | N155: 415 | O155: 360 | P155: 55 | Q155: 55 | S155: 8.3 | T155: 46.7 | U155: 46.7 | V155: 全通秀丽码头 | W155: 鞍钢联众（广州）不锈钢有限公司 | X155: 23.93 | AB155: 2019-02-13 10:17 | AC155: 2月 | AD155: 粤A92417 | AE155: SUDU1422870 | AF155: 2019-01-06 | AG155: 天翔堆场 | AH155: 黄佳利 | AI155: 广州
A156: 业务完结 | B156: 2019-01-04 | C156: 2019-01-06 | D156: 1月 | E156: 2019-01-06 00:00 | F156: 鞍钢联众（广州）不锈钢有限公司 | G156: 鞍钢联众（广州）不锈钢有限公司 | H156: QYD19010007T01 | I156: 广州市永盈物流有限公司 | J156: 集装箱 | K156: 1 | L156: 铬铁 | M156: 矿产品 | N156: 415 | O156: 360 | P156: 55 | Q156: 55 | S156: 8.3 | T156: 46.7 | U156: 46.7 | V156: 全通秀丽码头 | W156: 鞍钢联众（广州）不锈钢有限公司 | X156: 23.93 | AB156: 2019-02-13 10:17 | AC156: 2月 | AD156: 粤A92417 | AE156: MSKU7053559 | AF156: 2019-01-06 | AG156: 天翔堆场 | AH156: 黄佳利 | AI156: 广州
A157: 业务完结 | B157: 2019-01-04 | C157: 2019-01-06 | D157: 1月 | E157: 2019-01-06 00:00 | F157: 鞍钢联众（广州）不锈钢有限公司 | G157: 鞍钢联众（广州）不锈钢有限公司 | H157: QYD19010007T01 | I157: 广州市永盈物流有限公司 | J157: 集装箱 | K157: 1 | L157: 铬铁 | M157: 矿产品 | N157: 415 | O157: 360 | P157: 55 | Q157: 55 | S157: 8.3 | T157: 46.7 | U157: 46.7 | V157: 全通秀丽码头 | W157: 鞍钢联众（广州）不锈钢有限公司 | X157: 24.03 | AB157: 2019-02-13 10:17 | AC157: 2月 | AD157: 豫P48279 | AE157: MSKU3427096 | AF157: 2019-01-06 | AG157: 天翔堆场 | AH157: 黄佳利 | AI157: 广州
A158: 业务完结 | B158: 2019-01-04 | C158: 2019-01-06 | D158: 1月 | E158: 2019-01-06 00:00 | F158: 鞍钢联众（广州）不锈钢有限公司 | G158: 鞍钢联众（广州）不锈钢有限公司 | H158: QYD19010007T01 | I158: 广州市永盈物流有限公司 | J158: 集装箱 | K158: 1 | L158: 铬铁 | M158: 矿产品 | N158: 415 | O158: 360 | P158: 55 | Q158: 55 | S158: 8.3 | T158: 46.7 | U158: 46.7 | V158: 全通秀丽码头 | W158: 鞍钢联众（广州）不锈钢有限公司 | X158: 24.03 | AB158: 2019-02-13 10:17 | AC158: 2月 | AD158: 豫P48279 | AE158: MRKU7911126 | AF158: 2019-01-06 | AG158: 天翔堆场 | AH158: 黄佳利 | AI158: 广州
A159: 业务完结 | B159: 2019-01-04 | C159: 2019-01-06 | D159: 1月 | E159: 2019-01-06 00:00 | F159: 鞍钢联众（广州）不锈钢有限公司 | G159: 鞍钢联众（广州）不锈钢有限公司 | H159: QYD19010007T01 | I159: 广州市永盈物流有限公司 | J159: 集装箱 | K159: 1 | L159: 铬铁 | M159: 矿产品 | N159: 415 | O159: 360 | P159: 55 | Q159: 55 | S159: 8.3 | T159: 46.7 | U159: 46.7 | V159: 全通秀丽码头 | W159: 鞍钢联众（广州）不锈钢有限公司 | X159: 23.48 | AB159: 2019-02-13 10:17 | AC159: 2月 | AD159: 豫PJ6110 | AE159: MRKU9004510 | AF159: 2019-01-06 | AG159: 天翔堆场 | AH159: 黄佳利 | AI159: 广州
A160: 业务完结 | B160: 2019-01-04 | C160: 2019-01-06 | D160: 1月 | E160: 2019-01-06 00:00 | F160: 鞍钢联众（广州）不锈钢有限公司 | G160: 鞍钢联众（广州）不锈钢有限公司 | H160: QYD19010007T01 | I160: 广州市永盈物流有限公司 | J160: 集装箱 | K160: 1 | L160: 铬铁 | M160: 矿产品 | N160: 415 | O160: 360 | P160: 55 | Q160: 55 | S160: 8.3 | T160: 46.7 | U160: 46.7 | V160: 全通秀丽码头 | W160: 鞍钢联众（广州）不锈钢有限公司 | X160: 23.85 | AB160: 2019-02-13 10:17 | AC160: 2月 | AD160: 粤AAR717 | AE160: MRKU8871537 | AF160: 2019-01-06 | AG160: 天翔堆场 | AH160: 黄佳利 | AI160: 广州
A161: 业务完结 | B161: 2019-01-04 | C161: 2019-01-06 | D161: 1月 | E161: 2019-01-06 00:00 | F161: 鞍钢联众（广州）不锈钢有限公司 | G161: 鞍钢联众（广州）不锈钢有限公司 | H161: QYD19010007T01 | I161: 广州市永盈物流有限公司 | J161: 集装箱 | K161: 1 | L161: 铬铁 | M161: 矿产品 | N161: 415 | O161: 360 | P161: 55 | Q161: 55 | S161: 8.3 | T161: 46.7 | U161: 46.7 | V161: 全通秀丽码头 | W161: 鞍钢联众（广州）不锈钢有限公司 | X161: 23.89 | AB161: 2019-02-13 10:17 | AC161: 2月 | AD161: 豫P48279 | AE161: MRKU7407727 | AF161: 2019-01-06 | AG161: 天翔堆场 | AH161: 黄佳利 | AI161: 广州
A162: 业务完结 | B162: 2019-01-04 | C162: 2019-01-06 | D162: 1月 | E162: 2019-01-06 00:00 | F162: 鞍钢联众（广州）不锈钢有限公司 | G162: 鞍钢联众（广州）不锈钢有限公司 | H162: QYD19010007T01 | I162: 广州市永盈物流有限公司 | J162: 集装箱 | K162: 1 | L162: 铬铁 | M162: 矿产品 | N162: 415 | O162: 360 | P162: 55 | Q162: 55 | S162: 8.3 | T162: 46.7 | U162: 46.7 | V162: 全通秀丽码头 | W162: 鞍钢联众（广州）不锈钢有限公司 | X162: 23.89 | AB162: 2019-02-13 10:17 | AC162: 2月 | AD162: 豫P48279 | AE162: MRKU9168215 | AF162: 2019-01-06 | AG162: 天翔堆场 | AH162: 黄佳利 | AI162: 广州
A163: 业务完结 | B163: 2019-01-04 | C163: 2019-01-06 | D163: 1月 | E163: 2019-01-06 00:00 | F163: 鞍钢联众（广州）不锈钢有限公司 | G163: 鞍钢联众（广州）不锈钢有限公司 | H163: QYD19010007T01 | I163: 广州市永盈物流有限公司 | J163: 集装箱 | K163: 1 | L163: 铬铁 | M163: 矿产品 | N163: 415 | O163: 360 | P163: 55 | Q163: 55 | S163: 8.3 | T163: 46.7 | U163: 46.7 | V163: 全通秀丽码头 | W163: 鞍钢联众（广州）不锈钢有限公司 | X163: 23.85 | AB163: 2019-02-13 10:17 | AC163: 2月 | AD163: 粤AAR717 | AE163: MRKU9129564 | AF163: 2019-01-06 | AG163: 天翔堆场 | AH163: 黄佳利 | AI163: 广州
A164: 业务完结 | B164: 2019-01-04 | C164: 2019-01-06 | D164: 1月 | E164: 2019-01-06 00:00 | F164: 鞍钢联众（广州）不锈钢有限公司 | G164: 鞍钢联众（广州）不锈钢有限公司 | H164: QYD19010007T01 | I164: 广州市永盈物流有限公司 | J164: 集装箱 | K164: 1 | L164: 铬铁 | M164: 矿产品 | N164: 415 | O164: 360 | P164: 55 | Q164: 55 | S164: 8.3 | T164: 46.7 | U164: 46.7 | V164: 全通秀丽码头 | W164: 鞍钢联众（广州）不锈钢有限公司 | X164: 23.48 | AB164: 2019-02-13 10:17 | AC164: 2月 | AD164: 豫PJ6110 | AE164: MSKU2935106 | AF164: 2019-01-06 | AG164: 天翔堆场 | AH164: 黄佳利 | AI164: 广州
A165: 业务完结 | B165: 2019-01-04 | C165: 2019-01-06 | D165: 1月 | E165: 2019-01-06 00:00 | F165: 鞍钢联众（广州）不锈钢有限公司 | G165: 鞍钢联众（广州）不锈钢有限公司 | H165: QYD19010007T01 | I165: 广州市永盈物流有限公司 | J165: 集装箱 | K165: 1 | L165: 铬铁 | M165: 矿产品 | N165: 415 | O165: 360 | P165: 55 | Q165: 55 | S165: 8.3 | T165: 46.7 | U165: 46.7 | V165: 全通秀丽码头 | W165: 鞍钢联众（广州）不锈钢有限公司 | X165: 24.6 | AB165: 2019-02-13 10:17 | AC165: 2月 | AD165: 粤AF9366 | AE165: MSKU3638756 | AF165: 2019-01-06 | AG165: 天翔堆场 | AH165: 黄佳利 | AI165: 广州
A166: 业务完结 | B166: 2019-01-04 | C166: 2019-01-06 | D166: 1月 | E166: 2019-01-06 00:00 | F166: 鞍钢联众（广州）不锈钢有限公司 | G166: 鞍钢联众（广州）不锈钢有限公司 | H166: QYD19010007T01 | I166: 广州市永盈物流有限公司 | J166: 集装箱 | K166: 1 | L166: 铬铁 | M166: 矿产品 | N166: 415 | O166: 360 | P166: 55 | Q166: 55 | S166: 8.3 | T166: 46.7 | U166: 46.7 | V166: 全通秀丽码头 | W166: 鞍钢联众（广州）不锈钢有限公司 | X166: 24.6 | AB166: 2019-02-13 10:17 | AC166: 2月 | AD166: 粤AF9366 | AE166: MRSU0068732 | AF166: 2019-01-06 | AG166: 天翔堆场 | AH166: 黄佳利 | AI166: 广州
A167: 业务完结 | B167: 2019-01-04 | C167: 2019-01-06 | D167: 1月 | E167: 2019-01-06 00:00 | F167: 鞍钢联众（广州）不锈钢有限公司 | G167: 鞍钢联众（广州）不锈钢有限公司 | H167: QYD19010007T01 | I167: 广州市永盈物流有限公司 | J167: 集装箱 | K167: 1 | L167: 铬铁 | M167: 矿产品 | N167: 415 | O167: 360 | P167: 55 | Q167: 55 | S167: 8.3 | T167: 46.7 | U167: 46.7 | V167: 全通秀丽码头 | W167: 鞍钢联众（广州）不锈钢有限公司 | X167: 24.03 | AB167: 2019-02-13 10:17 | AC167: 2月 | AD167: 粤AF9366 | AE167: MSKU3231328 | AF167: 2019-01-06 | AG167: 天翔堆场 | AH167: 黄佳利 | AI167: 广州
A168: 业务完结 | B168: 2019-01-04 | C168: 2019-01-08 | D168: 1月 | E168: 2019-01-08 00:00 | F168: 鞍钢联众（广州）不锈钢有限公司 | G168: 鞍钢联众（广州）不锈钢有限公司 | H168: QYD19010009T01 | I168: 广州市永盈物流有限公司 | J168: 集装箱 | K168: 1 | L168: 铬铁 | M168: 矿产品 | N168: 415 | O168: 360 | P168: 55 | Q168: 55 | S168: 8.3 | T168: 46.7 | U168: 46.7 | V168: 全通秀丽码头 | W168: 鞍钢联众（广州）不锈钢有限公司 | AB168: 2019-02-13 10:11 | AC168: 2月 | AD168: 豫P48279 | AE168: CBHU5563251 | AF168: 2019-01-08 | AG168: 南岗远太 | AH168: 李锦坚 | AI168: 广州
A169: 业务完结 | B169: 2019-01-04 | C169: 2019-01-08 | D169: 1月 | E169: 2019-01-08 00:00 | F169: 鞍钢联众（广州）不锈钢有限公司 | G169: 鞍钢联众（广州）不锈钢有限公司 | H169: QYD19010009T01 | I169: 广州市永盈物流有限公司 | J169: 集装箱 | K169: 1 | L169: 铬铁 | M169: 矿产品 | N169: 415 | O169: 360 | P169: 55 | Q169: 55 | S169: 8.3 | T169: 46.7 | U169: 46.7 | V169: 全通秀丽码头 | W169: 鞍钢联众（广州）不锈钢有限公司 | AB169: 2019-02-13 10:11 | AC169: 2月 | AD169: 豫P48279 | AE169: CSLU1024627 | AF169: 2019-01-08 | AG169: 南岗远太 | AH169: 李锦坚 | AI169: 广州
A170: 业务完结 | B170: 2019-01-04 | C170: 2019-01-08 | D170: 1月 | E170: 2019-01-08 00:00 | F170: 鞍钢联众（广州）不锈钢有限公司 | G170: 鞍钢联众（广州）不锈钢有限公司 | H170: QYD19010009T01 | I170: 广州市永盈物流有限公司 | J170: 集装箱 | K170: 1 | L170: 铬铁 | M170: 矿产品 | N170: 415 | O170: 360 | P170: 55 | Q170: 55 | S170: 8.3 | T170: 46.7 | U170: 46.7 | V170: 全通秀丽码头 | W170: 鞍钢联众（广州）不锈钢有限公司 | AB170: 2019-02-13 10:11 | AC170: 2月 | AD170: 豫P48279 | AE170: CSNU1003621 | AF170: 2019-01-08 | AG170: 南岗远太 | AH170: 李锦坚 | AI170: 广州
A171: 业务完结 | B171: 2019-01-04 | C171: 2019-01-08 | D171: 1月 | E171: 2019-01-08 00:00 | F171: 鞍钢联众（广州）不锈钢有限公司 | G171: 鞍钢联众（广州）不锈钢有限公司 | H171: QYD19010009T01 | I171: 广州市永盈物流有限公司 | J171: 集装箱 | K171: 1 | L171: 铬铁 | M171: 矿产品 | N171: 415 | O171: 360 | P171: 55 | Q171: 55 | S171: 8.3 | T171: 46.7 | U171: 46.7 | V171: 全通秀丽码头 | W171: 鞍钢联众（广州）不锈钢有限公司 | AB171: 2019-02-13 10:11 | AC171: 2月 | AD171: 豫P48279 | AE171: CSLU1662642 | AF171: 2019-01-08 | AG171: 南岗远太 | AH171: 李锦坚 | AI171: 广州
A172: 业务完结 | B172: 2019-01-04 | C172: 2019-01-08 | D172: 1月 | E172: 2019-01-08 00:00 | F172: 鞍钢联众（广州）不锈钢有限公司 | G172: 鞍钢联众（广州）不锈钢有限公司 | H172: QYD19010009T01 | I172: 广州市永盈物流有限公司 | J172: 集装箱 | K172: 1 | L172: 铬铁 | M172: 矿产品 | N172: 415 | O172: 360 | P172: 55 | Q172: 55 | S172: 8.3 | T172: 46.7 | U172: 46.7 | V172: 全通秀丽码头 | W172: 鞍钢联众（广州）不锈钢有限公司 | AB172: 2019-02-13 10:11 | AC172: 2月 | AD172: 粤AF9366 | AE172: CCLU3821531 | AF172: 2019-01-08 | AG172: 南岗远太 | AH172: 李锦坚 | AI172: 广州
A173: 业务完结 | B173: 2019-01-04 | C173: 2019-01-08 | D173: 1月 | E173: 2019-01-08 00:00 | F173: 鞍钢联众（广州）不锈钢有限公司 | G173: 鞍钢联众（广州）不锈钢有限公司 | H173: QYD19010009T01 | I173: 广州市永盈物流有限公司 | J173: 集装箱 | K173: 1 | L173: 铬铁 | M173: 矿产品 | N173: 415 | O173: 360 | P173: 55 | Q173: 55 | S173: 8.3 | T173: 46.7 | U173: 46.7 | V173: 全通秀丽码头 | W173: 鞍钢联众（广州）不锈钢有限公司 | AB173: 2019-02-13 10:11 | AC173: 2月 | AD173: 粤AF9366 | AE173: BMOU1136457 | AF173: 2019-01-08 | AG173: 南岗远太 | AH173: 李锦坚 | AI173: 广州
A174: 业务完结 | B174: 2019-01-04 | C174: 2019-01-08 | D174: 1月 | E174: 2019-01-08 00:00 | F174: 鞍钢联众（广州）不锈钢有限公司 | G174: 鞍钢联众（广州）不锈钢有限公司 | H174: QYD19010009T01 | I174: 广州市永盈物流有限公司 | J174: 集装箱 | K174: 1 | L174: 铬铁 | M174: 矿产品 | N174: 415 | O174: 360 | P174: 55 | Q174: 55 | S174: =N174*(8%/12)*3 -> 8.3 | T174: 46.7 | U174: 46.7 | V174: 全通秀丽码头 | W174: 鞍钢联众（广州）不锈钢有限公司 | AB174: 2019-02-13 10:11 | AC174: 2月 | AD174: 粤AF9366 | AE174: DFSU1096572 | AF174: 2019-01-08 | AG174: 南岗远太 | AH174: 李锦坚 | AI174: 广州
A175: 业务完结 | B175: 2019-01-04 | C175: 2019-01-08 | D175: 1月 | E175: 2019-01-08 00:00 | F175: 鞍钢联众（广州）不锈钢有限公司 | G175: 鞍钢联众（广州）不锈钢有限公司 | H175: QYD19010009T01 | I175: 广州市永盈物流有限公司 | J175: 集装箱 | K175: 1 | L175: 铬铁 | M175: 矿产品 | N175: 415 | O175: 360 | P175: 55 | Q175: =P175 -> 55 | S175: 8.3 | T175: 46.7 | U175: =T175 -> 46.7 | V175: 全通秀丽码头 | W175: 鞍钢联众（广州）不锈钢有限公司 | AB175: 2019-02-13 10:11 | AC175: 2月 | AD175: 粤AF9366 | AE175: CSLU1242085 | AF175: 2019-01-08 | AG175: 南岗远太 | AH175: 李锦坚 | AI175: 广州
A176: 业务完结 | B176: 2019-01-04 | C176: 2019-01-08 | D176: 1月 | E176: 2019-01-08 00:00 | F176: 鞍钢联众（广州）不锈钢有限公司 | G176: 鞍钢联众（广州）不锈钢有限公司 | H176: QYD19010009T01 | I176: 广州市永盈物流有限公司 | J176: 集装箱 | K176: 1 | L176: 铬铁 | M176: 矿产品 | N176: 415 | O176: 360 | P176: 55 | Q176: 55 | S176: 8.3 | T176: 46.7 | U176: 46.7 | V176: 全通秀丽码头 | W176: 鞍钢联众（广州）不锈钢有限公司 | AB176: 2019-02-13 10:11 | AC176: 2月 | AD176: 豫PJ6110 | AE176: CSLU1453508 | AF176: 2019-01-08 | AG176: 南岗远太 | AH176: 李锦坚 | AI176: 广州
A177: 业务完结 | B177: 2019-01-04 | C177: 2019-01-08 | D177: 1月 | E177: 2019-01-08 00:00 | F177: 鞍钢联众（广州）不锈钢有限公司 | G177: 鞍钢联众（广州）不锈钢有限公司 | H177: QYD19010009T01 | I177: 广州市永盈物流有限公司 | J177: 集装箱 | K177: 1 | L177: 铬铁 | M177: 矿产品 | N177: 11301.2 | O177: 11211.32 | P177: 89.88 | Q177: 89.88 | S177: 226.024 | T177: -136.144 | U177: -136.144 | V177: 全通秀丽码头 | W177: 鞍钢联众（广州）不锈钢有限公司 | AB177: 2019-02-13 10:11 | AC177: 2月 | AD177: 豫PJ6110 | AE177: CCLU3509204 | AF177: 2019-01-08 | AG177: 南岗远太 | AH177: 李锦坚 | AI177: 广州
A178: 业务完结 | B178: 2019-01-04 | C178: 2019-01-08 | D178: 1月 | E178: 2019-01-08 00:00 | F178: 鞍钢联众（广州）不锈钢有限公司 | G178: 鞍钢联众（广州）不锈钢有限公司 | H178: QYD19010009T01 | I178: 广州市永盈物流有限公司 | J178: 集装箱 | K178: 1 | L178: 铬铁 | M178: 矿产品 | N178: 415 | O178: 360 | P178: 55 | Q178: 55 | S178: 8.3 | T178: 46.7 | U178: 46.7 | V178: 全通秀丽码头 | W178: 鞍钢联众（广州）不锈钢有限公司 | AB178: 2019-02-13 10:11 | AC178: 2月 | AD178: 豫PJ6110 | AE178: CCLU3688671 | AF178: 2019-01-08 | AG178: 南岗远太 | AH178: 李锦坚 | AI178: 广州
A179: 业务完结 | B179: 2019-01-04 | C179: 2019-01-08 | D179: 1月 | E179: 2019-01-08 00:00 | F179: 鞍钢联众（广州）不锈钢有限公司 | G179: 鞍钢联众（广州）不锈钢有限公司 | H179: QYD19010009T01 | I179: 广州市永盈物流有限公司 | J179: 集装箱 | K179: 1 | L179: 铬铁 | M179: 矿产品 | N179: 415 | O179: 360 | P179: 55 | Q179: 55 | S179: 8.3 | T179: 46.7 | U179: 46.7 | V179: 全通秀丽码头 | W179: 鞍钢联众（广州）不锈钢有限公司 | AB179: 2019-02-13 10:11 | AC179: 2月 | AD179: 豫PJ6110 | AE179: CBHU5929844 | AF179: 2019-01-08 | AG179: 南岗远太 | AH179: 李锦坚 | AI179: 广州
A180: 业务完结 | B180: 2019-01-04 | C180: 2019-01-08 | D180: 1月 | E180: 2019-01-08 00:00 | F180: 鞍钢联众（广州）不锈钢有限公司 | G180: 鞍钢联众（广州）不锈钢有限公司 | H180: QYD19010009T01 | I180: 广州市永盈物流有限公司 | J180: 集装箱 | K180: 1 | L180: 铬铁 | M180: 矿产品 | N180: 415 | O180: 360 | P180: 55 | Q180: 55 | S180: 8.3 | T180: 46.7 | U180: 46.7 | V180: 全通秀丽码头 | W180: 鞍钢联众（广州）不锈钢有限公司 | AB180: 2019-02-13 10:11 | AC180: 2月 | AD180: 粤AAM436 | AE180: CBHU5818157 | AF180: 2019-01-08 | AG180: 南岗远太 | AH180: 李锦坚 | AI180: 广州
A181: 业务完结 | B181: 2019-01-04 | C181: 2019-01-08 | D181: 1月 | E181: 2019-01-08 00:00 | F181: 鞍钢联众（广州）不锈钢有限公司 | G181: 鞍钢联众（广州）不锈钢有限公司 | H181: QYD19010009T01 | I181: 广州市永盈物流有限公司 | J181: 集装箱 | K181: 1 | L181: 铬铁 | M181: 矿产品 | N181: 415 | O181: 360 | P181: 55 | Q181: 55 | S181: 8.3 | T181: 46.7 | U181: 46.7 | V181: 全通秀丽码头 | W181: 鞍钢联众（广州）不锈钢有限公司 | AB181: 2019-02-13 10:11 | AC181: 2月 | AD181: 粤AAM436 | AE181: FCLU5314133 | AF181: 2019-01-08 | AG181: 南岗远太 | AH181: 李锦坚 | AI181: 广州
A182: 业务完结 | B182: 2019-01-04 | C182: 2019-01-08 | D182: 1月 | E182: 2019-01-08 00:00 | F182: 鞍钢联众（广州）不锈钢有限公司 | G182: 鞍钢联众（广州）不锈钢有限公司 | H182: QYD19010009T01 | I182: 广州市永盈物流有限公司 | J182: 集装箱 | K182: 1 | L182: 铬铁 | M182: 矿产品 | N182: 415 | O182: 360 | P182: 55 | Q182: 55 | S182: 8.3 | T182: 46.7 | U182: 46.7 | V182: 全通秀丽码头 | W182: 鞍钢联众（广州）不锈钢有限公司 | AB182: 2019-02-13 10:11 | AC182: 2月 | AD182: 粤AD2255 | AE182: FCLU4551969 | AF182: 2019-01-08 | AG182: 南岗远太 | AH182: 李锦坚 | AI182: 广州
A183: 业务完结 | B183: 2019-01-04 | C183: 2019-01-08 | D183: 1月 | E183: 2019-01-08 00:00 | F183: 鞍钢联众（广州）不锈钢有限公司 | G183: 鞍钢联众（广州）不锈钢有限公司 | H183: QYD19010009T01 | I183: 广州市永盈物流有限公司 | J183: 集装箱 | K183: 1 | L183: 铬铁 | M183: 矿产品 | N183: 415 | O183: 360 | P183: 55 | Q183: 55 | S183: 8.3 | T183: 46.7 | U183: 46.7 | V183: 全通秀丽码头 | W183: 鞍钢联众（广州）不锈钢有限公司 | AB183: 2019-02-13 10:11 | AC183: 2月 | AD183: 粤AD2255 | AE183: CSNU1243999 | AF183: 2019-01-08 | AG183: 南岗远太 | AH183: 李锦坚 | AI183: 广州
A184: 业务完结 | B184: 2019-01-04 | C184: 2019-01-08 | D184: 1月 | E184: 2019-01-08 00:00 | F184: 鞍钢联众（广州）不锈钢有限公司 | G184: 鞍钢联众（广州）不锈钢有限公司 | H184: QYD19010009T01 | I184: 广州市永盈物流有限公司 | J184: 集装箱 | K184: 1 | L184: 铬铁 | M184: 矿产品 | N184: 415 | O184: 360 | P184: 55 | Q184: 55 | S184: 8.3 | T184: 46.7 | U184: 46.7 | V184: 全通秀丽码头 | W184: 鞍钢联众（广州）不锈钢有限公司 | AB184: 2019-02-13 10:11 | AC184: 2月 | AD184: 粤AD2255 | AE184: CSNU1236449 | AF184: 2019-01-08 | AG184: 南岗远太 | AH184: 李锦坚 | AI184: 广州
A185: 业务完结 | B185: 2019-01-04 | C185: 2019-01-08 | D185: 1月 | E185: 2019-01-08 00:00 | F185: 鞍钢联众（广州）不锈钢有限公司 | G185: 鞍钢联众（广州）不锈钢有限公司 | H185: QYD19010009T01 | I185: 广州市永盈物流有限公司 | J185: 集装箱 | K185: 1 | L185: 铬铁 | M185: 矿产品 | N185: 415 | O185: 360 | P185: 55 | Q185: 55 | S185: 8.3 | T185: 46.7 | U185: 46.7 | V185: 全通秀丽码头 | W185: 鞍钢联众（广州）不锈钢有限公司 | AB185: 2019-02-13 10:11 | AC185: 2月 | AD185: 粤A82478 | AE185: TTNU1939959 | AF185: 2019-01-08 | AG185: 南岗远太 | AH185: 李锦坚 | AI185: 广州
A186: 业务完结 | B186: 2019-01-04 | C186: 2019-01-08 | D186: 1月 | E186: 2019-01-08 00:00 | F186: 鞍钢联众（广州）不锈钢有限公司 | G186: 鞍钢联众（广州）不锈钢有限公司 | H186: QYD19010009T01 | I186: 广州市永盈物流有限公司 | J186: 集装箱 | K186: 1 | L186: 铬铁 | M186: 矿产品 | N186: 415 | O186: 360 | P186: 55 | Q186: 55 | S186: 8.3 | T186: 46.7 | U186: 46.7 | V186: 全通秀丽码头 | W186: 鞍钢联众（广州）不锈钢有限公司 | AB186: 2019-02-13 10:11 | AC186: 2月 | AD186: 粤A82478 | AE186: CALU6030811 | AF186: 2019-01-08 | AG186: 南岗远太 | AH186: 李锦坚 | AI186: 广州
A187: 业务完结 | B187: 2019-01-04 | C187: 2019-01-08 | D187: 1月 | E187: 2019-01-08 00:00 | F187: 鞍钢联众（广州）不锈钢有限公司 | G187: 鞍钢联众（广州）不锈钢有限公司 | H187: QYD19010009T01 | I187: 广州市永盈物流有限公司 | J187: 集装箱 | K187: 1 | L187: 铬铁 | M187: 矿产品 | N187: 415 | O187: 360 | P187: 55 | Q187: 55 | S187: 8.3 | T187: 46.7 | U187: 46.7 | V187: 全通秀丽码头 | W187: 鞍钢联众（广州）不锈钢有限公司 | AB187: 2019-02-13 10:11 | AC187: 2月 | AD187: 豫P1D220 | AE187: TEMU4842229 | AF187: 2019-01-08 | AG187: 南岗远太 | AH187: 李锦坚 | AI187: 广州
A188: 业务完结 | B188: 2019-01-04 | C188: 2019-01-08 | D188: 1月 | E188: 2019-01-08 00:00 | F188: 鞍钢联众（广州）不锈钢有限公司 | G188: 鞍钢联众（广州）不锈钢有限公司 | H188: QYD19010009T01 | I188: 广州市永盈物流有限公司 | J188: 集装箱 | K188: 1 | L188: 铬铁 | M188: 矿产品 | N188: 415 | O188: 360 | P188: 55 | Q188: 55 | S188: 8.3 | T188: 46.7 | U188: 46.7 | V188: 全通秀丽码头 | W188: 鞍钢联众（广州）不锈钢有限公司 | AB188: 2019-02-13 10:11 | AC188: 2月 | AD188: 豫P1D220 | AE188: TEMU5783671 | AF188: 2019-01-08 | AG188: 南岗远太 | AH188: 李锦坚 | AI188: 广州
A189: 业务完结 | B189: 2019-01-04 | C189: 2019-01-08 | D189: 1月 | E189: 2019-01-08 00:00 | F189: 鞍钢联众（广州）不锈钢有限公司 | G189: 鞍钢联众（广州）不锈钢有限公司 | H189: QYD19010009T01 | I189: 广州市永盈物流有限公司 | J189: 集装箱 | K189: 1 | L189: 铬铁 | M189: 矿产品 | N189: 415 | O189: 360 | P189: 55 | Q189: 55 | S189: 8.3 | T189: 46.7 | U189: 46.7 | V189: 全通秀丽码头 | W189: 鞍钢联众（广州）不锈钢有限公司 | AB189: 2019-02-13 10:11 | AC189: 2月 | AD189: 豫P1D220 | AE189: FCLU5834480 | AF189: 2019-01-08 | AG189: 南岗远太 | AH189: 李锦坚 | AI189: 广州
A190: 业务完结 | B190: 2019-01-04 | C190: 2019-01-08 | D190: 1月 | E190: 2019-01-08 00:00 | F190: 鞍钢联众（广州）不锈钢有限公司 | G190: 鞍钢联众（广州）不锈钢有限公司 | H190: QYD19010009T01 | I190: 广州市永盈物流有限公司 | J190: 集装箱 | K190: 1 | L190: 铬铁 | M190: 矿产品 | N190: 415 | O190: 360 | P190: 55 | Q190: 55 | S190: 8.3 | T190: 46.7 | U190: 46.7 | V190: 全通秀丽码头 | W190: 鞍钢联众（广州）不锈钢有限公司 | AB190: 2019-02-13 10:11 | AC190: 2月 | AD190: 豫P1D220 | AE190: BSLU2777511 | AF190: 2019-01-08 | AG190: 南岗远太 | AH190: 李锦坚 | AI190: 广州
A191: 业务完结 | B191: 2019-01-04 | C191: 2019-01-08 | D191: 1月 | E191: 2019-01-08 00:00 | F191: 鞍钢联众（广州）不锈钢有限公司 | G191: 鞍钢联众（广州）不锈钢有限公司 | H191: QYD19010009T01 | I191: 广州市永盈物流有限公司 | J191: 集装箱 | K191: 1 | L191: 铬铁 | M191: 矿产品 | N191: 415 | O191: 360 | P191: 55 | Q191: 55 | S191: 8.3 | T191: 46.7 | U191: 46.7 | V191: 全通秀丽码头 | W191: 鞍钢联众（广州）不锈钢有限公司 | AB191: 2019-02-13 10:11 | AC191: 2月 | AD191: 粤ABB476 | AE191: SEGU2916645 | AF191: 2019-01-08 | AG191: 南岗远太 | AH191: 李锦坚 | AI191: 广州
A192: 业务完结 | B192: 2019-01-04 | C192: 2019-01-08 | D192: 1月 | E192: 2019-01-08 00:00 | F192: 鞍钢联众（广州）不锈钢有限公司 | G192: 鞍钢联众（广州）不锈钢有限公司 | H192: QYD19010009T01 | I192: 广州市永盈物流有限公司 | J192: 集装箱 | K192: 1 | L192: 铬铁 | M192: 矿产品 | N192: 415 | O192: 360 | P192: 55 | Q192: 55 | S192: 8.3 | T192: 46.7 | U192: 46.7 | V192: 全通秀丽码头 | W192: 鞍钢联众（广州）不锈钢有限公司 | AB192: 2019-02-13 10:11 | AC192: 2月 | AD192: 粤ABB476 | AE192: CBHU3965210 | AF192: 2019-01-08 | AG192: 南岗远太 | AH192: 李锦坚 | AI192: 广州
A193: 业务完结 | B193: 2019-01-04 | C193: 2019-01-08 | D193: 1月 | E193: 2019-01-08 00:00 | F193: 鞍钢联众（广州）不锈钢有限公司 | G193: 鞍钢联众（广州）不锈钢有限公司 | H193: QYD19010009T01 | I193: 广州市永盈物流有限公司 | J193: 集装箱 | K193: 1 | L193: 铬铁 | M193: 矿产品 | N193: 415 | O193: 360 | P193: 55 | Q193: 55 | S193: 8.3 | T193: 46.7 | U193: 46.7 | V193: 全通秀丽码头 | W193: 鞍钢联众（广州）不锈钢有限公司 | AB193: 2019-02-13 10:11 | AC193: 2月 | AD193: 粤ABB476 | AE193: BSIU2598814 | AF193: 2019-01-08 | AG193: 南岗远太 | AH193: 李锦坚 | AI193: 广州
A194: 业务完结 | B194: 2019-01-04 | C194: 2019-01-08 | D194: 1月 | E194: 2019-01-08 00:00 | F194: 鞍钢联众（广州）不锈钢有限公司 | G194: 鞍钢联众（广州）不锈钢有限公司 | H194: QYD19010009T01 | I194: 广州市永盈物流有限公司 | J194: 集装箱 | K194: 1 | L194: 铬铁 | M194: 矿产品 | N194: 415 | O194: 360 | P194: 55 | Q194: 55 | S194: 8.3 | T194: =P194-R194-S194 -> 46.7 | U194: 46.7 | V194: 全通秀丽码头 | W194: 鞍钢联众（广州）不锈钢有限公司 | AB194: 2019-02-13 10:11 | AC194: 2月 | AD194: 粤ABB476 | AE194: CBHU5832047 | AF194: 2019-01-08 | AG194: 南岗远太 | AH194: 李锦坚 | AI194: 广州
A195: 业务完结 | B195: 2019-01-04 | C195: 2019-01-08 | D195: 1月 | E195: 2019-01-08 00:00 | F195: 鞍钢联众（广州）不锈钢有限公司 | G195: 鞍钢联众（广州）不锈钢有限公司 | H195: QYD19010009T01 | I195: 广州市永盈物流有限公司 | J195: 集装箱 | K195: 1 | L195: 铬铁 | M195: 矿产品 | N195: 415 | O195: 360 | P195: 55 | Q195: 55 | S195: 8.3 | T195: 46.7 | U195: 46.7 | V195: 全通秀丽码头 | W195: 鞍钢联众（广州）不锈钢有限公司 | AB195: 2019-02-13 10:11 | AC195: 2月 | AD195: 粤AN6926 | AE195: CSNU1280483 | AF195: 2019-01-08 | AG195: 南岗远太 | AH195: 李锦坚 | AI195: 广州
A196: 业务完结 | B196: 2019-01-04 | C196: 2019-01-08 | D196: 1月 | E196: 2019-01-08 00:00 | F196: 鞍钢联众（广州）不锈钢有限公司 | G196: 鞍钢联众（广州）不锈钢有限公司 | H196: QYD19010009T01 | I196: 广州市永盈物流有限公司 | J196: 集装箱 | K196: 1 | L196: 铬铁 | M196: 矿产品 | N196: 415 | O196: 360 | P196: 55 | Q196: 55 | S196: 8.3 | T196: 46.7 | U196: 46.7 | V196: 全通秀丽码头 | W196: 鞍钢联众（广州）不锈钢有限公司 | AB196: 2019-02-13 10:11 | AC196: 2月 | AD196: 粤AN6926 | AE196: DFSU1833957 | AF196: 2019-01-08 | AG196: 南岗远太 | AH196: 李锦坚 | AI196: 广州
A197: 业务完结 | B197: 2019-01-04 | C197: 2019-01-08 | D197: 1月 | E197: 2019-01-08 00:00 | F197: 鞍钢联众（广州）不锈钢有限公司 | G197: 鞍钢联众（广州）不锈钢有限公司 | H197: QYD19010009T01 | I197: 广州市永盈物流有限公司 | J197: 集装箱 | K197: 1 | L197: 铬铁 | M197: 矿产品 | N197: 415 | O197: 360 | P197: 55 | Q197: 55 | S197: 8.3 | T197: 46.7 | U197: 46.7 | V197: 全通秀丽码头 | W197: 鞍钢联众（广州）不锈钢有限公司 | AB197: 2019-02-13 10:11 | AC197: 2月 | AD197: 粤AD7849 | AE197: CSNU1278022 | AF197: 2019-01-08 | AG197: 南岗远太 | AH197: 李锦坚 | AI197: 广州
A198: 业务完结 | B198: 2019-01-04 | C198: 2019-01-08 | D198: 1月 | E198: 2019-01-08 00:00 | F198: 鞍钢联众（广州）不锈钢有限公司 | G198: 鞍钢联众（广州）不锈钢有限公司 | H198: QYD19010009T01 | I198: 广州市永盈物流有限公司 | J198: 集装箱 | K198: 1 | L198: 铬铁 | M198: 矿产品 | N198: 415 | O198: 360 | P198: 55 | Q198: 55 | S198: 8.3 | T198: 46.7 | U198: 46.7 | V198: 全通秀丽码头 | W198: 鞍钢联众（广州）不锈钢有限公司 | AB198: 2019-02-13 10:11 | AC198: 2月 | AD198: 粤AD7849 | AE198: CBHU4512481 | AF198: 2019-01-08 | AG198: 南岗远太 | AH198: 李锦坚 | AI198: 广州
A199: 业务完结 | B199: 2019-01-04 | C199: 2019-01-08 | D199: 1月 | E199: 2019-01-08 00:00 | F199: 鞍钢联众（广州）不锈钢有限公司 | G199: 鞍钢联众（广州）不锈钢有限公司 | H199: QYD19010009T01 | I199: 广州市永盈物流有限公司 | J199: 集装箱 | K199: 1 | L199: 铬铁 | M199: 矿产品 | N199: 415 | O199: 360 | P199: 55 | Q199: 55 | S199: 8.3 | T199: 46.7 | U199: 46.7 | V199: 全通秀丽码头 | W199: 鞍钢联众（广州）不锈钢有限公司 | AB199: 2019-02-13 10:11 | AC199: 2月 | AD199: 粤AD2255 | AE199: BMOU2751928 | AF199: 2019-01-08 | AG199: 南岗远太 | AH199: 李锦坚 | AI199: 广州
A200: 业务完结 | B200: 2019-01-04 | C200: 2019-01-08 | D200: 1月 | E200: 2019-01-08 00:00 | F200: 鞍钢联众（广州）不锈钢有限公司 | G200: 鞍钢联众（广州）不锈钢有限公司 | H200: QYD19010009T01 | I200: 广州市永盈物流有限公司 | J200: 集装箱 | K200: 1 | L200: 铬铁 | M200: 矿产品 | N200: 415 | O200: 360 | P200: 55 | Q200: 55 | S200: 8.3 | T200: 46.7 | U200: 46.7 | V200: 全通秀丽码头 | W200: 鞍钢联众（广州）不锈钢有限公司 | AB200: 2019-02-13 10:11 | AC200: 2月 | AD200: 粤AD7803 | AE200: DFSU1316846 | AF200: 2019-01-08 | AG200: 南岗远太 | AH200: 李锦坚 | AI200: 广州
... 2049 more rows

Sheet 整体情况
A2: 月份 | B2: 计数项:柜量 | C2: 求和项:送货重量 | D2: 求和项:应收费用 | E2: 求和项:应付费用 | F2: 求和项:毛利 | G2: 求和项:其他费用 | H2: 求和项:资金利息 | I2: 求和项:实际毛利
A3: 1月 | B3: 2592 | C3: 79496.542 | D3: 2498189.49 | E3: 2324947.54 | F3: 173241.95 | G3: 6300 | H3: 23579.36305 | I3: 143362.5869
A4: 2月 | B4: 819 | C4: 37945.311 | D4: 1362087.03 | E4: 1274352.61 | F4: 87734.42 | G4: 2602.818182 | H4: 5902.820061 | I4: 79228.78176
A5: 3月 | B5: 1691 | C5: 48791.119 | D5: 1910688.63 | E5: 1795839.75 | F5: 114848.88 | G5: 7305.247706 | H5: 15737.00766 | I5: 91806.62463
A6: 4月 | B6: 1478 | C6: 43429.781 | D6: 1847641.86 | E6: 1765679.53 | F6: 81962.33 | G6: 5224.605505 | H6: 944.6472 | I6: 75793.0773
A7: 5月 | B7: 1657 | C7: 48147.87 | D7: 2479413.41 | E7: 2374844.4 | F7: 104569.01 | G7: 3960 | H7: 6773.470191 | I7: 93835.53981
A8: 6月 | B8: 1692 | C8: 100408.784 | D8: 1802948.18 | E8: 1635745.98 | F8: 167202.2 | H8: 18012.74893 | I8: 149189.4511
A9: 7月 | B9: 1215 | C9: 89400.178 | D9: 1482745.62 | E9: 1407071.5 | F9: 75674.12 | H9: 968.926 | I9: 74705.194
A10: (空白)
A11: 总计 | B11: 11144 | C11: 447619.585 | D11: 13383714.22 | E11: 12578481.31 | F11: 805232.91 | G11: 25392.67139 | H11: 71918.9831 | I11: 707921.2555
A15: 行标签 | B15: 求和项:柜量 | C15: 求和项:送货重量 | D15: 求和项:应收费用 | E15: 求和项:应付费用 | F15: 求和项:毛利 | G15: 求和项:其他费用 | H15: 求和项:资金利息 | I15: 求和项:实际毛利
A16: 集装箱 | B16: 11144 | C16: 250231.204 | D16: 6768157.73 | E16: 6407672.41 | F16: 360485.32 | G16: 17820 | H16: 22297.2982 | I16: 320368.0218
A17: 1月 | B17: 2592 | C17: 47181.832 | D17: 1440066.35 | E17: 1323945.95 | F17: 116120.4 | G17: 6300 | H17: 8279.207 | I17: 101541.193
A18: 2月 | B18: 819 | C18: 15164.601 | D18: 460683.01 | E18: 442437.37 | F18: 18245.64 | G18: 1710 | H18: 585.7768 | I18: 15949.8632
A19: 3月 | B19: 1691 | C19: 17023.091 | D19: 1066185.78 | E19: 1015075.47 | F19: 51110.31 | G19: 4230 | H19: 2120.3306 | I19: 44759.9794
A20: 4月 | B20: 1478 | C20: 25448.606 | D20: 917059.76 | E20: 874601.09 | F20: 42458.67 | G20: 1620 | H20: 944.6472 | I20: 39894.0228
A21: 5月 | B21: 1657 | C21: 22424.14 | D21: 965499.06 | E21: 917611.21 | F21: 47887.85 | G21: 3960 | H21: 4944.6812 | I21: 38983.1688
A22: 6月 | B22: 1692 | C22: 69245.119 | D22: 1087716.23 | E22: 1031874.29 | F22: 55841.94 | H22: 4482.8446 | I22: 51359.0954
A23: 7月 | B23: 1215 | C23: 53743.815 | D23: 830947.54 | E23: 802127.03 | F23: 28820.51 | H23: 939.8108 | I23: 27880.6992
A24: 散货 | C24: 197388.381 | D24: 6615556.49 | E24: 6170808.9 | F24: 444747.59 | G24: 7572.671393 | H24: 49621.6849 | I24: 387553.2337
A25: 1月 | C25: 32314.71 | D25: 1058123.14 | E25: 1001001.59 | F25: 57121.55 | H25: 15300.15605 | I25: 41821.39395
A26: 2月 | C26: 22780.71 | D26: 901404.02 | E26: 831915.24 | F26: 69488.78 | G26: 892.8181818 | H26: 5317.043261 | I26: 63278.91856
A27: 3月 | C27: 31768.028 | D27: 844502.85 | E27: 780764.28 | F27: 63738.57 | G27: 3075.247706 | H27: 13616.67706 | I27: 47046.64523
A28: 4月 | C28: 17981.175 | D28: 930582.1 | E28: 891078.44 | F28: 39503.66 | G28: 3604.605505 | I28: 35899.0545
A29: 5月 | C29: 25723.73 | D29: 1513914.35 | E29: 1457233.19 | F29: 56681.16 | H29: 1828.788991 | I29: 54852.37101
A30: 6月 | C30: 31163.665 | D30: 715231.95 | E30: 603871.69 | F30: 111360.26 | H30: 13529.90433 | I30: 97830.35567
A31: 7月 | C31: 35656.363 | D31: 651798.08 | E31: 604944.47 | F31: 46853.61 | H31: 29.1152 | I31: 46824.4948
A32: (空白)
A33: (空白)
A34: 总计 | B34: 11144 | C34: 447619.585 | D34: 13383714.22 | E34: 12578481.31 | F34: 805232.91 | G34: 25392.67139 | H34: 71918.9831 | I34: 707921.2555

Sheet 按货类1
A3: 行标签 | B3: 求和项:应收费用 | C3: 求和项:毛利 | D3: 求和项:实际毛利 | E3: 求和项:送货重量 | F3: 求和项:柜量
A4: 1月 | B4: 2498189.49 | C4: 173241.95 | D4: 143362.5869 | E4: 79496.542 | F4: 2592
A5: 钢材 | B5: 939533.21 | C5: 49161.58 | D5: 35241.36255 | E5: 27832.35 | F5: 16
A6: 矿产品 | B6: 518973.28 | C6: 42400.43 | D6: 32783.1644 | E6: 7436.933 | F6: 632
A7: 粮食 | B7: 372260 | C7: 32368.92 | D7: 32368.92 | E7: 19712.488 | F7: 818
A8: 饲料 | B8: 506280 | C8: 27805 | D8: 21505 | E8: 21947.472 | F8: 974
A9: 油脂 | B9: 78250 | C9: 17406.77 | D9: 17406.77 | E9: 477.75 | F9: 44
A10: 淀粉 | B10: 27510 | C10: 1270 | D10: 1270 | E10: 341.192 | F10: 34
A11: 糖 | B11: 22309 | C11: 1129.25 | D11: 1129.25 | E11: 632.57 | F11: 18
A12: 胶粒 | B12: 18030 | C12: 760 | D12: 760 | E12: 1037.997 | F12: 49
A13: 其他 | B13: 5644 | C13: 590 | D13: 548.12 | E13: 3 | F13: 4
A14: 植物纤维 | B14: 9400 | C14: 350 | D14: 350 | E14: 74.79 | F14: 3
A15: 2月 | B15: 1362087.03 | C15: 87734.42 | D15: 79228.78176 | E15: 37945.311 | F15: 819
A16: 钢材 | B16: 724282.38 | C16: 59725.74 | D16: 53479.17136 | E16: 17981.84 | F16: 8
A17: 粮食 | B17: 338245.17 | C17: 14978.68 | D17: 14978.68 | E17: 12778.585 | F17: 350
A18: 饲料 | B18: 157336 | C18: 7780 | D18: 6070 | E18: 5066.985 | F18: 274
A19: 淀粉 | B19: 51750 | C19: 1950 | D19: 1950 | E19: 1220.216 | F19: 68
A20: 矿产品 | B20: 44553.48 | C20: 2450 | D20: 1900.9304 | E20: 3.81 | F20: 85
A21: 其他 | B21: 5540 | C21: 750 | D21: 750 | E21: 2
A22: 纸浆 | B22: 29250 | C22: 90 | D22: 90 | E22: 251.9 | F22: 9
A23: 植物纤维 | B23: 840 | C23: 40 | D23: 40 | E23: 53 | F23: 2
A24: 大米 | B24: 840 | C24: 40 | D24: 40 | E24: 35.61 | F24: 2
A25: 胶粒 | B25: 9450 | C25: -70 | D25: -70 | E25: 551.365 | F25: 21
A26: 3月 | B26: 1910688.63 | C26: 114848.88 | D26: 91806.62463 | E26: 48791.119 | F26: 1691
A27: 钢材 | B27: 559202.19 | C27: 49445.15 | D27: 32753.22523 | E27: 20537.938
A28: 粮食 | B28: 444436.15 | C28: 19697.37 | D28: 19697.37 | E28: 15957.5 | F28: 353
A29: 饲料 | B29: 424553.01 | C29: 22837.96 | D29: 18607.96 | E29: 8359.185 | F29: 798
A30: 淀粉 | B30: 219051 | C30: 6690 | D30: 6690 | E30: 2602.097 | F30: 342
A31: 油脂 | B31: 22850 | C31: 4065 | D31: 4065 | F31: 15
A32: 胶粒 | B32: 74107.75 | C32: 3868 | D32: 3868 | E32: 937.509 | F32: 37
A33: 矿产品 | B33: 120711.73 | C33: 5098.6 | D33: 3053.2054 | E33: 319.38 | F33: 115
A34: 纸浆 | B34: 24560 | C34: 2280 | D34: 2280 | F34: 23
A35: 植物纤维 | B35: 13600 | C35: 600 | D35: 600 | E35: 51.46 | F35: 5
A36: 其他 | B36: 7616.8 | C36: 266.8 | D36: 191.864 | E36: 26.05 | F36: 3
A37: 4月 | B37: 1847641.86 | C37: 81962.33 | D37: 75793.0773 | E37: 43429.781 | F37: 1478
A38: 饲料 | B38: 355772.52 | C38: 22200.96 | D38: 20580.96 | E38: 15824.344 | F38: 694
A39: 糖 | B39: 650000 | C39: 20000 | D39: 20000 | E39: 10000
A40: 淀粉 | B40: 230419 | C40: 10030 | D40: 10030 | E40: 4793.741 | F40: 320
A41: 胶粒 | B41: 219760 | C41: 10000 | D41: 10000 | E41: 3741.418 | F41: 152
A42: 粮食 | B42: 114779.2 | C42: 6272.83 | D42: 6272.83 | E42: 4044.04 | F42: 152
A43: 钢材 | B43: 184368.78 | C43: 8325.18 | D43: 4720.574495 | E43: 3929.02
A44: 油脂 | B44: 11990 | C44: 1890 | D44: 1890 | E44: 51.42 | F44: 9
A45: 矿产品 | B45: 62052.36 | C45: 2523.36 | D45: 1578.7128 | E45: 741.1 | F45: 138
A46: 植物纤维 | B46: 15250 | C46: 660 | D46: 660 | E46: 186.838 | F46: 8
A47: 大米 | B47: 1900 | C47: 40 | D47: 40 | E47: 99.92 | F47: 4
A48: 其他 | B48: 1350 | C48: 20 | D48: 20 | E48: 17.94 | F48: 1
A49: 5月 | B49: 2479413.41 | C49: 104569.01 | D49: 93835.53981 | E49: 48147.87 | F49: 1657
A50: 糖 | B50: 1412255 | C50: 43454 | D50: 43454 | E50: 21727
A51: 饲料 | B51: 357880.31 | C51: 23007.25 | D51: 19047.25 | E51: 15625.011 | F51: 705
A52: 矿产品 | B52: 292669.06 | C52: 15383.52 | D52: 10438.8388 | E52: 239.4 | F52: 451
A53: 钢材 | B53: 48923.04 | C53: 8214.47 | D53: 6385.681009 | E53: 1993.38 | F53: 24
A54: 胶粒 | B54: 151035 | C54: 5361 | D54: 5361 | E54: 3520.176 | F54: 157
A55: 淀粉 | B55: 165525 | C55: 5350 | D55: 5350 | E55: 3843.743 | F55: 267
A56: 粮食 | B56: 28536 | C56: 2308.77 | D56: 2308.77 | E56: 1124.09 | F56: 38
A57: 油脂 | B57: 9540 | C57: 1220 | D57: 1220 | F57: 10
A58: 植物纤维 | B58: 9250 | C58: 220 | D58: 220 | E58: 74.07 | F58: 5
A59: 纸浆 | B59: 3800 | C59: 50 | D59: 50 | E59: 1
A60: 6月 | B60: 1802948.18 | C60: 167202.2 | D60: 149189.4511 | E60: 100408.784 | F60: 1692
A61: 钢材 | B61: 371446.54 | C61: 79768.4 | D61: 66238.49567 | E61: 16015.28
A62: 饲料 | B62: 503707.08 | C62: 30756 | D62: 30756 | E62: 21906.505 | F62: 737
A63: 粮食 | B63: 464210.33 | C63: 29014.03 | D63: 29014.03 | E63: 19091.555 | F63: 314
A64: 矿产品 | B64: 241242.23 | C64: 13616.77 | D64: 9133.9254 | E64: 1513.76 | F64: 427
A65: 淀粉 | B65: 75869 | C65: 4730 | D65: 4730 | E65: 39481.664 | F65: 101
A66: 油脂 | B66: 27230 | C66: 4590 | D66: 4590 | E66: 236.18 | F66: 22
A67: 胶粒 | B67: 85467 | C67: 3447 | D67: 3447 | E67: 1634.79 | F67: 71
A68: 糖 | B68: 13476 | C68: 660 | D68: 660 | E68: 427.39 | F68: 17
A69: 其他 | B69: 12700 | C69: 420 | D69: 420 | E69: 11
A70: 植物纤维 | B70: 7600 | C70: 200 | D70: 200 | E70: 90.66 | F70: 3
A71: 7月 | B71: 1482745.62 | C71: 75674.12 | D71: 74705.194 | E71: 89400.178 | F71: 1215
A72: 饲料 | B72: 523908.59 | C72: 25496.06 | D72: 25496.06 | E72: 19974.86 | F72: 674
A73: 钢材 | B73: 295646.45 | C73: 24115.56 | D73: 24115.56 | E73: 23986.233
A74: 粮食 | B74: 222318.96 | C74: 17841.4 | D74: 17841.4 | E74: 9995.79 | F74: 208
A75: 胶粒 | B75: 180665 | C75: 6400 | D75: 6400 | E75: 3239.965 | F75: 125
A76: 糖 | B76: 83988.52 | C76: 2521.54 | D76: 2521.54 | E76: 1324.8 | F76: 13
A77: 淀粉 | B77: 42806 | C77: 1650 | D77: 1650 | E77: 828.2 | F77: 41
A78: 油脂 | B78: 6450 | C78: 1050 | D78: 1050 | E78: 56.64 | F78: 3
A79: 其他 | B79: 10996.36 | C79: 636.36 | D79: 628.4328 | E79: 13
A80: 矿产品 | B80: 115965.74 | C80: -4036.8 | D80: -4997.7988 | E80: 29980.69 | F80: 151
A81: (空白)
A82: (空白)
A83: 总计 | B83: 13383714.22 | C83: 805232.91 | D83: 707921.2555 | E83: 447619.585 | F83: 11144

Sheet 按货类
A3: 行标签 | B3: 求和项:柜量 | C3: 求和项:送货重量 | D3: 求和项:应收费用 | E3: 求和项:应付费用 | F3: 求和项:毛利 | G3: 求和项:实际毛利
A4: 钢材 | C4: 111974.821 | D4: 3087216.15 | E4: 2810622.47 | F4: 276593.68 | G4: 221255.3991
A5: 糖 | C5: 33001.55 | D5: 2146006.52 | E5: 2079601.73 | F5: 66404.79 | G5: 66404.79
A6: 粮食 | C6: 31143.245 | D6: 737144.24 | E6: 683852.23 | F6: 53292.01 | G6: 53292.01
A7: 饲料 | C7: 13049.37 | D7: 307356.26 | E7: 279833.03 | F7: 27523.23 | G7: 27523.23
A8: 矿产品 | C8: 5517.64 | D8: 111028.21 | E8: 103106.69 | F8: 7921.52 | G8: 6089.3718
A9: 胶粒 | C9: 1806.72 | D9: 131968.75 | E9: 124102.75 | F9: 7866 | G9: 7866
A10: 淀粉 | C10: 750.335 | D10: 47200 | E10: 44310 | F10: 2890 | G10: 2890
A11: 其他 | C11: 35 | D11: 34336.36 | E11: 32430 | F11: 1906.36 | G11: 1882.4328
A12: 植物纤维 | C12: 108.7 | D12: 9500 | E12: 9200 | F12: 300 | G12: 300
A13: 纸浆 | C13: 1 | D13: 3800 | E13: 3750 | F13: 50 | G13: 50
A14: 总计 | C14: 197388.381 | D14: 6615556.49 | E14: 6170808.9 | F14: 444747.59 | G14: 387553.2337

Sheet 按客户
A3: 行标签 | B3: 求和项:送货重量 | C3: 求和项:柜量 | D3: 求和项:应收费用 | E3: 求和项:毛利 | F3: 求和项:实际毛利
A4: 侨益物流股份有限公司 | B4: 20902.155 | C4: 874 | D4: 587080 | E4: 25920 | F4: 25920
A5: 中央储备粮江门直属库有限公司 | B5: 3193.77 | C5: 154 | D5: 81540 | E5: 2900 | F5: 2900
A6: 大连海大容川贸易有限公司 | B6: 1120.73 | C6: 42 | D6: 25596 | E6: 2504.51 | F6: 2504.51
A7: 东莞市华升造纸材料贸易有限公司 | B7: 587.95 | C7: 32 | D7: 25856 | E7: 1050 | F7: 1050
A8: 广州市中川货运运输代理有限公司 | B8: 27303.58 | C8: 7 | D8: 31395 | E8: 700 | F8: 700
A9: 广东华糖实业有限公司 | B9: 325 | C9: 13 | D9: 7930 | E9: 520 | F9: 520
A10: 广州芊禧门油脂有限公司 | B10: 116.15 | C10: 5 | D10: 10030 | E10: 360 | F10: 360
A11: 深圳广大科技发展有限公司 | B11: 166.38 | C11: 7 | D11: 13410 | E11: 350 | F11: 350
A12: 厦门鑫侨益国际货运代理有限公司 | B12: 28.1 | C12: 1 | D12: 1120 | E12: 20 | F12: 20
A13: 鞍钢联众（广州）不锈钢有限公司 | C13: 80 | D13: 46990.54 | E13: -5504 | F13: -6443.8108
A14: 总计 | B14: 53743.815 | C14: 1215 | D14: 830947.54 | E14: 28820.51 | F14: 27880.6992

Sheet 业务量分布
A3: 求和项:送货重量 | B3: 列标签
A4: 行标签 | B4: 1月 | C4: 2月 | D4: 3月 | E4: 4月 | F4: 5月 | G4: 6月 | H4: 7月 | I4: 总计
A5: 钢材 | B5: 27531.13 | C5: 17981.84 | D5: 20537.938 | E5: 3929.02 | F5: 1993.38 | G5: 16015.28 | H5: 23986.233 | I5: 111974.821
A6: 糖 | B6: 274.75 | E6: 10000 | F6: 21727 | H6: 999.8 | I6: 33001.55
A7: 粮食 | C7: 4711.72 | D7: 10152.82 | E7: 81.26 | F7: 144.49 | G7: 10688.965 | H7: 5363.99 | I7: 31143.245
A8: 饲料 | B8: 4 | C8: 1 | D8: 166.98 | E8: 3282.58 | F8: 1571.79 | G8: 4125.48 | H8: 3897.54 | I8: 13049.37
A9: 矿产品 | B9: 4439.4 | C9: 3.81 | D9: 10.63 | H9: 1063.8 | I9: 5517.64
A10: 胶粒 | D10: 551.35 | E10: 587.12 | F10: 234 | G10: 162.5 | H10: 271.75 | I10: 1806.72
A11: 淀粉 | B11: 40 | C11: 80.34 | D11: 316.85 | E11: 81.115 | F11: 30 | G11: 141.78 | H11: 60.25 | I11: 750.335
A12: 植物纤维 | B12: 23.43 | D12: 25.46 | E12: 19.08 | F12: 22.07 | G12: 18.66 | I12: 108.7
A13: 其他 | B13: 2 | C13: 2 | D13: 6 | E13: 1 | G13: 11 | H13: 13 | I13: 35
A14: 纸浆 | F14: 1 | I14: 1
A15: 总计 | B15: 32314.71 | C15: 22780.71 | D15: 31768.028 | E15: 17981.175 | F15: 25723.73 | G15: 31163.665 | H15: 35656.363 | I15: 197388.381
A21: 求和项:柜量 | B21: 列标签
A22: 行标签 | B22: 1月 | C22: 2月 | D22: 3月 | E22: 4月 | F22: 5月 | G22: 6月 | H22: 7月 | I22: 总计
A23: 饲料 | B23: 974 | C23: 274 | D23: 798 | E23: 694 | F23: 705 | G23: 737 | H23: 674 | I23: 4856
A24: 粮食 | B24: 818 | C24: 350 | D24: 353 | E24: 152 | F24: 38 | G24: 314 | H24: 208 | I24: 2233
A25: 矿产品 | B25: 632 | C25: 85 | D25: 115 | E25: 138 | F25: 451 | G25: 427 | H25: 151 | I25: 1999
A26: 淀粉 | B26: 34 | C26: 68 | D26: 342 | E26: 320 | F26: 267 | G26: 101 | H26: 41 | I26: 1173
A27: 胶粒 | B27: 49 | C27: 21 | D27: 37 | E27: 152 | F27: 157 | G27: 71 | H27: 125 | I27: 612
A28: 油脂 | B28: 44 | D28: 15 | E28: 9 | F28: 10 | G28: 22 | H28: 3 | I28: 103
A29: 糖 | B29: 18 | G29: 17 | H29: 13 | I29: 48
A30: 钢材 | B30: 16 | C30: 8 | F30: 24 | I30: 48
A31: 纸浆 | C31: 9 | D31: 23 | I31: 32
A32: 植物纤维 | B32: 3 | C32: 2 | D32: 5 | E32: 8 | F32: 5 | G32: 3 | I32: 26
A33: 其他 | B33: 4 | D33: 3 | E33: 1 | I33: 8
A34: 大米 | C34: 2 | E34: 4 | I34: 6
A35: 总计 | B35: 2592 | C35: 819 | D35: 1691 | E35: 1478 | F35: 1657 | G35: 1692 | H35: 1215 | I35: 11144

Sheet 按区域
A3: 行标签 | B3: 计数项:柜量 | C3: 求和项:送货重量 | D3: 求和项:应收费用 | E3: 求和项:应付费用 | F3: 求和项:毛利 | G3: 求和项:实际毛利
A4: 广州 | C4: 196387.581 | D4: 6535697.97 | E4: 6093001.92 | F4: 442696.05 | G4: 385501.6937
A5: 1月 | C5: 32314.71 | D5: 1058123.14 | E5: 1001001.59 | F5: 57121.55 | G5: 41821.39395
A6: 2月 | C6: 22780.71 | D6: 901404.02 | E6: 831915.24 | F6: 69488.78 | G6: 63278.91856
A7: 3月 | C7: 31768.028 | D7: 844502.85 | E7: 780764.28 | F7: 63738.57 | G7: 47046.64523
A8: 4月 | C8: 17981.175 | D8: 930582.1 | E8: 891078.44 | F8: 39503.66 | G8: 35899.0545
A9: 5月 | C9: 25722.73 | D9: 1510114.35 | E9: 1453483.19 | F9: 56631.16 | G9: 54802.37101
A10: 6月 | C10: 31163.665 | D10: 715231.95 | E10: 603871.69 | F10: 111360.26 | G10: 97830.35567
A11: 7月 | C11: 34656.563 | D11: 575739.56 | E11: 530887.49 | F11: 44852.07 | G11: 44822.9548
A12: 江门 | C12: 1000.8 | D12: 79858.52 | E12: 77806.98 | F12: 2051.54 | G12: 2051.54
A13: 5月 | C13: 1 | D13: 3800 | E13: 3750 | F13: 50 | G13: 50
A14: 7月 | C14: 999.8 | D14: 76058.52 | E14: 74056.98 | F14: 2001.54 | G14: 2001.54
A15: 总计 | C15: 197388.381 | D15: 6615556.49 | E15: 6170808.9 | F15: 444747.59 | G15: 387553.2337

Sheet 按区域-客户
A3: 行标签 | B3: 计数项:柜量 | C3: 求和项:应收费用 | D3: 求和项:应付费用 | E3: 求和项:毛利 | F3: 求和项:实际毛利
A4: 侨益物流股份有限公司 | B4: 874 | C4: 587080 | D4: 561160 | E4: 25920 | F4: 25920
A5: 中央储备粮江门直属库有限公司 | B5: 154 | C5: 81540 | D5: 78640 | E5: 2900 | F5: 2900
A6: 鞍钢联众（广州）不锈钢有限公司 | B6: 80 | C6: 46990.54 | D6: 52494.54 | E6: -5504 | F6: -6443.8108
A7: 广州市中川货运运输代理有限公司 | B7: 7 | C7: 31395 | D7: 30695 | E7: 700 | F7: 700
A8: 东莞市华升造纸材料贸易有限公司 | B8: 32 | C8: 25856 | D8: 24806 | E8: 1050 | F8: 1050
A9: 大连海大容川贸易有限公司 | B9: 42 | C9: 25596 | D9: 23091.49 | E9: 2504.51 | F9: 2504.51
A10: 深圳广大科技发展有限公司 | B10: 7 | C10: 13410 | D10: 13060 | E10: 350 | F10: 350
A11: 广州芊禧门油脂有限公司 | B11: 5 | C11: 10030 | D11: 9670 | E11: 360 | F11: 360
A12: 广东华糖实业有限公司 | B12: 13 | C12: 7930 | D12: 7410 | E12: 520 | F12: 520
A13: 厦门鑫侨益国际货运代理有限公司 | B13: 1 | C13: 1120 | D13: 1100 | E13: 20 | F13: 20
A14: 总计 | B14: 1215 | C14: 830947.54 | D14: 802127.03 | E14: 28820.51 | F14: 27880.6992

Sheet 按收入、毛利
A3: 按收入 | B3: 列标签
A4: 行标签 | B4: 1月 | C4: 2月 | D4: 3月 | E4: 4月 | F4: 5月 | G4: 6月 | H4: 7月 | I4: (空白) | J4: 总计
A5: 钢材 | B5: 939533.21 | C5: 724282.38 | D5: 559202.19 | E5: 184368.78 | F5: 48923.04 | G5: 371446.54 | H5: 295646.45 | J5: 3123402.59
A6: 饲料 | B6: 506280 | C6: 157336 | D6: 424553.01 | E6: 355772.52 | F6: 357880.31 | G6: 503707.08 | H6: 523908.59 | J6: 2829437.51
A7: 糖 | B7: 22309 | E7: 650000 | F7: 1412255 | G7: 13476 | H7: 83988.52 | J7: 2182028.52
A8: 粮食 | B8: 372260 | C8: 338245.17 | D8: 444436.15 | E8: 114779.2 | F8: 28536 | G8: 464210.33 | H8: 222318.96 | J8: 1984785.81
A9: 矿产品 | B9: 518973.28 | C9: 44553.48 | D9: 120711.73 | E9: 62052.36 | F9: 292669.06 | G9: 241242.23 | H9: 115965.74 | J9: 1396167.88
A10: 淀粉 | B10: 27510 | C10: 51750 | D10: 219051 | E10: 230419 | F10: 165525 | G10: 75869 | H10: 42806 | J10: 812930
A11: 胶粒 | B11: 18030 | C11: 9450 | D11: 74107.75 | E11: 219760 | F11: 151035 | G11: 85467 | H11: 180665 | J11: 738514.75
A12: 油脂 | B12: 78250 | D12: 22850 | E12: 11990 | F12: 9540 | G12: 27230 | H12: 6450 | J12: 156310
A13: 纸浆 | C13: 29250 | D13: 24560 | F13: 3800 | J13: 57610
A14: 植物纤维 | B14: 9400 | C14: 840 | D14: 13600 | E14: 15250 | F14: 9250 | G14: 7600 | J14: 55940
A15: 其他 | B15: 5644 | C15: 5540 | D15: 7616.8 | E15: 1350 | G15: 12700 | H15: 10996.36 | J15: 43847.16
A16: 大米 | C16: 840 | E16: 1900 | J16: 2740
A17: (空白)
A18: 总计 | B18: 2498189.49 | C18: 1362087.03 | D18: 1910688.63 | E18: 1847641.86 | F18: 2479413.41 | G18: 1802948.18 | H18: 1482745.62 | J18: 13383714.22
A22: 按毛利 | B22: 列标签
A23: 行标签 | B23: 1月 | C23: 2月 | D23: 3月 | E23: 4月 | F23: 5月 | G23: 6月 | H23: 7月 | I23: (空白) | J23: 总计
A24: 钢材 | B24: 49161.58 | C24: 59725.74 | D24: 49445.15 | E24: 8325.18 | F24: 8214.47 | G24: 79768.4 | H24: 24115.56 | J24: 278756.08
A25: 饲料 | B25: 27805 | C25: 7780 | D25: 22837.96 | E25: 22200.96 | F25: 23007.25 | G25: 30756 | H25: 25496.06 | J25: 159883.23
A26: 粮食 | B26: 32368.92 | C26: 14978.68 | D26: 19697.37 | E26: 6272.83 | F26: 2308.77 | G26: 29014.03 | H26: 17841.4 | J26: 122482
A27: 矿产品 | B27: 42400.43 | C27: 2450 | D27: 5098.6 | E27: 2523.36 | F27: 15383.52 | G27: 13616.77 | H27: -4036.8 | J27: 77435.88
A28: 糖 | B28: 1129.25 | E28: 20000 | F28: 43454 | G28: 660 | H28: 2521.54 | J28: 67764.79
A29: 淀粉 | B29: 1270 | C29: 1950 | D29: 6690 | E29: 10030 | F29: 5350 | G29: 4730 | H29: 1650 | J29: 31670
A30: 油脂 | B30: 17406.77 | D30: 4065 | E30: 1890 | F30: 1220 | G30: 4590 | H30: 1050 | J30: 30221.77
A31: 胶粒 | B31: 760 | C31: -70 | D31: 3868 | E31: 10000 | F31: 5361 | G31: 3447 | H31: 6400 | J31: 29766
A32: 其他 | B32: 590 | C32: 750 | D32: 266.8 | E32: 20 | G32: 420 | H32: 636.36 | J32: 2683.16
A33: 纸浆 | C33: 90 | D33: 2280 | F33: 50 | J33: 2420
A34: 植物纤维 | B34: 350 | C34: 40 | D34: 600 | E34: 660 | F34: 220 | G34: 200 | J34: 2070
A35: 大米 | C35: 40 | E35: 40 | J35: 80
A36: (空白)
A37: 总计 | B37: 173241.95 | C37: 87734.42 | D37: 114848.88 | E37: 81962.33 | F37: 104569.01 | G37: 167202.2 | H37: 75674.12 | J37: 805232.91

Sheet 按车队
A7: 求和项:应付费用 | B7: 列标签
A8: 行标签 | B8: 1月 | C8: 2月 | D8: 3月 | E8: 4月 | F8: 5月 | G8: 6月 | H8: 7月 | I8: (空白) | J8: 总计
A9: 广州军诚物流有限公司 | B9: 344878.9 | C9: 773901.52 | D9: 588036.73 | E9: 941304.48 | F9: 1746285.19 | G9: 867643.18 | H9: 906115.47 | J9: 6168165.47
A10: 广州市永盈物流有限公司 | B10: 490196.85 | C10: 97020.04 | D10: 363079.13 | E10: 288551 | F10: 304185.54 | G10: 214995.46 | J10: 1758028.02
A11: 广州松木货运代理有限公司 | B11: 394940 | C11: 112275 | D11: 197422 | E11: 137815 | F11: 109605 | G11: 106305 | H11: 97974.54 | J11: 1156336.54
A12: 广州联业物流有限公司 | B12: 534242.73 | J12: 534242.73
A13: 恩平市华誉货运物流有限公司 | B13: 28141.08 | C13: 74576.33 | D13: 24876.09 | E13: 48381.33 | F13: 11469.29 | G13: 150380.78 | H13: 71555 | J13: 409379.9
A14: 广州市雁城工贸有限公司 | F14: 88251.44 | G14: 119470 | H14: 173490 | J14: 381211.44
A15: 广州捷运通物流有限公司 | B15: 138631 | C15: 79376 | D15: 112713.5 | J15: 330720.5
A16: 广州旭晨物流有限公司 | C16: 2600 | D16: 140557 | E16: 141336 | F16: 4420 | J16: 288913
A17: 广州市众泰物流有限公司 | D17: 37916.75 | E17: 40750 | F17: 53130 | G17: 35280 | H17: 98120 | J17: 265196.75
A18: 东莞市宏顺物流有限公司 | B18: 6743.75 | C18: 19620.24 | D18: 163957.55 | E18: 37924.96 | F18: 6357.56 | G18: 13897.51 | H18: 6400 | J18: 254901.57
A19: 广州市宇轩物流有限公司 | B19: 122580 | C19: 15740 | D19: 52456 | E19: 59370 | F19: 2990 | J19: 253136
A20: 吉安市安达汽车物流有限公司 | B20: 184150 | C20: 3000 | J20: 187150
A21: 江门市恒鑫物流有限公司 | E21: 15126.76 | F21: 7150.38 | G21: 62014.05 | H21: 38686.49 | J21: 122977.68
A22: 广州市和埔汽车运输有限公司 | B22: 29870 | C22: 10910 | D22: 36060 | E22: 26180 | F22: 14430 | J22: 117450
A23: 广州市振威运输有限公司 | B23: 21800 | C23: 15570 | D23: 72085 | E23: 1250 | J23: 110705
A24: 广州易和供应链有限公司 | G24: 65760 | H24: 14730 | J24: 80490
A25: 广州市黄埔威盛运输服务部 | B25: 18530 | C25: 15401.2 | D25: 4780 | E25: 12900 | J25: 51611.2
A26: 衡阳市路港物流有限公司 | E26: 9200 | F26: 26570 | J26: 35770
A27: 江门市新会区骏利物流运输有限公司 | C27: 29160 | J27: 29160
A28: 广州市冠和物流有限公司 | B28: 10243.23 | C28: 9231.76 | J28: 19474.99
A29: 广州市远集物流有限公司 | C29: 10127.48 | J29: 10127.48
A30: 广州港发货运有限公司 | C30: 5843.04 | J30: 5843.04
A31: 广州市信诚物流有限公司 | E31: 5590 | J31: 5590
A32: 广州市天邦物流服务有限公司 | D32: 1900 | J32: 1900
A33: (空白)
A34: 总计 | B34: 2324947.54 | C34: 1274352.61 | D34: 1795839.75 | E34: 1765679.53 | F34: 2374844.4 | G34: 1635745.98 | H34: 1407071.5 | J34: 12578481.31

Sheet 还柜地占比
A1: 车辆类型 | B1: 集装箱
A3: 求和项:柜量 | B3: 列标签
A4: 行标签 | B4: 1月 | C4: 2月 | D4: 3月 | E4: 4月 | F4: 5月 | G4: 6月 | H4: 7月 | I4: 总计
A5: 姬堂堆场 | B5: 733 | C5: 193 | D5: 467 | E5: 661 | F5: 359 | G5: 269 | H5: 418 | I5: 3100
A6: 珉丰二场 | B6: 676 | C6: 153 | D6: 159 | E6: 38 | F6: 116 | G6: 94 | H6: 106 | I6: 1342
A7: 南岗中集 | B7: 302 | C7: 39 | D7: 225 | E7: 40 | F7: 94 | G7: 93 | H7: 35 | I7: 828
A8: 新会新港 | B8: 31 | C8: 132 | D8: 31 | E8: 95 | F8: 36 | G8: 294 | H8: 193 | I8: 812
A9: 乌冲码头 | B9: 87 | C9: 20 | D9: 209 | E9: 118 | F9: 157 | G9: 18 | H9: 3 | I9: 612
A10: 珉丰一场 | B10: 93 | C10: 128 | D10: 70 | E10: 6 | F10: 124 | G10: 149 | H10: 37 | I10: 607
A11: 广江弘运 | B11: 51 | C11: 2 | D11: 27 | E11: 10 | F11: 192 | G11: 95 | H11: 27 | I11: 404
A12: 集司码头 | B12: 64 | E12: 2 | F12: 117 | G12: 155 | H12: 58 | I12: 396
A13: 南沙二期码头 | B13: 77 | C13: 76 | D13: 122 | E13: 25 | F13: 52 | G13: 14 | H13: 15 | I13: 381
A14: 天翔堆场 | B14: 141 | D14: 101 | E14: 17 | F14: 39 | G14: 49 | H14: 29 | I14: 376
A15: 弘运C场 | B15: 44 | D15: 32 | E15: 200 | F15: 58 | G15: 15 | H15: 7 | I15: 356
A16: 华坑弘运 | D16: 3 | E16: 80 | F16: 120 | G16: 19 | H16: 37 | I16: 259
A17: 本港堆场 | B17: 5 | D17: 80 | E17: 6 | F17: 11 | G17: 103 | H17: 3 | I17: 208
A18: 鱼珠码头 | B18: 9 | D18: 2 | E18: 23 | F18: 42 | G18: 55 | H18: 7 | I18: 138
A19: 南沙珉丰 | B19: 77 | C19: 35 | D19: 26 | I19: 138
A20: 云埔弘运 | G20: 89 | H20: 47 | I20: 136
A21: 南沙一期码头 | B21: 51 | C21: 9 | D21: 10 | E21: 8 | F21: 6 | G21: 9 | H21: 21 | I21: 114
A22: 穗港中集 | B22: 21 | E22: 10 | G22: 52 | H22: 31 | I22: 114
A23: 东江口码头 | D23: 6 | E23: 71 | F23: 4 | G23: 2 | H23: 10 | I23: 93
A24: 南岗远太 | B24: 83 | D24: 1 | E24: 2 | G24: 1 | I24: 87
A25: 黄埔老港码头 | B25: 1 | D25: 21 | G25: 20 | H25: 44 | I25: 86
A26: 裕鹏堆场 | B26: 1 | C26: 28 | E26: 3 | F26: 30 | G26: 1 | I26: 63
A27: 广裕码头 | F27: 39 | G27: 17 | I27: 56
A28: 南沙弘运 | D28: 24 | H28: 27 | I28: 51
A29: 裕远堆场 | E29: 30 | F29: 13 | G29: 4 | H29: 3 | I29: 50
A30: (空白) | B30: 24 | C30: 4 | D30: 3 | G30: 8 | H30: 8 | I30: 47
A31: 新沙集装箱码头 | D31: 12 | G31: 20 | H31: 10 | I31: 42
A32: 东江仓码头 | B32: 7 | E32: 4 | F32: 24 | I32: 35
A33: 思信仓 | B33: 1 | D33: 13 | E33: 9 | F33: 1 | G33: 4 | H33: 6 | I33: 34
A34: 嘉利弘运 | D34: 21 | E34: 8 | I34: 29
A35: 嘉利码头 | D35: 1 | E35: 7 | F35: 15 | G35: 4 | I35: 27
A36: 宏明堆场 | H36: 18 | I36: 18
A37: 新会港 | G37: 6 | H37: 9 | I37: 15
A38: 穗港弘运 | B38: 7 | D38: 4 | G38: 4 | I38: 15
A39: 穗港码头（市港澳） | D39: 4 | G39: 7 | I39: 11
A40: 弘兴堆场 | D40: 10 | I40: 10
A41: 欣洁堆场 | B41: 2 | E41: 2 | G41: 4 | H41: 2 | I41: 10
A42: 新湖新港 | G42: 7 | I42: 7
A43: 裕通A仓 | B43: 3 | E43: 1 | F43: 2 | I43: 6
A44: 新会港 | G44: 6 | I44: 6
A45: 裕洋堆场 | F45: 4 | I45: 4
A46: 珉丰堆场 | D46: 4 | I46: 4
A47: 天马港 | G47: 4 | I47: 4
A48: 广江A线堆场 | H48: 4 | I48: 4
A49: 乌冲 | D49: 2 | I49: 2
A50: 南沙二期期码头 | E50: 2 | I50: 2
A51: 弘运广江 | F51: 2 | I51: 2
A52: 新会新港 | G52: 1 | I52: 1
A53: 裕通A仓 | B53: 1 | I53: 1
A54: 思信仓 | D54: 1 | I54: 1
A55: 总计 | B55: 2592 | C55: 819 | D55: 1691 | E55: 1478 | F55: 1657 | G55: 1692 | H55: 1215 | I55: 11144

Sheet 提交市场-集装箱
A1: 委托方 | B1: 货类 | C1: 求和项:送货重量 | D1: 求和项:柜量 | E1: 求和项:应收费用 | F1: 求和项:实际毛利
A2: 鞍钢联众（广州）不锈钢有限公司 | B2: 矿产品 | D2: 80 | E2: 46990.54 | F2: -6443.8108
A3: 大连海大容川贸易有限公司 | B3: 粮食 | C3: 1120.73 | D3: 42 | E3: 25596 | F3: 2504.51
A4: 东莞市华升造纸材料贸易有限公司 | B4: 淀粉 | C4: 587.95 | D4: 32 | E4: 25856 | F4: 1050
A5: 广东华糖实业有限公司 | B5: 糖 | C5: 325 | D5: 13 | E5: 7930 | F5: 520
A6: 广州芊禧门油脂有限公司 | B6: 饲料 | C6: 116.15 | D6: 5 | E6: 10030 | F6: 360
A7: 广州市中川货运运输代理有限公司 | B7: 矿产品 | C7: 27303.58 | D7: 7 | E7: 31395 | F7: 700
A8: 侨益物流股份有限公司 | B8: 淀粉 | C8: 180 | D8: 9 | E8: 10850 | F8: 450
A9: 侨益物流股份有限公司 | B9: 胶粒 | C9: 2968.215 | D9: 125 | E9: 163750 | F9: 5830
A10: 侨益物流股份有限公司 | B10: 矿产品 | C10: 1613.31 | D10: 64 | E10: 18240 | F10: 620
A11: 侨益物流股份有限公司 | B11: 粮食 | C11: 289.2 | D11: 11 | E11: 15100 | F11: 1100
A12: 侨益物流股份有限公司 | B12: 饲料 | C12: 15794.79 | D12: 662 | E12: 372690 | F12: 16870
A13: 侨益物流股份有限公司 | B13: 油脂 | C13: 56.64 | D13: 3 | E13: 6450 | F13: 1050
A14: 厦门鑫侨益国际货运代理有限公司 | B14: 粮食 | C14: 28.1 | D14: 1 | E14: 1120 | F14: 20
A15: 深圳广大科技发展有限公司 | B15: 饲料 | C15: 166.38 | D15: 7 | E15: 13410 | F15: 350
A16: 中央储备粮江门直属库有限公司 | B16: 粮食 | C16: 3193.77 | D16: 154 | E16: 81540 | F16: 2900
A17: 总计 | C17: 53743.815 | D17: 1215 | E17: 830947.54 | F17: 27880.6992

Sheet 提交市场-散货
A1: 委托方 | B1: 货类 | C1: 求和项:送货重量 | D1: 求和项:柜量 | E1: 求和项:应收费用 | F1: 求和项:实际毛利
A2: 鞍钢联众（广州）不锈钢有限公司 | B2: 矿产品 | C2: 48.2 | E2: 1059.4 | F2: -381.788
A3: 鞍钢联众（广州）不锈钢有限公司 | B3: 其他 | C3: 1 | E3: 396.36 | F3: 38.4328
A4: 佛山海大航标饲料有限公司 | B4: 粮食 | C4: 87.66 | E4: 6574.5 | F4: 262.98
A5: 佛山海大航标饲料有限公司 | B5: 饲料 | C5: 299.42 | E5: 21507.09 | F5: 898.26
A6: 佛山市三水番灵饲料有限公司 | B6: 饲料 | C6: 21.74 | E6: 1434.84 | F6: 43.48
A7: 广东华糖实业有限公司 | B7: 糖 | C7: 999.8 | E7: 76058.52 | F7: 2001.54
A8: 广东省粮油储运公司 | B8: 其他 | C8: 4 | E8: 6800 | F8: 400
A9: 广州惠安仓储装卸有限公司 | B9: 粮食 | C9: 4775.08 | E9: 57300.96 | F9: 9550.16
A10: 广州惠安仓储装卸有限公司 | B10: 其他 | C10: 1 | E10: 300 | F10: 0
A11: 广州市远集物流有限公司 | B11: 饲料 | C11: 54.93 | E11: 3559.7 | F11: 109.86
A12: 强大供应链有限公司 | B12: 钢材 | C12: 8846.046 | E12: 106152.55 | F12: 8846.04
A13: 侨益物流股份有限公司 | B13: 淀粉 | C13: 60.25 | E13: 6100 | F13: 150
A14: 侨益物流股份有限公司 | B14: 胶粒 | C14: 271.75 | E14: 16915 | F14: 570
A15: 侨益物流股份有限公司 | B15: 其他 | C15: 7 | E15: 3500 | F15: 190
A16: 侨益物流股份有限公司 | B16: 饲料 | C16: 2547.15 | E16: 31318.72 | F16: 4878.12
A17: 清远海大生物科技有限公司 | B17: 粮食 | C17: 501.25 | E17: 35087.5 | F17: 1503.75
A18: 清远海大生物科技有限公司 | B18: 饲料 | C18: 918.17 | E18: 66108.24 | F18: 1836.34
A19: 厦门建发金属有限公司 | B19: 钢材 | C19: 57.819 | E19: 2601.85 | F19: 132.38
A20: 深圳广大科技发展有限公司 | B20: 饲料 | C20: 56.13 | E20: 3850 | F20: 150
A21: 中钢国际货运广东有限责任公司 | B21: 矿产品 | C21: 1015.6 | E21: 18280.8 | F21: 507.8
A22: 竹发供应链有限公司 | B22: 钢材 | C22: 15082.368 | E22: 186892.05 | F22: 15137.14
A23: 总计 | C23: 35656.363 | E23: 651798.08 | F23: 46824.4948
